Inv Transaction,Supplier Name,Headserv Name,Stratdir Name,Account Desription,Redact Name,Paid Date,Amount,Non Recoverable VAT (Where Applicable),Merchant Category
460303,WALKDEN MANOR CARE HOME,Adult Social Care,Director of People,Nursing Home Long Stay Fees,,09/12/2015,"14,220.51",,Social Community Care Supplies & Services
460304,OVERDEAN HOUSE (HC ONE),Adult Social Care,Director of People,Nursing Home Long Stay Fees,,09/10/2015,"8,462.16",,Social Community Care
460304,DARNTON HOUSE,Adult Social Care,Director of People,Nursing Home Long Stay Fees,,15/10/2015,"5,817.15",,Social Community Care
460305,DARNTON HOUSE,Adult Social Care,Director of People,Nursing Home Long Stay Fees,,15/10/2015,"3,828.29",,Social Community Care
460308,LINWOOD PARK,Public Health,Director of Public Health,Nursing Home Long Stay Fees,,26/11/2015,"9,515.71",,Medical
460308,OVERDEAN HOUSE (HC ONE),Adult Social Care,Director of People,Nursing Home Long Stay Fees,,09/10/2015,"1,576.80",,Social Community Care
460308,DARNTON HOUSE,Adult Social Care,Director of People,Nursing Home Long Stay Fees,,15/10/2015,"7,898.86",,Social Community Care
460308,WALKDEN MANOR CARE HOME,Adult Social Care,Director of People,Nursing Home Long Stay Fees,,09/12/2015,"19,252.38",,Social Community Care Supplies & Services
460309,ACORN RECOVERY PROJECTS,Public Health,Director of Public Health,Nursing Home Long Stay Fees,,22/10/2015,"42,370.72",,Social Community Care Supplies & Services
460309,HALF ACRE HOUSE,Adult Social Care,Director of People,Nursing Home Long Stay Fees,,12/10/2015,"24,809.25",,Social Community Care
460310,AMARA CARE LTD,Adult Social Care,Director of People,Nursing Home Long Stay Fees,,27/10/2015,"5,712.86",,Social Community Care Supplies & Services
460310,AUDEN HOUSE RESIDENTIAL HOME,Adult Social Care,Director of People,Nursing Home Long Stay Fees,,27/10/2015,"9,172.61",,Social Community Care Supplies & Services
460310,BAMFORD GRANGE N/H,Adult Social Care,Director of People,Nursing Home Long Stay Fees,,27/10/2015,"2,745.90",,Social Community Care Supplies & Services
460310,BEECHFIELD LODGE,Adult Social Care,Director of People,Nursing Home Long Stay Fees,,27/10/2015,"4,068.00",,Social Community Care
460310,BELMONT PARKHILL LTD,Adult Social Care,Director of People,Nursing Home Long Stay Fees,,27/10/2015,"29,769.54",,Unclassifiable
460310,BLACKCLIFFE LTD,Adult Social Care,Director of People,Nursing Home Long Stay Fees,,27/10/2015,"56,790.61",,Social Community Care Supplies & Services
460310,BOURNE HOUSE RESIDENTIAL HOME,Adult Social Care,Director of People,Nursing Home Long Stay Fees,,27/10/2015,"32,691.47",,Social Community Care Supplies & Services
460310,BOWLACRE HOME,Adult Social Care,Director of People,Nursing Home Long Stay Fees,,27/10/2015,"12,248.60",,Social Community Care Supplies & Services
460310,BROOKVALE,Adult Social Care,Director of People,Nursing Home Long Stay Fees,,27/10/2015,"6,661.80",,Social Community Care Supplies & Services
460310,BROUGHTON HOUSE HOME FOR  EX-SERVICE PERSONNEL,Adult Social Care,Director of People,Nursing Home Long Stay Fees,,27/10/2015,958.84,,Social Community Care Supplies & Services
460310,CAMBIAN LEARNING DISABILITIES MIDLANDS LTD,Adult Social Care,Director of People,Nursing Home Long Stay Fees,,27/10/2015,"28,609.15",,Social Community Care Supplies & Services
460310,CARE UK LEARNING DISABILITIES SERVS LTD,Adult Social Care,Director of People,Nursing Home Long Stay Fees,,27/10/2015,"10,460.57",,Public Bodies
460310,CHADDERTON TOTAL CAREUNIT LTD,Adult Social Care,Director of People,Nursing Home Long Stay Fees,,27/10/2015,"7,123.64",,Social Community Care Supplies & Services
460310,CHARNLEY HOUSE LIMITED,Adult Social Care,Director of People,Nursing Home Long Stay Fees,,27/10/2015,"18,885.03",,Social Community Care Supplies & Services
460310,CLARKSON HOUSE,Adult Social Care,Director of People,Nursing Home Long Stay Fees,,27/10/2015,"22,693.52",,Social Community Care Supplies & Services
460310,CLEARWATER CARE,Adult Social Care,Director of People,Nursing Home Long Stay Fees,,27/10/2015,"3,395.79",,Social Community Care
460310,COMPASS CARE LIMITED,Adult Social Care,Director of People,Nursing Home Long Stay Fees,,27/10/2015,"4,315.67",,Social Community Care Supplies & Services
460310,DANSHELL HEALTHCARE LTD,Adult Social Care,Director of People,Nursing Home Long Stay Fees,,27/10/2015,"8,400.00",,Social Community Care
460310,DOM POLSKI CARE HOME,Adult Social Care,Director of People,Nursing Home Long Stay Fees,,27/10/2015,"1,876.16",,Social Community Care
460310,ELDER HOMES GROUP,Adult Social Care,Director of People,Nursing Home Long Stay Fees,,27/10/2015,"64,046.46",,Social Community Care Supplies & Services
460310,ERNELESTHORP NURSING HOME,Adult Social Care,Director of People,Nursing Home Long Stay Fees,,27/10/2015,"1,783.43",,Social Community Care Supplies & Services
460310,FAIRFIELD VIEW CARE LTD,Adult Social Care,Director of People,Nursing Home Long Stay Fees,,27/10/2015,"56,099.73",,Social Community Care Supplies & Services
460310,FIRBANK HOUSE NURSING & RESIDENTIAL CARE HOME,Adult Social Care,Director of People,Nursing Home Long Stay Fees,,27/10/2015,"49,438.11",,Social Community Care Supplies & Services
460310,GLENROYD CARE HOME,Adult Social Care,Director of People,Nursing Home Long Stay Fees,,27/10/2015,"1,786.84",,Social Community Care Supplies & Services
460310,HATTON GRANGE,Adult Social Care,Director of People,Nursing Home Long Stay Fees,,27/10/2015,"115,156.97",,Social Community Care
460310,HC ONE OF A KIND - GUIDE LANE,Adult Social Care,Director of People,Nursing Home Long Stay Fees,,27/10/2015,"34,766.68",,Social Community Care
460310,HC ONE OF A KIND - KINGS PARK,Adult Social Care,Director of People,Nursing Home Long Stay Fees,,27/10/2015,"78,005.48",,Social Community Care
460310,JIGSAW CREATIVE CARE LIMITED,Adult Social Care,Director of People,Nursing Home Long Stay Fees,,27/10/2015,"7,915.71",,Social Community Care Supplies & Services
460310,LAUREL BANK RESIDENTIAL CARE HOME LTD,Adult Social Care,Director of People,Nursing Home Long Stay Fees,,27/10/2015,"26,234.31",,Social Community Care Supplies & Services
460310,LINWOOD PARK,Public Health,Director of Public Health,Nursing Home Long Stay Fees,,26/11/2015,"41,082.04",,Medical
460310,LOUTH CARE LTD,Adult Social Care,Director of People,Nursing Home Long Stay Fees,,27/10/2015,"1,820.14",,Social Community Care
460310,MARPLE DALE HALL LTD,Adult Social Care,Director of People,Nursing Home Long Stay Fees,,27/10/2015,"1,643.22",,Social Community Care Supplies & Services
460310,MERIDIAN HEALTHCARE LTD,Adult Social Care,Director of People,Nursing Home Long Stay Fees,,27/10/2015,"807,356.72",,Social Community Care Supplies & Services
460310,MOSS COTTAGE NURSING HOME,Adult Social Care,Director of People,Nursing Home Long Stay Fees,,27/10/2015,"35,214.50",,Social Community Care Supplies & Services
460310,PENDLEBURY CARE HOMES LTD,Adult Social Care,Director of People,Nursing Home Long Stay Fees,,27/10/2015,"1,895.87",,Social Community Care Supplies & Services
460310,PENNINE CARE CENTRE,Adult Social Care,Director of People,Nursing Home Long Stay Fees,,27/10/2015,"3,660.17",,Social Community Care Supplies & Services
460310,POLEBANK HALL RESIDENTIAL CARE HOME LTD,Adult Social Care,Director of People,Nursing Home Long Stay Fees,,27/10/2015,"11,003.03",,Social Community Care
460310,PROGRESS ADULT SERVICES LIMITED,Adult Social Care,Director of People,Nursing Home Long Stay Fees,,27/10/2015,"13,352.14",,Social Community Care
460310,SIGN,Adult Social Care,Director of People,Nursing Home Long Stay Fees,,27/10/2015,"4,878.51",,Social Community Care Supplies & Services
460310,SPINAL UNIT ACTION GROUP,Adult Social Care,Director of People,Nursing Home Long Stay Fees,,27/10/2015,"1,984.16",,Social Community Care Supplies & Services
460310,ST GEORGE'S NURSING HOME (OLDHAM) LTD,Adult Social Care,Director of People,Nursing Home Long Stay Fees,,27/10/2015,"21,239.69",,Social Community Care Supplies & Services
460310,ST LAWRENCES LODGE,Adult Social Care,Director of People,Nursing Home Long Stay Fees,,27/10/2015,"10,404.07",,Social Community Care Supplies & Services
460310,ST MARY'S CONTINUING CARE LTD,Adult Social Care,Director of People,Nursing Home Long Stay Fees,,27/10/2015,"4,546.50",,Social Community Care Supplies & Services
460310,STALEY HOUSE EPH,Adult Social Care,Director of People,Nursing Home Long Stay Fees,,27/10/2015,"19,123.28",,Social Community Care Supplies & Services
460310,SUNNY BANK PRS LTD,Adult Social Care,Director of People,Nursing Home Long Stay Fees,,27/10/2015,"2,548.29",,Social Community Care Supplies & Services
460310,THE ALEXANDRA,Adult Social Care,Director of People,Nursing Home Long Stay Fees,,27/10/2015,"2,139.00",,Social Community Care Supplies & Services
460310,THE DAVID LEWIS CENTRE,Adult Social Care,Director of People,Nursing Home Long Stay Fees,,27/10/2015,"4,707.34",,Social Community Care
460310,THE HESLEY GROUP LTD,Adult Social Care,Director of People,Nursing Home Long Stay Fees,,27/10/2015,"9,955.87",,Social Community Care Supplies & Services
460310,THE OLD VICARAGE,Adult Social Care,Director of People,Nursing Home Long Stay Fees,,27/10/2015,"1,529.06",,Social Community Care Supplies & Services
460310,THE ROYAL ELMS REST HOMES,Adult Social Care,Director of People,Nursing Home Long Stay Fees,,27/10/2015,"1,841.58",,Social Community Care
460310,THE VICARAGE RESIDENTIAL CARE HOME,Adult Social Care,Director of People,Nursing Home Long Stay Fees,,27/10/2015,"24,566.21",,Social Community Care Supplies & Services
460310,THORNCLIFFE GRANGE NURSING HOME,Adult Social Care,Director of People,Nursing Home Long Stay Fees,,27/10/2015,"25,002.27",,Social Community Care Supplies & Services
460310,VICTORIA NURSING HOME,Adult Social Care,Director of People,Nursing Home Long Stay Fees,,27/10/2015,"8,768.57",,Social Community Care Supplies & Services
460310,WESTMINSTER HEALTH CARE LTD,Adult Social Care,Director of People,Nursing Home Long Stay Fees,,27/10/2015,"3,154.89",,Social Community Care Supplies & Services
460310,WINDMILL CARE HOME,Adult Social Care,Director of People,Nursing Home Long Stay Fees,,27/10/2015,"2,040.29",,Social Community Care Supplies & Services
460310,WOODLANDS RESIDENTIAL CARE HOME,Adult Social Care,Director of People,Nursing Home Long Stay Fees,,27/10/2015,"11,415.57",,Social Community Care Supplies & Services
460310,HALF ACRE HOUSE,Adult Social Care,Director of People,Nursing Home Long Stay Fees,,27/10/2015,"1,719.60",,Social Community Care
460310,DARNTON HOUSE,Adult Social Care,Director of People,Nursing Home Long Stay Fees,,27/10/2015,"6,409.15",,Social Community Care
460310,BESTCARE LTD,Adult Social Care,Director of People,Nursing Home Long Stay Fees,,27/10/2015,"23,468.18",,Public Bodies
460310,TREETON GRANGE NURSING HOME,Adult Social Care,Director of People,Nursing Home Long Stay Fees,,27/10/2015,"1,222.24",,Social Community Care Supplies & Services
460310,CARELINE LIFESTYLES,Adult Social Care,Director of People,Nursing Home Long Stay Fees,,27/10/2015,"27,321.43",,Unclassifiable
460310,HILLTOP HALL,Adult Social Care,Director of People,Nursing Home Long Stay Fees,,27/10/2015,"12,438.32",,Unclassifiable
460310,FLORENCE LODGE,Adult Social Care,Director of People,Nursing Home Long Stay Fees,,27/10/2015,"2,125.71",,Social Community Care Supplies & Services
460310,HEATHCOTES CARE,Adult Social Care,Director of People,Nursing Home Long Stay Fees,,27/10/2015,"19,239.27",,Social Community Care
460310,HAMILTON HOUSE NURSING HOME,Adult Social Care,Director of People,Nursing Home Long Stay Fees,,27/10/2015,"2,766.31",,Social Community Care Supplies & Services
460310,BAMFORD CLOSE (BOROUGH CARE),Adult Social Care,Director of People,Nursing Home Long Stay Fees,,27/10/2015,"2,037.14",,Social Community Care
460310,DOWNSHAW LODGE NURSING HOME,Adult Social Care,Director of People,Nursing Home Long Stay Fees,,27/10/2015,"31,015.11",,Social Community Care Supplies & Services
460310,RUSHCLIFFE CARE LTD T/A OAKFORD MANOR NURSING HOME,Adult Social Care,Director of People,Nursing Home Long Stay Fees,,27/10/2015,992.00,,Social Community Care Supplies & Services
460310,FERN BANK,Adult Social Care,Director of People,Nursing Home Long Stay Fees,,27/10/2015,"19,538.24",,Social Community Care Supplies & Services
460310,ACORN LODGE CARE HOME,Adult Social Care,Director of People,Nursing Home Long Stay Fees,,27/10/2015,"1,857.79",,Social Community Care Supplies & Services
460310,RIVERSIDE CARE CENTRE,Adult Social Care,Director of People,Nursing Home Long Stay Fees,,27/10/2015,"51,419.31",,Social Community Care Supplies & Services
460310,EQUALIBRIUM HEALTH CARE,Adult Social Care,Director of People,Nursing Home Long Stay Fees,,27/10/2015,"44,954.48",,Social Community Care Supplies & Services
460310,EHC MOSTON GRANGE LTD,Adult Social Care,Director of People,Nursing Home Long Stay Fees,,27/10/2015,"2,874.73",,Social Community Care Supplies & Services
460310,HOMELEIGH,Adult Social Care,Director of People,Nursing Home Long Stay Fees,,27/10/2015,"2,435.71",,Social Community Care Supplies & Services
460310,MR T N ATAPATTU,Adult Social Care,Director of People,Nursing Home Long Stay Fees,Business Payment,28/10/2015,"25,939.14",,Social Community Care Supplies & Services
460310,THE ROYAL NATIONAL COLLEGE FOR THE BLIND,Adult Social Care,Director of People,Nursing Home Long Stay Fees,,11/11/2015,"3,447.93",,Social Community Care
460311,OAKWOOD CARE CENTRE,Adult Social Care,Director of People,Nursing Home Long Stay Fees,,16/11/2015,"10,966.43",,Social Community Care Supplies & Services
460312,AMARA CARE LTD,Adult Social Care,Director of People,Nursing Home Long Stay Fees,,09/12/2015,"5,528.57",,Social Community Care Supplies & Services
460312,AUDEN HOUSE RESIDENTIAL HOME,Adult Social Care,Director of People,Nursing Home Long Stay Fees,,09/12/2015,"10,481.14",,Social Community Care Supplies & Services
460312,BAMFORD GRANGE N/H,Adult Social Care,Director of People,Nursing Home Long Stay Fees,,09/12/2015,"2,837.43",,Social Community Care Supplies & Services
460312,BEECHFIELD LODGE,Adult Social Care,Director of People,Nursing Home Long Stay Fees,,09/12/2015,"1,033.67",,Social Community Care
460312,BELMONT PARKHILL LTD,Adult Social Care,Director of People,Nursing Home Long Stay Fees,,09/12/2015,"34,863.31",,Unclassifiable
460312,BLACKCLIFFE LTD,Adult Social Care,Director of People,Nursing Home Long Stay Fees,,09/12/2015,"76,309.56",,Social Community Care Supplies & Services
460312,BOURNE HOUSE RESIDENTIAL HOME,Adult Social Care,Director of People,Nursing Home Long Stay Fees,,09/12/2015,"28,762.99",,Social Community Care Supplies & Services
460312,BOWLACRE HOME,Adult Social Care,Director of People,Nursing Home Long Stay Fees,,09/12/2015,"15,084.18",,Social Community Care Supplies & Services
460312,BROOKVALE,Adult Social Care,Director of People,Nursing Home Long Stay Fees,,09/12/2015,"6,883.85",,Social Community Care Supplies & Services
460312,BROUGHTON HOUSE HOME FOR  EX-SERVICE PERSONNEL,Adult Social Care,Director of People,Nursing Home Long Stay Fees,,09/12/2015,990.80,,Social Community Care Supplies & Services
460312,CAMBIAN LEARNING DISABILITIES MIDLANDS LTD,Adult Social Care,Director of People,Nursing Home Long Stay Fees,,09/12/2015,"7,010.38",,Social Community Care Supplies & Services
460312,CARE UK LEARNING DISABILITIES SERVS LTD,Adult Social Care,Director of People,Nursing Home Long Stay Fees,,09/12/2015,"10,809.26",,Public Bodies
460312,CHADDERTON TOTAL CAREUNIT LTD,Adult Social Care,Director of People,Nursing Home Long Stay Fees,,09/12/2015,"6,843.41",,Social Community Care Supplies & Services
460312,CHARNLEY HOUSE LIMITED,Adult Social Care,Director of People,Nursing Home Long Stay Fees,,09/12/2015,"16,824.51",,Social Community Care Supplies & Services
460312,CLARKSON HOUSE,Adult Social Care,Director of People,Nursing Home Long Stay Fees,,09/12/2015,"22,556.41",,Social Community Care Supplies & Services
460312,CLEARWATER CARE,Adult Social Care,Director of People,Nursing Home Long Stay Fees,,09/12/2015,"3,508.98",,Social Community Care
460312,COMPASS CARE LIMITED,Adult Social Care,Director of People,Nursing Home Long Stay Fees,,09/12/2015,"4,459.53",,Social Community Care Supplies & Services
460312,DOM POLSKI CARE HOME,Adult Social Care,Director of People,Nursing Home Long Stay Fees,,09/12/2015,"1,815.64",,Social Community Care
460312,DOVES NEST NURSING HOME,Adult Social Care,Director of People,Nursing Home Long Stay Fees,,09/12/2015,"20,267.35",,Social Community Care
460312,ELDER HOMES GROUP,Adult Social Care,Director of People,Nursing Home Long Stay Fees,,09/12/2015,"57,353.22",,Social Community Care Supplies & Services
460312,FAIRFIELD VIEW CARE LTD,Adult Social Care,Director of People,Nursing Home Long Stay Fees,,09/12/2015,"51,179.98",,Social Community Care Supplies & Services
460312,FIRBANK HOUSE NURSING & RESIDENTIAL CARE HOME,Adult Social Care,Director of People,Nursing Home Long Stay Fees,,09/12/2015,"12,336.93",,Social Community Care Supplies & Services
460312,GLENROYD CARE HOME,Adult Social Care,Director of People,Nursing Home Long Stay Fees,,09/12/2015,"1,729.20",,Social Community Care Supplies & Services
460312,GRANGEFIELD,Adult Social Care,Director of People,Nursing Home Long Stay Fees,,09/12/2015,"1,945.90",,Social Community Care
460312,HATTON GRANGE,Adult Social Care,Director of People,Nursing Home Long Stay Fees,,09/12/2015,"54,761.17",,Social Community Care
460312,HC ONE OF A KIND - GUIDE LANE,Adult Social Care,Director of People,Nursing Home Long Stay Fees,,09/12/2015,"30,254.57",,Social Community Care
460312,HC ONE OF A KIND - KINGS PARK,Adult Social Care,Director of People,Nursing Home Long Stay Fees,,09/12/2015,"27,176.33",,Social Community Care
460312,LAUREL BANK RESIDENTIAL CARE HOME LTD,Adult Social Care,Director of People,Nursing Home Long Stay Fees,,09/12/2015,"19,315.04",,Social Community Care Supplies & Services
460312,LOUTH CARE LTD,Adult Social Care,Director of People,Nursing Home Long Stay Fees,,09/12/2015,"1,761.43",,Social Community Care
460312,MARPLE DALE HALL LTD,Adult Social Care,Director of People,Nursing Home Long Stay Fees,,09/12/2015,"1,590.21",,Social Community Care Supplies & Services
460312,MERIDIAN HEALTHCARE LTD,Adult Social Care,Director of People,Nursing Home Long Stay Fees,,09/12/2015,"717,125.54",,Social Community Care Supplies & Services
460312,MOSS COTTAGE NURSING HOME,Adult Social Care,Director of People,Nursing Home Long Stay Fees,,09/12/2015,"39,109.14",,Social Community Care Supplies & Services
460312,OAKWOOD CARE CENTRE,Adult Social Care,Director of People,Nursing Home Long Stay Fees,,09/12/2015,"9,397.71",,Social Community Care Supplies & Services
460312,PENDLEBURY CARE HOMES LTD,Adult Social Care,Director of People,Nursing Home Long Stay Fees,,09/12/2015,"1,834.71",,Social Community Care Supplies & Services
460312,PENNINE CARE CENTRE,Adult Social Care,Director of People,Nursing Home Long Stay Fees,,09/12/2015,"3,542.10",,Social Community Care Supplies & Services
460312,POLEBANK HALL RESIDENTIAL CARE HOME LTD,Adult Social Care,Director of People,Nursing Home Long Stay Fees,,09/12/2015,"8,187.40",,Social Community Care
460312,SPINAL UNIT ACTION GROUP,Adult Social Care,Director of People,Nursing Home Long Stay Fees,,09/12/2015,"2,050.30",,Social Community Care Supplies & Services
460312,ST GEORGE'S NURSING HOME (OLDHAM) LTD,Adult Social Care,Director of People,Nursing Home Long Stay Fees,,09/12/2015,"20,861.00",,Social Community Care Supplies & Services
460312,ST LAWRENCES LODGE,Adult Social Care,Director of People,Nursing Home Long Stay Fees,,09/12/2015,"10,629.16",,Social Community Care Supplies & Services
460312,ST MARY'S CONTINUING CARE LTD,Adult Social Care,Director of People,Nursing Home Long Stay Fees,,09/12/2015,"4,698.05",,Social Community Care Supplies & Services
460312,SUNNY BANK PRS LTD,Adult Social Care,Director of People,Nursing Home Long Stay Fees,,09/12/2015,"2,633.23",,Social Community Care Supplies & Services
460312,THE ALEXANDRA,Adult Social Care,Director of People,Nursing Home Long Stay Fees,,09/12/2015,"2,070.00",,Social Community Care Supplies & Services
460312,THE DAVID LEWIS CENTRE,Adult Social Care,Director of People,Nursing Home Long Stay Fees,,09/12/2015,"4,815.34",,Social Community Care
460312,THE HESLEY GROUP LTD,Adult Social Care,Director of People,Nursing Home Long Stay Fees,,09/12/2015,"9,634.71",,Social Community Care Supplies & Services
460312,THE OLD VICARAGE,Adult Social Care,Director of People,Nursing Home Long Stay Fees,,09/12/2015,"1,580.03",,Social Community Care Supplies & Services
460312,THE ROYAL ELMS REST HOMES,Adult Social Care,Director of People,Nursing Home Long Stay Fees,,09/12/2015,"1,782.17",,Social Community Care
460312,THE VICARAGE RESIDENTIAL CARE HOME,Adult Social Care,Director of People,Nursing Home Long Stay Fees,,09/12/2015,"20,331.90",,Social Community Care Supplies & Services
460312,THORNCLIFFE GRANGE NURSING HOME,Adult Social Care,Director of People,Nursing Home Long Stay Fees,,09/12/2015,"17,515.73",,Social Community Care Supplies & Services
460312,VICTORIA NURSING HOME,Adult Social Care,Director of People,Nursing Home Long Stay Fees,,09/12/2015,"8,485.71",,Social Community Care Supplies & Services
460312,WESTMINSTER HEALTH CARE LTD,Adult Social Care,Director of People,Nursing Home Long Stay Fees,,09/12/2015,"3,126.28",,Social Community Care Supplies & Services
460312,WINDMILL CARE HOME,Adult Social Care,Director of People,Nursing Home Long Stay Fees,,09/12/2015,"1,974.47",,Social Community Care Supplies & Services
460312,WOODLANDS RESIDENTIAL CARE HOME,Adult Social Care,Director of People,Nursing Home Long Stay Fees,,09/12/2015,"14,462.83",,Social Community Care Supplies & Services
460312,HALF ACRE HOUSE,Adult Social Care,Director of People,Nursing Home Long Stay Fees,,09/12/2015,"1,266.02",,Social Community Care
460312,BESTCARE LTD,Adult Social Care,Director of People,Nursing Home Long Stay Fees,,09/12/2015,"1,411.39",,Public Bodies
460312,TREETON GRANGE NURSING HOME,Adult Social Care,Director of People,Nursing Home Long Stay Fees,,09/12/2015,"1,262.98",,Social Community Care Supplies & Services
460312,CARELINE LIFESTYLES,Adult Social Care,Director of People,Nursing Home Long Stay Fees,,09/12/2015,"5,357.14",,Unclassifiable
460312,HILLTOP HALL,Adult Social Care,Director of People,Nursing Home Long Stay Fees,,09/12/2015,"3,578.31",,Unclassifiable
460312,HEATHCOTES CARE,Adult Social Care,Director of People,Nursing Home Long Stay Fees,,09/12/2015,"18,618.65",,Social Community Care
460312,HAMILTON HOUSE NURSING HOME,Adult Social Care,Director of People,Nursing Home Long Stay Fees,,09/12/2015,"2,677.07",,Social Community Care Supplies & Services
460312,BAMFORD CLOSE (BOROUGH CARE),Adult Social Care,Director of People,Nursing Home Long Stay Fees,,09/12/2015,"1,971.43",,Social Community Care
460312,DOWNSHAW LODGE NURSING HOME,Adult Social Care,Director of People,Nursing Home Long Stay Fees,,09/12/2015,"29,028.94",,Social Community Care Supplies & Services
460312,RUSHCLIFFE CARE LTD T/A OAKFORD MANOR NURSING HOME,Adult Social Care,Director of People,Nursing Home Long Stay Fees,,09/12/2015,960.00,,Social Community Care Supplies & Services
460312,FERN BANK,Adult Social Care,Director of People,Nursing Home Long Stay Fees,,09/12/2015,"9,860.10",,Social Community Care Supplies & Services
460312,ACORN LODGE CARE HOME,Adult Social Care,Director of People,Nursing Home Long Stay Fees,,09/12/2015,"1,797.86",,Social Community Care Supplies & Services
460312,RIVERSIDE CARE CENTRE,Adult Social Care,Director of People,Nursing Home Long Stay Fees,,09/12/2015,"50,889.89",,Social Community Care Supplies & Services
460312,EQUALIBRIUM HEALTH CARE,Adult Social Care,Director of People,Nursing Home Long Stay Fees,,09/12/2015,"10,224.28",,Social Community Care Supplies & Services
460312,EHC MOSTON GRANGE LTD,Adult Social Care,Director of People,Nursing Home Long Stay Fees,,09/12/2015,"2,183.50",,Social Community Care Supplies & Services
460312,HOMELEIGH,Adult Social Care,Director of People,Nursing Home Long Stay Fees,,09/12/2015,"2,357.14",,Social Community Care Supplies & Services
460312,MR T N ATAPATTU,Adult Social Care,Director of People,Nursing Home Long Stay Fees,Business Payment,09/12/2015,"1,826.70",,Social Community Care Supplies & Services
460312,EAGLE HOUSE CARE HOME,Adult Social Care,Director of People,Nursing Home Long Stay Fees,,09/12/2015,"2,936.70",,Social Community Care Supplies & Services
460312,MARINERS COURT CARE HOME,Adult Social Care,Director of People,Nursing Home Long Stay Fees,,09/12/2015,"4,739.50",,Public Bodies
460312,PARK VILLA (OWNED BY CARE UK),Adult Social Care,Director of People,Nursing Home Long Stay Fees,,09/12/2015,"7,705.00",,Social Community Care
460313,STALEY HOUSE EPH,Adult Social Care,Director of People,Nursing Home Long Stay Fees,,02/12/2015,"23,669.60",,Social Community Care Supplies & Services
460315,AMARA CARE LTD,Adult Social Care,Director of People,Nursing Home Long Stay Fees,,21/12/2015,"5,712.86",,Social Community Care Supplies & Services
460315,AUDEN HOUSE RESIDENTIAL HOME,Adult Social Care,Director of People,Nursing Home Long Stay Fees,,21/12/2015,"7,196.28",,Social Community Care Supplies & Services
460315,BAMFORD GRANGE N/H,Adult Social Care,Director of People,Nursing Home Long Stay Fees,,21/12/2015,"2,837.43",,Social Community Care Supplies & Services
460315,BEECHFIELD LODGE,Adult Social Care,Director of People,Nursing Home Long Stay Fees,,21/12/2015,"1,033.67",,Social Community Care
460315,BELMONT PARKHILL LTD,Adult Social Care,Director of People,Nursing Home Long Stay Fees,,21/12/2015,"34,134.02",,Unclassifiable
460315,BLACKCLIFFE LTD,Adult Social Care,Director of People,Nursing Home Long Stay Fees,,21/12/2015,"69,876.02",,Social Community Care Supplies & Services
460315,BOURNE HOUSE RESIDENTIAL HOME,Adult Social Care,Director of People,Nursing Home Long Stay Fees,,21/12/2015,"31,244.08",,Social Community Care Supplies & Services
460315,BOWLACRE HOME,Adult Social Care,Director of People,Nursing Home Long Stay Fees,,21/12/2015,"15,471.50",,Social Community Care Supplies & Services
460315,BROOKVALE,Adult Social Care,Director of People,Nursing Home Long Stay Fees,,21/12/2015,"6,883.85",,Social Community Care Supplies & Services
460315,BROUGHTON HOUSE HOME FOR  EX-SERVICE PERSONNEL,Adult Social Care,Director of People,Nursing Home Long Stay Fees,,21/12/2015,990.80,,Social Community Care Supplies & Services
460315,CANTERBURY CARE HOMES LTD,Adult Social Care,Director of People,Nursing Home Long Stay Fees,,21/12/2015,"6,793.69",,Social Community Care Supplies & Services
460315,CARE UK LEARNING DISABILITIES SERVS LTD,Adult Social Care,Director of People,Nursing Home Long Stay Fees,,21/12/2015,"10,809.26",,Public Bodies
460315,CHADDERTON TOTAL CAREUNIT LTD,Adult Social Care,Director of People,Nursing Home Long Stay Fees,,21/12/2015,"15,031.79",,Social Community Care Supplies & Services
460315,CHARNLEY HOUSE LIMITED,Adult Social Care,Director of People,Nursing Home Long Stay Fees,,21/12/2015,"16,554.28",,Social Community Care Supplies & Services
460315,CLARKSON HOUSE,Adult Social Care,Director of People,Nursing Home Long Stay Fees,,21/12/2015,"23,893.12",,Social Community Care Supplies & Services
460315,CLEARWATER CARE,Adult Social Care,Director of People,Nursing Home Long Stay Fees,,21/12/2015,"3,508.98",,Social Community Care
460315,COMPASS CARE LIMITED,Adult Social Care,Director of People,Nursing Home Long Stay Fees,,21/12/2015,"4,459.53",,Social Community Care Supplies & Services
460315,DOVES NEST NURSING HOME,Adult Social Care,Director of People,Nursing Home Long Stay Fees,,21/12/2015,"1,548.89",,Social Community Care
460315,ELDER HOMES GROUP,Adult Social Care,Director of People,Nursing Home Long Stay Fees,,21/12/2015,"77,489.89",,Social Community Care Supplies & Services
460315,FAIRFIELD VIEW CARE LTD,Adult Social Care,Director of People,Nursing Home Long Stay Fees,,21/12/2015,"54,938.78",,Social Community Care Supplies & Services
460315,FIRBANK HOUSE NURSING & RESIDENTIAL CARE HOME,Adult Social Care,Director of People,Nursing Home Long Stay Fees,,21/12/2015,"12,516.50",,Social Community Care Supplies & Services
460315,GLENROYD CARE HOME,Adult Social Care,Director of People,Nursing Home Long Stay Fees,,21/12/2015,"1,786.84",,Social Community Care Supplies & Services
460315,GRANGEFIELD,Adult Social Care,Director of People,Nursing Home Long Stay Fees,,21/12/2015,988.90,,Social Community Care
460315,HATTON GRANGE,Adult Social Care,Director of People,Nursing Home Long Stay Fees,,21/12/2015,"55,906.25",,Social Community Care
460315,HC ONE OF A KIND - GUIDE LANE,Adult Social Care,Director of People,Nursing Home Long Stay Fees,,21/12/2015,"32,946.45",,Social Community Care
460315,HC ONE OF A KIND - KINGS PARK,Adult Social Care,Director of People,Nursing Home Long Stay Fees,,21/12/2015,"41,520.47",,Social Community Care
460315,LAUREL BANK RESIDENTIAL CARE HOME LTD,Adult Social Care,Director of People,Nursing Home Long Stay Fees,,21/12/2015,"22,490.18",,Social Community Care Supplies & Services
460315,LOUTH CARE LTD,Adult Social Care,Director of People,Nursing Home Long Stay Fees,,21/12/2015,"1,820.14",,Social Community Care
460315,MERIDIAN HEALTHCARE LTD,Adult Social Care,Director of People,Nursing Home Long Stay Fees,,21/12/2015,"886,664.24",,Social Community Care Supplies & Services
460315,MOSS COTTAGE NURSING HOME,Adult Social Care,Director of People,Nursing Home Long Stay Fees,,21/12/2015,"63,607.46",,Social Community Care Supplies & Services
460315,OAKWOOD CARE CENTRE,Adult Social Care,Director of People,Nursing Home Long Stay Fees,,21/12/2015,"6,067.14",,Social Community Care Supplies & Services
460315,PENDLEBURY CARE HOMES LTD,Adult Social Care,Director of People,Nursing Home Long Stay Fees,,21/12/2015,"1,895.87",,Social Community Care Supplies & Services
460315,PENNINE CARE CENTRE,Adult Social Care,Director of People,Nursing Home Long Stay Fees,,21/12/2015,"7,320.34",,Social Community Care Supplies & Services
460315,POLEBANK HALL RESIDENTIAL CARE HOME LTD,Adult Social Care,Director of People,Nursing Home Long Stay Fees,,21/12/2015,"8,922.05",,Social Community Care
460315,PROGRESS ADULT SERVICES LIMITED,Adult Social Care,Director of People,Nursing Home Long Stay Fees,,21/12/2015,"13,797.21",,Social Community Care
460315,SPINAL UNIT ACTION GROUP,Adult Social Care,Director of People,Nursing Home Long Stay Fees,,21/12/2015,"2,050.30",,Social Community Care Supplies & Services
460315,ST GEORGE'S NURSING HOME (OLDHAM) LTD,Adult Social Care,Director of People,Nursing Home Long Stay Fees,,21/12/2015,"21,395.43",,Social Community Care Supplies & Services
460315,ST LAWRENCES LODGE,Adult Social Care,Director of People,Nursing Home Long Stay Fees,,21/12/2015,"10,689.02",,Social Community Care Supplies & Services
460315,ST MARY'S CONTINUING CARE LTD,Adult Social Care,Director of People,Nursing Home Long Stay Fees,,21/12/2015,"4,698.05",,Social Community Care Supplies & Services
460315,STALEY HOUSE EPH,Adult Social Care,Director of People,Nursing Home Long Stay Fees,,21/12/2015,"21,950.42",,Social Community Care Supplies & Services
460315,SUNNY BANK PRS LTD,Adult Social Care,Director of People,Nursing Home Long Stay Fees,,21/12/2015,"2,633.23",,Social Community Care Supplies & Services
460315,THE ALEXANDRA,Adult Social Care,Director of People,Nursing Home Long Stay Fees,,21/12/2015,"2,139.00",,Social Community Care Supplies & Services
460315,THE DAVID LEWIS CENTRE,Adult Social Care,Director of People,Nursing Home Long Stay Fees,,21/12/2015,"4,850.08",,Social Community Care
460315,THE HESLEY GROUP LTD,Adult Social Care,Director of People,Nursing Home Long Stay Fees,,21/12/2015,"9,955.87",,Social Community Care Supplies & Services
460315,THE OLD VICARAGE,Adult Social Care,Director of People,Nursing Home Long Stay Fees,,21/12/2015,"1,580.03",,Social Community Care Supplies & Services
460315,THE ROYAL ELMS REST HOMES,Adult Social Care,Director of People,Nursing Home Long Stay Fees,,21/12/2015,"1,841.58",,Social Community Care
460315,THE VICARAGE RESIDENTIAL CARE HOME,Adult Social Care,Director of People,Nursing Home Long Stay Fees,,21/12/2015,"24,452.95",,Social Community Care Supplies & Services
460315,THORNCLIFFE GRANGE NURSING HOME,Adult Social Care,Director of People,Nursing Home Long Stay Fees,,21/12/2015,"44,885.50",,Social Community Care Supplies & Services
460315,TURNING POINT,Adult Social Care,Director of People,Nursing Home Long Stay Fees,,21/12/2015,"14,957.88",,Social Community Care Supplies & Services
460315,UNITED RESPONSE,Adult Social Care,Director of People,Nursing Home Long Stay Fees,,21/12/2015,"48,762.00",,Social Community Care Supplies & Services
460315,VICTORIA NURSING HOME,Adult Social Care,Director of People,Nursing Home Long Stay Fees,,21/12/2015,"8,768.57",,Social Community Care Supplies & Services
460315,WESTMINSTER HEALTH CARE LTD,Adult Social Care,Director of People,Nursing Home Long Stay Fees,,21/12/2015,"3,192.07",,Social Community Care Supplies & Services
460315,WINDMILL CARE HOME,Adult Social Care,Director of People,Nursing Home Long Stay Fees,,21/12/2015,"2,040.29",,Social Community Care Supplies & Services
460315,WOODLANDS RESIDENTIAL CARE HOME,Adult Social Care,Director of People,Nursing Home Long Stay Fees,,21/12/2015,"13,685.46",,Social Community Care Supplies & Services
460315,HALF ACRE HOUSE,Adult Social Care,Director of People,Nursing Home Long Stay Fees,,21/12/2015,"1,776.92",,Social Community Care
460315,DARNTON HOUSE,Adult Social Care,Director of People,Nursing Home Long Stay Fees,,21/12/2015,"12,383.14",,Social Community Care
460315,TREETON GRANGE NURSING HOME,Adult Social Care,Director of People,Nursing Home Long Stay Fees,,21/12/2015,"1,262.98",,Social Community Care Supplies & Services
460315,HILLTOP HALL,Adult Social Care,Director of People,Nursing Home Long Stay Fees,,21/12/2015,"6,418.41",,Unclassifiable
460315,HEATHCOTES CARE,Adult Social Care,Director of People,Nursing Home Long Stay Fees,,21/12/2015,"19,239.27",,Social Community Care
460315,HAMILTON HOUSE NURSING HOME,Adult Social Care,Director of People,Nursing Home Long Stay Fees,,21/12/2015,713.89,,Social Community Care Supplies & Services
460315,RUSHCLIFFE CARE LTD T/A OAKFORD MANOR NURSING HOME,Adult Social Care,Director of People,Nursing Home Long Stay Fees,,21/12/2015,"2,608.00",,Social Community Care Supplies & Services
460315,FERN BANK,Adult Social Care,Director of People,Nursing Home Long Stay Fees,,21/12/2015,"17,007.86",,Social Community Care Supplies & Services
460315,ACORN LODGE CARE HOME,Adult Social Care,Director of People,Nursing Home Long Stay Fees,,21/12/2015,"1,857.79",,Social Community Care Supplies & Services
460315,RIVERSIDE CARE CENTRE,Adult Social Care,Director of People,Nursing Home Long Stay Fees,,21/12/2015,"49,709.72",,Social Community Care Supplies & Services
460315,EQUALIBRIUM HEALTH CARE,Adult Social Care,Director of People,Nursing Home Long Stay Fees,,21/12/2015,"10,224.28",,Social Community Care Supplies & Services
460315,HOMELEIGH,Adult Social Care,Director of People,Nursing Home Long Stay Fees,,21/12/2015,"23,435.71",,Social Community Care Supplies & Services
460315,EAGLE HOUSE CARE HOME,Adult Social Care,Director of People,Nursing Home Long Stay Fees,,21/12/2015,"3,034.59",,Social Community Care Supplies & Services
460315,MARINERS COURT CARE HOME,Adult Social Care,Director of People,Nursing Home Long Stay Fees,,21/12/2015,960.29,,Public Bodies
460315,THE FREMANTLE TRUST,Adult Social Care,Director of People,Nursing Home Long Stay Fees,,21/12/2015,"5,332.88",,Social Community Care Supplies & Services
470623,OMSER (SCOTLAND) LTD,Environmental Services,Director of Place,General Materials,,02/12/2015,"5,289.75",,Unclassifiable
470629,J & J HARRISON LTD,Environmental Services,Director of Place,Sub-contractor Services,,15/10/2015,"1,557.00",,Unclassifiable
470629,SRL TRAFFIC SYSTEMS LTD,Environmental Services,Director of Place,General Materials,,04/11/2015,"6,990.00",,Unclassifiable
470631,AGGREGATE INDUSTRIES UK LIMITED,Environmental Services,Director of Place,General Materials,,12/10/2015,"2,712.39",,Highway Equipment & Materials
470631,ALTITUDE SERVICES,Environmental Services,Director of Place,Sub-contractor Services,,12/10/2015,"33,054.46",,Utilities
470631,ARCO LIMITED,Civil Engineers,Director of Place,Debits Goods Received,,12/10/2015,"1,004.22",,Clothing
470631,ARCO LIMITED,Engineers Client,Director of Place,General Materials,,12/10/2015,250.00,,Clothing
470631,ARCO LIMITED,Environmental Services,Director of Place,General Materials,,12/10/2015,207.93,,Clothing
470631,BENCHMARK BUILDING SUPPLIES LTD,Civil Engineers,Director of Place,Debits Goods Received,,12/10/2015,546.80,,Building Construction Materials
470631,BENCHMARK BUILDING SUPPLIES LTD,Environmental Services,Director of Place,General Materials,,12/10/2015,162.90,,Building Construction Materials
470631,EAGLE CIVIL ENGINEERING LTD,Environmental Services,Director of Place,General Materials,,12/10/2015,644.40,,Highway Equipment & Materials�
470631,EAGLE CIVIL ENGINEERING LTD,Environmental Services,Director of Place,Sub-contractor Services,,12/10/2015,"23,524.17",,Highway Equipment & Materials�
470631,ELLIOTT GROUP LTD,Environmental Services,Director of Place,Additional Hire,,12/10/2015,"1,119.74",,"Works -  Construction, Repair & Maintenance"
470631,ELLIOTT GROUP LTD,Environmental Services,Director of Place,General Materials,,12/10/2015,"1,119.74",,"Works -  Construction, Repair & Maintenance"
470631,KENNY BROTHERS,Environmental Services,Director of Place,Sub-contractor Services,,12/10/2015,908.80,,Non 3rd Party spend  
470631,KONSTRUCTA HIRE LIMITED,Environmental Services,Director of Place,Additional Hire,,12/10/2015,"1,032.00",,"Works -  Construction, Repair & Maintenance"
470631,M.C. & M.A. STEWART HAULAGE LTD,Environmental Services,Director of Place,General Materials,,12/10/2015,"1,533.63",,Horticultural
470631,SECURETASK SECURITY LTD,Environmental Services,Director of Place,Sub-contractor Services,,12/10/2015,"5,601.94",,Facilities & Management Services
470631,SPEEDY ASSET SERVICES LTD,Environmental Services,Director of Place,Additional Hire,,12/10/2015,189.00,,Building Construction Materials
470631,SPEEDY ASSET SERVICES LTD,Environmental Services,Director of Place,General Materials,,12/10/2015,"1,125.90",,Building Construction Materials
470631,STAINTON METAL CO LTD,Civil Engineers,Director of Place,Debits Goods Received,,12/10/2015,"2,555.20",,Highway Equipment & Materials�
470631,TAMESIDE SPORTS TRUST,Environmental Services,Director of Place,Sub-contractor Services,,12/10/2015,"65,120.00",,Leisure Services
470631,TARMAC CENTRAL LIMITED,Civil Engineers,Director of Place,Debits Goods Received,,12/10/2015,"3,398.27",,Highway Equipment & Materials�
470631,WOLSELEY UK LTD,Environmental Services,Director of Place,General Materials,,12/10/2015,"6,039.67",,Highway Equipment & Materials�
470631,HMS DECORATIVE SURFACING LTD,Environmental Services,Director of Place,Sub-contractor Services,,12/10/2015,"2,063.25",,Building Construction Materials
470631,HARTTRON  LTD,Environmental Services,Director of Place,General Materials,,12/10/2015,"6,000.00",,"Works -  Construction, Repair & Maintenance"
470631,HARTTRON  LTD,Environmental Services,Director of Place,Sub-contractor Services,,12/10/2015,"2,160.00",,"Works -  Construction, Repair & Maintenance"
470631,VIRIDOR,Environmental Services,Director of Place,Sub-contractor Services,,12/10/2015,"33,139.96",,Environmental Services
470631,SOLUTIONS SK LIMITED,Engineers Client,Director of Place,General Materials,,12/10/2015,357.10,,Facilities & Management Services
470631,SOLUTIONS SK LIMITED,Environmental Services,Director of Place,General Materials,,12/10/2015,"1,056.04",,Facilities & Management Services
470631,SOLUTIONS SK LIMITED,Environmental Services,Director of Place,Tipping Facility Fees,,12/10/2015,"1,320.00",,Facilities & Management Services
470631,CONSIDERATE CONSTRUCTORS SCHEME,Environmental Services,Director of Place,General Materials,,12/10/2015,297.50,,Financial Services
470631,CONSIDERATE CONSTRUCTORS SCHEME,Environmental Services,Director of Place,Sub-contractor Services,,12/10/2015,450.00,,Financial Services
470631,STIRLING LLOYD POLYCHEM LTD,Environmental Services,Director of Place,General Materials,,12/10/2015,"2,064.40",,Unclassifiable
470631,MATHER AND STUART GENERATORS LTD,Environmental Services,Director of Place,General Materials,,12/10/2015,616.00,,Horticultural
470631,RAM SAFETY SOLUTIONS LTD,Environmental Services,Director of Place,Training Course Costs,,12/10/2015,"1,810.00",,Human Resources
470631,NORTH WEST SERVICES,Environmental Services,Director of Place,Training Course Costs,,12/10/2015,"1,360.00",,Human Resources
470631,CASTINGS SERVICES LTD,Civil Engineers,Director of Place,Debits Goods Received,,12/10/2015,930.00,,Building Construction Materials
470631,INSTARMAC GROUP PLC,Civil Engineers,Director of Place,Debits Goods Received,,12/10/2015,"2,506.00",,Highway Equipment & Materials�
470631,COLAS LTD,Civil Engineers,Director of Place,Debits Goods Received,,12/10/2015,621.60,,Highway Equipment & Materials�
470631,NU FIRE & SECURITY LTD,Environmental Services,Director of Place,General Materials,,12/10/2015,"3,264.50",,Facilities & Management Services
470631,SRL TRAFFIC SYSTEMS LTD,Environmental Services,Director of Place,General Materials,,04/11/2015,995.00,,Unclassifiable
470632,AGGREGATE INDUSTRIES UK LIMITED,Environmental Services,Director of Place,General Materials,,19/10/2015,"3,655.43",,Highway Equipment & Materials
470632,AJC ROAD SWEEPERS,Environmental Services,Director of Place,Sub-contractor Services,,19/10/2015,"2,812.50",,Vehicles
470632,BENCHMARK BUILDING SUPPLIES LTD,Environmental Services,Director of Place,General Materials,,19/10/2015,"15,443.54",,Building Construction Materials
470632,EAGLE CIVIL ENGINEERING LTD,Environmental Services,Director of Place,Sub-contractor Services,,19/10/2015,"8,015.27",,Highway Equipment & Materials�
470632,ELLIOTT GROUP LTD,Environmental Services,Director of Place,General Materials,,19/10/2015,"1,119.74",,"Works -  Construction, Repair & Maintenance"
470632,J HOPKINS CONTRACTORS  LTD,Environmental Services,Director of Place,General Materials,,19/10/2015,641.93,,"Works - Construction, Repair & Maintenance"
470632,KEYLINE BUILDERS MERCHANTS LTD,Environmental Services,Director of Place,General Materials,,19/10/2015,500.00,,Building Construction Materials
470632,MARWOOD ELECTRICAL CO,Environmental Services,Director of Place,General Materials,,19/10/2015,"2,040.30",,Highway Equipment & Materials�
470632,P P O'CONNOR,Environmental Services,Director of Place,Sub-contractor Services,Business Payment,19/10/2015,"10,381.79",,Public Bodies
470632,SECURETASK SECURITY LTD,Environmental Services,Director of Place,Sub-contractor Services,,19/10/2015,"5,051.72",,Facilities & Management Services
470632,TARMAC CENTRAL LIMITED,Civil Engineers,Director of Place,Debits Goods Received,,19/10/2015,"2,304.04",,Highway Equipment & Materials�
470632,TARMAC CENTRAL LIMITED,Environmental Services,Director of Place,General Materials,,19/10/2015,"1,488.90",,Highway Equipment & Materials�
470632,WOLSELEY UK LTD,Environmental Services,Director of Place,General Materials,,19/10/2015,"2,378.80",,Highway Equipment & Materials�
470632,ZODION LTD,Civil Engineers,Director of Place,Debits Goods Received,,19/10/2015,802.50,,Highway Equipment & Materials�
470632,HMS DECORATIVE SURFACING LTD,Environmental Services,Director of Place,Sub-contractor Services,,19/10/2015,"2,971.07",,Building Construction Materials
470632,STIRLING LLOYD POLYCHEM LTD,Environmental Services,Director of Place,General Materials,,19/10/2015,"5,875.60",,Unclassifiable
470632,BRAMHALL SURFACING LTD,Environmental Services,Director of Place,Sub-contractor Services,,19/10/2015,"45,465.19",,Unclassifiable
470632,STALYBRIDGE READYMIX LTD,Environmental Services,Director of Place,General Materials,,19/10/2015,"7,306.50",,Highway Equipment & Materials�
470632,FOCUS HEALTH AND SAFETY,Environmental Services,Director of Place,Training Course Costs,,28/10/2015,"2,100.00",,Human Resources
470632,FLOATING PONTOON SOLUTIONS LTD,Environmental Services,Director of Place,General Materials,,11/11/2015,"1,059.00",,Unclassifiable
470633,AGGREGATE INDUSTRIES UK LIMITED,Environmental Services,Director of Place,General Materials,,26/10/2015,"56,381.46",,Highway Equipment & Materials
470633,BLACHERE ILLUMINATION UK LTD,Environmental Services,Director of Place,General Materials,,28/10/2015,"1,380.00",,Highway Equipment & Materials�
470633,EAGLE CIVIL ENGINEERING LTD,Environmental Services,Director of Place,Sub-contractor Services,,26/10/2015,"12,255.24",,Highway Equipment & Materials�
470633,FAIRWAY LANDSCAPES LTD,Environmental Services,Director of Place,Sub-contractor Services,,26/10/2015,"20,973.00",,"Works - Construction, Repair & Maintenance"
470633,KENNY BROTHERS,Environmental Services,Director of Place,General Materials,,26/10/2015,935.23,,Non 3rd Party spend  
470633,KENNY BROTHERS,Environmental Services,Director of Place,Sub-contractor Services,,26/10/2015,"4,050.24",,Non 3rd Party spend  
470633,MARWOOD ELECTRICAL CO,Environmental Services,Director of Place,General Materials,,26/10/2015,"1,252.80",,Highway Equipment & Materials�
470633,P F CUSACK LTD,Civil Engineers,Director of Place,Debits Goods Received,,26/10/2015,"1,409.80",,Horticultural
470633,P F CUSACK LTD,Environmental Services,Director of Place,General Materials,,26/10/2015,457.50,,Horticultural
470633,PREMIER WASTE (UK) LTD,Environmental Services,Director of Place,Sub-contractor Services,,26/10/2015,"1,050.00",,Environmental Services
470633,TARMAC CENTRAL LIMITED,Civil Engineers,Director of Place,Debits Goods Received,,26/10/2015,"3,746.72",,Highway Equipment & Materials�
470633,WOLSELEY UK LTD,Environmental Services,Director of Place,General Materials,,26/10/2015,"1,445.42",,Highway Equipment & Materials�
470633,RAM SAFETY SOLUTIONS LTD,Environmental Services,Director of Place,Training Course Costs,,26/10/2015,"3,315.00",,Human Resources
470633,STALYBRIDGE READYMIX LTD,Environmental Services,Director of Place,General Materials,,26/10/2015,"3,878.00",,Highway Equipment & Materials�
470633,NAL LIMITED,Environmental Services,Director of Place,General Materials,,26/10/2015,585.00,,Highway Equipment & Materials
470633,SUPPLY UK HIRE SHOPS LTD,Environmental Services,Director of Place,General Materials,,26/10/2015,"1,600.00",,Building Construction Materials
470634,AGGREGATE INDUSTRIES UK LIMITED,Environmental Services,Director of Place,General Materials,,02/11/2015,"4,628.78",,Highway Equipment & Materials
470634,ARCO LIMITED,Civil Engineers,Director of Place,Debits Goods Received,,02/11/2015,"2,618.09",,Clothing
470634,ARCO LIMITED,Environmental Services,Director of Place,General Materials,,02/11/2015,102.06,,Clothing
470634,BENCHMARK BUILDING SUPPLIES LTD,Environmental Services,Director of Place,General Materials,,02/11/2015,"2,173.56",,Building Construction Materials
470634,EAGLE CIVIL ENGINEERING LTD,Environmental Services,Director of Place,Sub-contractor Services,,02/11/2015,"8,777.35",,Highway Equipment & Materials�
470634,FAIRWAY LANDSCAPES LTD,Environmental Services,Director of Place,Sub-contractor Services,,02/11/2015,"6,778.40",,"Works - Construction, Repair & Maintenance"
470634,KEYLINE BUILDERS MERCHANTS LTD,Environmental Services,Director of Place,General Materials,,02/11/2015,518.67,,Building Construction Materials
470634,MARWOOD ELECTRICAL CO,Civil Engineers,Director of Place,Debits Goods Received,,02/11/2015,922.44,,Highway Equipment & Materials�
470634,TARMAC CENTRAL LIMITED,Civil Engineers,Director of Place,Debits Goods Received,,02/11/2015,689.90,,Highway Equipment & Materials�
470634,ZEBRITE LTD,Environmental Services,Director of Place,General Materials,,02/11/2015,"7,000.00",,Highway Equipment & Materials�
470634,HMS DECORATIVE SURFACING LTD,Environmental Services,(blank),General Materials,,02/11/2015,"13,842.82",,Building Construction Materials
470634,BRAMHALL SURFACING LTD,Environmental Services,Director of Place,Sub-contractor Services,,02/11/2015,"8,110.54",,Unclassifiable
470634,HUGH LOGAN ENGINEERING,Civil Engineers,Director of Place,Debits Goods Received,,02/11/2015,"1,876.00",,Highway Equipment & Materials�
470635,AGGREGATE INDUSTRIES UK LIMITED,Environmental Services,Director of Place,General Materials,,09/11/2015,"2,432.70",,Highway Equipment & Materials
470635,APSE,Environmental Services,Director of Place,Training Course Costs,,09/11/2015,516.00,,Unclassifiable
470635,ARCO LIMITED,Civil Engineers,Director of Place,Debits Goods Received,,09/11/2015,423.90,,Clothing
470635,ARCO LIMITED,Environmental Services,Director of Place,General Materials,,09/11/2015,317.82,,Clothing
470635,CBS (NORTH WEST) LTD,Environmental Services,Director of Place,Sub-contractor Services,,09/11/2015,"6,621.25",,"Works - Construction, Repair & Maintenance"
470635,FAIRWAY LANDSCAPES LTD,Environmental Services,Director of Place,Sub-contractor Services,,09/11/2015,"6,585.00",,"Works - Construction, Repair & Maintenance"
470635,KEYLINE BUILDERS MERCHANTS LTD,Environmental Services,Director of Place,General Materials,,09/11/2015,"6,150.00",,Building Construction Materials
470635,KONSTRUCTA HIRE LIMITED,Environmental Services,Director of Place,General Materials,,09/11/2015,"1,032.00",,"Works -  Construction, Repair & Maintenance"
470635,NEW CHARTER BUILD CO LTD,Environmental Services,Director of Place,Sub-contractor Services,,09/11/2015,"4,412.81",,"Works -  Construction, Repair & Maintenance"
470635,RAM SAFETY SOLUTIONS LTD,Environmental Services,Director of Place,Training Course Costs,,09/11/2015,900.00,,Human Resources
470635,MAY GURNEY LTD,Civil Engineers,Director of Place,Debits Goods Received,,09/11/2015,"3,555.00",,Highway Equipment & Materials�
470635,COMPASS MINERALS UK LTD,Civil Engineers,Director of Place,Debits Goods Received,,09/11/2015,906.91,,Highway Equipment & Materials
470635,S.FELL PAVING PROJECTS,Environmental Services,Director of Place,Sub-contractor Services,,12/11/2015,"8,660.00",,Environmental Services
470635,FLOATING PONTOON SOLUTIONS LTD,Environmental Services,Director of Place,General Materials,,11/11/2015,"1,881.00",,Unclassifiable
470635,DIAMOND DECORATORS LTD,Environmental Services,Director of Place,Sub-contractor Services,,18/11/2015,"14,707.00",,Building Construction Materials
470636,ABACUS LIGHTING LTD,Civil Engineers,Director of Place,Debits Goods Received,,16/11/2015,"7,093.80",,Highway Equipment & Materials�
470636,ABACUS LIGHTING LTD,Environmental Services,Director of Place,General Materials,,16/11/2015,120.00,,Highway Equipment & Materials�
470636,AGGREGATE INDUSTRIES UK LIMITED,Environmental Services,Director of Place,General Materials,,16/11/2015,"2,069.94",,Highway Equipment & Materials
470636,AJC ROAD SWEEPERS,Environmental Services,Director of Place,Sub-contractor Services,,16/11/2015,"1,125.00",,Vehicles
470636,ARCO LIMITED,Civil Engineers,Director of Place,Debits Goods Received,,16/11/2015,"1,395.39",,Clothing
470636,ARCO LIMITED,Environmental Services,Director of Place,General Materials,,16/11/2015,"1,533.04",,Clothing
470636,BENCHMARK BUILDING SUPPLIES LTD,Environmental Services,Director of Place,General Materials,,16/11/2015,"5,383.80",,Building Construction Materials
470636,EAGLE CIVIL ENGINEERING LTD,Environmental Services,Director of Place,Sub-contractor Services,,16/11/2015,"20,104.55",,Highway Equipment & Materials�
470636,ELLIOTT GROUP LTD,Environmental Services,Director of Place,General Materials,,16/11/2015,917.34,,"Works -  Construction, Repair & Maintenance"
470636,GENERAL UTILITIES NORTHWEST LTD,Environmental Services,Director of Place,Sub-contractor Services,,16/11/2015,600.00,,Environmental Services
470636,KEN TAYLOR SUPPLIES LTD,Civil Engineers,Director of Place,Debits Goods Received,,16/11/2015,128.20,,Unclassifiable
470636,KEN TAYLOR SUPPLIES LTD,Environmental Services,Director of Place,General Materials,,16/11/2015,"3,474.80",,Unclassifiable
470636,MARCHINGTON STONE,Environmental Services,Director of Place,General Materials,,16/11/2015,"5,491.41",,Building Construction Materials
470636,P F CUSACK LTD,Civil Engineers,Director of Place,Debits Goods Received,,16/11/2015,670.57,,Horticultural
470636,SECURETASK SECURITY LTD,Environmental Services,Director of Place,Sub-contractor Services,,16/11/2015,"5,991.70",,Facilities & Management Services
470636,TARMAC CENTRAL LIMITED,Civil Engineers,Director of Place,Debits Goods Received,,16/11/2015,"6,584.80",,Highway Equipment & Materials�
470636,TARMAC CENTRAL LIMITED,Environmental Services,Director of Place,General Materials,,16/11/2015,"2,892.19",,Highway Equipment & Materials�
470636,VERSALIFT DISTRIBUTORS (UK) LTD,Environmental Services,Director of Place,Training Course Costs,,16/11/2015,640.00,,Vehicles
470636,WOLSELEY UK LTD,Civil Engineers,Director of Place,Debits Goods Received,,16/11/2015,420.80,,Highway Equipment & Materials�
470636,WOLSELEY UK LTD,Environmental Services,Director of Place,General Materials,,16/11/2015,710.43,,Highway Equipment & Materials�
470636,VIRIDOR,Environmental Services,Director of Place,Sub-contractor Services,,16/11/2015,"55,194.80",,Environmental Services
470636,SOLUTIONS SK LIMITED,Engineers Client,Director of Place,General Materials,,16/11/2015,"2,169.80",,Facilities & Management Services
470636,SOLUTIONS SK LIMITED,Environmental Services,Director of Place,General Materials,,16/11/2015,452.08,,Facilities & Management Services
470636,MATHER AND STUART GENERATORS LTD,Environmental Services,Director of Place,General Materials,,16/11/2015,756.00,,Horticultural
470636,NORTH WEST SERVICES,Environmental Services,Director of Place,Training Course Costs,,16/11/2015,"1,260.00",,Human Resources
470636,INSTARMAC GROUP PLC,Environmental Services,Director of Place,General Materials,,16/11/2015,"1,464.00",,Highway Equipment & Materials�
470636,BRAMHALL SURFACING LTD,Environmental Services,Director of Place,Sub-contractor Services,,16/11/2015,"26,088.00",,Unclassifiable
470636,FLOATING PONTOON SOLUTIONS LTD,Environmental Services,Director of Place,General Materials,,16/11/2015,"2,341.50",,Unclassifiable
470636,GARCIA AND SYKES LTD,Environmental Services,Director of Place,Sub-contractor Services,,16/11/2015,"1,175.00",,Unclassifiable
470636,JOHN SMITH GROUNDWORK,Environmental Services,Director of Place,Sub-contractor Services,,16/11/2015,"17,078.15",,Unclassifiable
470636,INNOVATIVE GLOBAL PRODUCTS LTD,Civil Engineers,Director of Place,Debits Goods Received,,16/11/2015,"2,802.60",,Highway Equipment & Materials�
470637,AJC ROAD SWEEPERS,Environmental Services,Director of Place,Sub-contractor Services,,23/11/2015,525.00,,Vehicles
470637,ALTITUDE SERVICES,Environmental Services,Director of Place,General Materials,,23/11/2015,135.46,,Utilities
470637,ALTITUDE SERVICES,Environmental Services,Director of Place,Sub-contractor Services,,23/11/2015,"16,013.02",,Utilities
470637,ARCO LIMITED,Civil Engineers,Director of Place,Debits Goods Received,,23/11/2015,985.51,,Clothing
470637,ARCO LIMITED,Environmental Services,Director of Place,General Materials,,23/11/2015,379.32,,Clothing
470637,BENCHMARK BUILDING SUPPLIES LTD,Civil Engineers,Director of Place,Debits Goods Received,,23/11/2015,"2,102.40",,Building Construction Materials
470637,CBS (NORTH WEST) LTD,Environmental Services,Director of Place,Sub-contractor Services,,23/11/2015,"1,153.20",,"Works - Construction, Repair & Maintenance"
470637,EAGLE CIVIL ENGINEERING LTD,Environmental Services,Director of Place,Sub-contractor Services,,23/11/2015,"4,716.82",,Highway Equipment & Materials�
470637,ELLIOTT GROUP LTD,Environmental Services,Director of Place,General Materials,,23/11/2015,627.00,,"Works -  Construction, Repair & Maintenance"
470637,FAIRWAY LANDSCAPES LTD,Environmental Services,Director of Place,Sub-contractor Services,,23/11/2015,"8,566.90",,"Works - Construction, Repair & Maintenance"
470637,MARWOOD ELECTRICAL CO,Civil Engineers,Director of Place,Debits Goods Received,,23/11/2015,671.40,,Highway Equipment & Materials�
470637,NEW CHARTER BUILD CO LTD,Environmental Services,Director of Place,Sub-contractor Services,,23/11/2015,599.19,,"Works -  Construction, Repair & Maintenance"
470637,P P O'CONNOR,Environmental Services,Director of Place,Sub-contractor Services,Business Payment,23/11/2015,"19,867.06",,Public Bodies
470637,PG FABRICATIONS,Civil Engineers,Director of Place,Debits Goods Received,,23/11/2015,-944.00,,"Works - Construction, Repair & Maintenance"
470637,PG FABRICATIONS,Environmental Services,Director of Place,Sub-contractor Services,,23/11/2015,"4,720.00",,"Works - Construction, Repair & Maintenance"
470637,T N ROBINSON LTD,Environmental Services,Director of Place,General Materials,,23/11/2015,"1,789.50",,Building Construction Materials
470637,TARMAC CENTRAL LIMITED,Civil Engineers,Director of Place,Debits Goods Received,,23/11/2015,"2,492.89",,Highway Equipment & Materials�
470637,W & B FORMWORK CO 1990,Environmental Services,Director of Place,Sub-contractor Services,,25/11/2015,"14,390.00",,"Works - Construction, Repair & Maintenance"
470637,WOLSELEY UK LTD,Civil Engineers,Director of Place,Debits Goods Received,,23/11/2015,525.00,,Highway Equipment & Materials�
470637,INSTARMAC GROUP PLC,Civil Engineers,Director of Place,Debits Goods Received,,23/11/2015,"1,284.00",,Highway Equipment & Materials�
470637,BRAMHALL SURFACING LTD,Environmental Services,Director of Place,Sub-contractor Services,,23/11/2015,"16,494.38",,Unclassifiable
470637,L&R ROADLINES LTD,Environmental Services,Director of Place,Sub-contractor Services,,23/11/2015,"5,300.52",,Highway Equipment & Materials
470637,S.FELL PAVING PROJECTS,Environmental Services,Director of Place,Sub-contractor Services,,23/11/2015,"10,175.00",,Environmental Services
470638,AGGREGATE INDUSTRIES UK LIMITED,Environmental Services,Director of Place,General Materials,,02/12/2015,"3,171.45",,Highway Equipment & Materials
470638,BENCHMARK BUILDING SUPPLIES LTD,Environmental Services,Director of Place,General Materials,,02/12/2015,"1,696.50",,Building Construction Materials
470638,EAGLE CIVIL ENGINEERING LTD,Environmental Services,Director of Place,Sub-contractor Services,,02/12/2015,"1,366.80",,Highway Equipment & Materials�
470638,FAIRWAY LANDSCAPES LTD,Environmental Services,Director of Place,Sub-contractor Services,,02/12/2015,899.60,,"Works - Construction, Repair & Maintenance"
470638,KENNY BROTHERS,Environmental Services,Director of Place,Sub-contractor Services,,02/12/2015,"10,908.90",,Non 3rd Party spend  
470638,M.C. & M.A. STEWART HAULAGE LTD,Environmental Services,Director of Place,General Materials,,02/12/2015,"2,830.50",,Horticultural
470638,PREMIER WASTE (UK) LTD,Environmental Services,Director of Place,Sub-contractor Services,,02/12/2015,900.00,,Environmental Services
470638,W & B FORMWORK CO 1990,Environmental Services,Director of Place,Sub-contractor Services,,02/12/2015,"1,710.00",,"Works - Construction, Repair & Maintenance"
470638,WOLSELEY UK LTD,Environmental Services,Director of Place,General Materials,,02/12/2015,"9,334.86",,Highway Equipment & Materials�
470638,ANSCO SIGNS LIMITED,Civil Engineers,Director of Place,Debits Goods Received,,02/12/2015,828.00,,Highway Equipment & Materials�
470638,JOHN SMITH GROUNDWORK,Environmental Services,Director of Place,Sub-contractor Services,,02/12/2015,"1,301.00",,Unclassifiable
470638,DECORATIVE CONCRETE (UK) LTD,Environmental Services,Director of Place,Sub-contractor Services,,02/12/2015,500.00,,Unclassifiable
470638,CIVICA UK LTD,Environmental Services,Director of Place,Computer Software,,02/12/2015,"10,761.10",,Information Communication Technology
470638,BLAST AWAY CLEANING (NORTH WEST) LTD,Environmental Services,Director of Place,Sub-contractor Services,,10/12/2015,"5,580.00",,Environmental Services
470639,AGGREGATE INDUSTRIES UK LIMITED,Environmental Services,Director of Place,General Materials,,09/12/2015,"2,021.01",,Highway Equipment & Materials
470639,BENCHMARK BUILDING SUPPLIES LTD,Environmental Services,Director of Place,General Materials,,09/12/2015,"11,101.60",,Building Construction Materials
470639,EAGLE CIVIL ENGINEERING LTD,Environmental Services,Director of Place,Sub-contractor Services,,09/12/2015,"2,118.91",,Highway Equipment & Materials�
470639,GENERAL UTILITIES NORTHWEST LTD,Environmental Services,Director of Place,Sub-contractor Services,,09/12/2015,600.00,,Environmental Services
470639,KEN TAYLOR SUPPLIES LTD,Environmental Services,Director of Place,General Materials,,09/12/2015,"2,032.00",,Unclassifiable
470639,KENNY BROTHERS,Environmental Services,Director of Place,Sub-contractor Services,,09/12/2015,"3,022.03",,Non 3rd Party spend  
470639,MALLATITE LTD,Civil Engineers,Director of Place,Debits Goods Received,,09/12/2015,"5,434.80",,Highway Equipment & Materials�
470639,NEW CHARTER BUILD CO LTD,Environmental Services,Director of Place,Sub-contractor Services,,09/12/2015,"1,090.96",,"Works -  Construction, Repair & Maintenance"
470639,PG FABRICATIONS,Environmental Services,Director of Place,Sub-contractor Services,,09/12/2015,"1,446.00",,"Works - Construction, Repair & Maintenance"
470639,PG FABRICATIONS,Multiple Heads of Service,Multiple Strategic Directorates,Tax Retained Sub Contractors,,09/12/2015,-81.60,,"Works - Construction, Repair & Maintenance"
470639,TARMAC CENTRAL LIMITED,Civil Engineers,Director of Place,Debits Goods Received,,09/12/2015,"2,447.45",,Highway Equipment & Materials�
470639,HMS DECORATIVE SURFACING LTD,Environmental Services,(blank),Stores Purchases,,09/12/2015,"7,437.15",,Building Construction Materials
470639,DIAMOND DECORATORS LTD,Environmental Services,Director of Place,Sub-contractor Services,,09/12/2015,"13,428.50",,Building Construction Materials
470639,DIAMOND DECORATORS LTD,Multiple Heads of Service,Multiple Strategic Directorates,Tax Retained Sub Contractors,,09/12/2015,"-2,685.70",,Building Construction Materials
470639,DECORWRIGHT LIMITED,Environmental Services,Director of Place,Sub-contractor Services,,09/12/2015,"9,200.00",,"Works - Construction, Repair & Maintenance"
470639,DECORWRIGHT LIMITED,Multiple Heads of Service,Multiple Strategic Directorates,Tax Retained Sub Contractors,,09/12/2015,"-1,704.00",,"Works - Construction, Repair & Maintenance"
470640,AGGREGATE INDUSTRIES UK LIMITED,Environmental Services,Director of Place,General Materials,,14/12/2015,"5,155.71",,Highway Equipment & Materials
470640,BENCHMARK BUILDING SUPPLIES LTD,Environmental Services,Director of Place,General Materials,,14/12/2015,"95,160.10",,Building Construction Materials
470640,BLACHERE ILLUMINATION UK LTD,Environmental Services,Director of Place,General Materials,,14/12/2015,"1,295.00",,Highway Equipment & Materials�
470640,EAGLE CIVIL ENGINEERING LTD,Environmental Services,Director of Place,General Materials,,14/12/2015,0.00,,Highway Equipment & Materials�
470640,EAGLE CIVIL ENGINEERING LTD,Environmental Services,Director of Place,Sub-contractor Services,,14/12/2015,"72,588.90",,Highway Equipment & Materials�
470640,KEN TAYLOR SUPPLIES LTD,Civil Engineers,Director of Place,Debits Goods Received,,14/12/2015,175.30,,Unclassifiable
470640,KEN TAYLOR SUPPLIES LTD,Environmental Services,Director of Place,General Materials,,14/12/2015,818.00,,Unclassifiable
470640,P CASEY (ENVIRO) LTD,Environmental Services,Director of Place,General Materials,,14/12/2015,"4,481.73",,Public Bodies
470640,P P O'CONNOR,Environmental Services,Director of Place,Sub-contractor Services,Business Payment,14/12/2015,"8,130.76",,Public Bodies
470640,STAINTON METAL CO LTD,Civil Engineers,Director of Place,Debits Goods Received,,14/12/2015,"5,680.00",,Highway Equipment & Materials�
470640,TARMAC CENTRAL LIMITED,Civil Engineers,Director of Place,Debits Goods Received,,14/12/2015,"1,501.16",,Highway Equipment & Materials�
470640,TARMAC CENTRAL LIMITED,Environmental Services,Director of Place,General Materials,,14/12/2015,310.51,,Highway Equipment & Materials�
470640,ZEBRITE LTD,Environmental Services,Director of Place,General Materials,,14/12/2015,"3,500.00",,Highway Equipment & Materials�
470640,VIRIDOR,Environmental Services,Director of Place,Sub-contractor Services,,14/12/2015,"45,157.38",,Environmental Services
470640,RAM SAFETY SOLUTIONS LTD,Environmental Services,Director of Place,Training Course Costs,,14/12/2015,"1,120.00",,Human Resources
470640,INSTARMAC GROUP PLC,Environmental Services,Director of Place,General Materials,,14/12/2015,"1,283.36",,Highway Equipment & Materials�
470640,BRAMHALL SURFACING LTD,Environmental Services,Director of Place,General Materials,,14/12/2015,"6,035.82",,Unclassifiable
470640,BRAMHALL SURFACING LTD,Environmental Services,Director of Place,Sub-contractor Services,,14/12/2015,"23,478.46",,Unclassifiable
470640,STALYBRIDGE READYMIX LTD,Environmental Services,Director of Place,General Materials,,14/12/2015,"3,767.00",,Highway Equipment & Materials�
470640,JOHN SMITH GROUNDWORK,Environmental Services,Director of Place,Sub-contractor Services,,14/12/2015,"9,392.00",,Unclassifiable
470640,SMITH BROS CAER CONAN WHOLESALE LTD,Civil Engineers,Director of Place,Debits Goods Received,,14/12/2015,552.56,,Building Construction Materials
470640,LOKFAST LTD,Environmental Services,Director of Place,General Materials,,14/12/2015,511.33,,Building Construction Materials
470641,AGGREGATE INDUSTRIES UK LIMITED,Environmental Services,Director of Place,General Materials,,21/12/2015,"2,293.96",,Highway Equipment & Materials
470641,ALTITUDE SERVICES,Environmental Services,Director of Place,General Materials,,21/12/2015,220.41,,Utilities
470641,ALTITUDE SERVICES,Environmental Services,Director of Place,Sub-contractor Services,,21/12/2015,"12,787.55",,Utilities
470641,ARCO LIMITED,Civil Engineers,Director of Place,Debits Goods Received,,21/12/2015,868.62,,Clothing
470641,ARCO LIMITED,Environmental Services,Director of Place,General Materials,,21/12/2015,185.00,,Clothing
470641,BENCHMARK BUILDING SUPPLIES LTD,Civil Engineers,Director of Place,Debits Goods Received,,21/12/2015,895.95,,Building Construction Materials
470641,EAGLE CIVIL ENGINEERING LTD,Environmental Services,Director of Place,Sub-contractor Services,,21/12/2015,"21,778.85",,Highway Equipment & Materials�
470641,ECON ENGINEERING LTD,Environmental Services,Director of Place,General Materials,,21/12/2015,"15,255.09",,Vehicles
470641,ELLIOTT GROUP LTD,Environmental Services,Director of Place,General Materials,,21/12/2015,"1,215.72",,"Works -  Construction, Repair & Maintenance"
470641,FAIRWAY LANDSCAPES LTD,Environmental Services,Director of Place,Sub-contractor Services,,21/12/2015,"5,089.00",,"Works - Construction, Repair & Maintenance"
470641,KONSTRUCTA HIRE LIMITED,Environmental Services,Director of Place,General Materials,,21/12/2015,"1,132.00",,"Works -  Construction, Repair & Maintenance"
470641,P P O'CONNOR,Environmental Services,Director of Place,General Materials,Business Payment,21/12/2015,"1,035.00",,Public Bodies
470641,P P O'CONNOR,Environmental Services,Director of Place,Sub-contractor Services,Business Payment,21/12/2015,"10,314.21",,Public Bodies
470641,SECURETASK SECURITY LTD,Environmental Services,Director of Place,Sub-contractor Services,,21/12/2015,"4,549.17",,Facilities & Management Services
470641,SPEEDY ASSET SERVICES LTD,Environmental Services,Director of Place,General Materials,,21/12/2015,872.10,,Building Construction Materials
470641,TARMAC CENTRAL LIMITED,Civil Engineers,Director of Place,Debits Goods Received,,21/12/2015,167.38,,Highway Equipment & Materials�
470641,TARMAC CENTRAL LIMITED,Environmental Services,Director of Place,General Materials,,21/12/2015,"3,088.31",,Highway Equipment & Materials�
470641,CHESHIRE SCAFFOLDS LTD,Environmental Services,Director of Place,General Materials,,21/12/2015,795.00,,Unclassifiable
470641,J & J HARRISON LTD,Environmental Services,Director of Place,Sub-contractor Services,,21/12/2015,"1,154.42",,Unclassifiable
470641,STALYBRIDGE READYMIX LTD,Environmental Services,Director of Place,General Materials,,21/12/2015,"5,486.00",,Highway Equipment & Materials�
470641,B & W MACHINERY LIMITED,Environmental Services,Director of Place,Sub-contractor Services,,21/12/2015,720.00,,Facilities & Management Services
470641,S.FELL PAVING PROJECTS,Environmental Services,Director of Place,Sub-contractor Services,,21/12/2015,"9,900.00",,Environmental Services
470641,JOHN SMITH GROUNDWORK,Environmental Services,Director of Place,Sub-contractor Services,,21/12/2015,"7,058.65",,Unclassifiable
470641,DECORWRIGHT LIMITED,Environmental Services,Director of Place,General Materials,,21/12/2015,"9,200.00",,"Works - Construction, Repair & Maintenance"
470641,DECORWRIGHT LIMITED,Environmental Services,Director of Place,Sub-contractor Services,,21/12/2015,"6,217.60",,"Works - Construction, Repair & Maintenance"
3250526,A.J.K. PLANT HIRE LTD,Environmental Services,Director of Place,Additional Hire,,15/10/2015,"1,000.00",,Unclassifiable
3250528,DENNIS EAGLE LTD,Environmental Services,Director of Place,General Materials,,01/10/2015,"3,933.68",,Vehicles
3250528,DENNIS EAGLE LTD,Transport,Director of Place,Debits Goods Received,,01/10/2015,299.13,,Vehicles
3250528,F. R. SHARROCK LIMITED,Environmental Services,Director of Place,General Materials,,01/10/2015,324.53,,Public Bodies
3250528,F. R. SHARROCK LIMITED,Transport,Director of Place,Debits Goods Received,,01/10/2015,"2,744.63",,Public Bodies
3250528,G B OILS TA CARLTON FUELS,Transport,Director of Place,Diesel Fuel,,01/10/2015,"18,307.80",,Unclassifiable
3250528,JOHNSTON SWEEPERS LTD,Environmental Services,Director of Place,General Materials,,01/10/2015,"1,503.42",,Environmental Services
3250528,WHALE TANKERS LTD,Transport,Director of Place,"Plant, Vehicles And Equipment",,01/10/2015,"132,845.00",,Vehicles
3250528,LEX AUTOLEASE,Environmental Services,Director of Place,Core Hire,,01/10/2015,728.75,,Unclassifiable
3250529,DENNIS EAGLE LTD,Environmental Services,Director of Place,General Materials,,08/10/2015,"2,145.28",,Vehicles
3250529,FREIGHT TRANSPORT ASSOCIATION,Environmental Services,Director of Place,General Equipment Purchase,,08/10/2015,120.00,,Vehicles
3250529,FREIGHT TRANSPORT ASSOCIATION,Environmental Services,Director of Place,Vehicle Inspection/Testing Costs,,08/10/2015,529.00,,Vehicles
3250529,VOLKSWAGEN GROUP LEASING,Environmental Services,Director of Place,Core Hire,,08/10/2015,735.38,,Unclassifiable
3250530,ARNOLD PLANT HIRE LTD,Environmental Services,Director of Place,Additional Hire,,15/10/2015,"3,610.00",,Unclassifiable
3250530,ARNOLD PLANT HIRE LTD,Environmental Services,Director of Place,Workshop Recharges including Misuse & Damage Costs,,15/10/2015,105.00,,Unclassifiable
3250530,BURNT TREE GROUP LIMITED,Environmental Services,Director of Place,Additional Hire,,15/10/2015,"5,495.60",,Vehicles
3250530,BURNT TREE GROUP LIMITED,Environmental Services,Director of Place,Core Hire,,15/10/2015,"1,254.00",,Vehicles
3250530,BURNT TREE GROUP LIMITED,Environmental Services,Director of Place,Workshop Recharges including Misuse & Damage Costs,,15/10/2015,115.00,,Vehicles
3250530,CBS (NORTH WEST) LTD,Environmental Services,Director of Place,Building Repairs,,15/10/2015,"4,914.90",,"Works - Construction, Repair & Maintenance"
3250530,DENNIS EAGLE LTD,Environmental Services,Director of Place,General Materials,,15/10/2015,"1,056.14",,Vehicles
3250530,DENNIS EAGLE LTD,Transport,Director of Place,General Materials,,15/10/2015,672.21,,Vehicles
3250530,F G ROWLAND LTD,Environmental Services,Director of Place,Core Hire,,15/10/2015,845.00,,Vehicles
3250530,HI-Q TYRESERVICES,Environmental Services,Director of Place,Tyre Costs,,15/10/2015,"1,697.55",,Vehicles
3250530,M T KAILL(PLANT HIRE)LTD,Environmental Services,Director of Place,Additional Hire,,15/10/2015,528.00,,Vehicles
3250530,MANCHESTER VAN HIRE LTD,Environmental Services,Director of Place,Additional Hire,,15/10/2015,544.50,,Vehicles
3250530,SHB HIRE LTD,Environmental Services,Director of Place,Core Hire,,15/10/2015,"10,313.31",,Vehicles
3250530,SVR,Environmental Services,Director of Place,Additional Hire,,15/10/2015,"3,112.00",,Charities and Voluntary Organisations
3250530,SVR,Environmental Services,Director of Place,Replacement Hire,,15/10/2015,346.00,,Charities and Voluntary Organisations
3250530,GEESINK NORBA LTD,Environmental Services,Director of Place,General Equipment Repair & Maintenance,,15/10/2015,763.23,,Environmental Services
3250530,STOCKPORT TRUCK CENTRE LTD,Environmental Services,Director of Place,General Materials,,15/10/2015,574.92,,Human Resources
3250530,RIVERSIDE TRUCK RENTAL LIMITED,Environmental Services,Director of Place,Additional Hire,,15/10/2015,"3,150.00",,Unclassifiable
3250530,RIVERSIDE TRUCK RENTAL LIMITED,Environmental Services,Director of Place,Replacement Hire,,15/10/2015,"4,290.00",,Unclassifiable
3250530,NORTHGATE VEHICLE HIRE,Environmental Services,Director of Place,Additional Hire,,15/10/2015,"1,247.84",,Vehicles
3250530,A.J.K. PLANT HIRE LTD,Environmental Services,Director of Place,Additional Hire,,15/10/2015,"1,100.00",,Unclassifiable
3250530,DAWSON RENTALS BUS AND COACH LTD,Environmental Services,Director of Place,Core Hire,,15/10/2015,"1,499.11",,Transport
3250530,PETER DOUGLASS PLATFORMS,Environmental Services,Director of Place,Additional Hire,,15/10/2015,480.00,,Vehicles
3250530,PETER DOUGLASS PLATFORMS,Environmental Services,Director of Place,Replacement Hire,,15/10/2015,320.00,,Vehicles
3250530,TOM AIRDRIE LTD,Environmental Services,Director of Place,Additional Hire,,03/12/2015,591.48,,Unclassifiable
3250531,ATS EUROMASTER LTD,Environmental Services,Director of Place,Tyre Costs,,22/10/2015,"6,408.56",,Vehicles
3250531,BURNT TREE GROUP LIMITED,Environmental Services,Director of Place,Additional Hire,,22/10/2015,570.80,,Vehicles
3250531,CONCEPT OILS LIMITED,Transport,Director of Place,Debits Goods Received,,22/10/2015,"4,187.56",,Unclassifiable
3250531,DENNIS EAGLE LTD,Environmental Services,Director of Place,General Materials,,22/10/2015,"7,433.75",,Vehicles
3250531,DENNIS EAGLE LTD,Transport,Director of Place,Debits Goods Received,,22/10/2015,138.66,,Vehicles
3250531,DIRECT FILTER/ PARTS SUPPLY,Transport,Director of Place,Debits Goods Received,,22/10/2015,578.71,,Vehicles
3250531,F & G COMMERCIALS (OLDHAM) LIMITED,Environmental Services,Director of Place,General Materials,,22/10/2015,563.41,,Vehicles
3250531,FAUN ZOELLER (UK) LTD,Environmental Services,Director of Place,General Materials,,22/10/2015,954.90,,Vehicles
3250531,G B OILS TA CARLTON FUELS,Transport,Director of Place,Diesel Fuel,,22/10/2015,"18,414.90",,Unclassifiable
3250531,HI-Q TYRESERVICES,Environmental Services,Director of Place,Tyre Costs,,22/10/2015,918.37,,Vehicles
3250531,JOHNSTON SWEEPERS LTD,Environmental Services,Director of Place,General Materials,,22/10/2015,"1,478.31",,Environmental Services
3250531,JOHNSTON SWEEPERS LTD,Transport,Director of Place,Debits Goods Received,,22/10/2015,101.80,,Environmental Services
3250531,SGM CONTRACTS LLP,Environmental Services,Director of Place,General Materials,,22/10/2015,"1,400.00",,"Works - Construction, Repair & Maintenance"
3250531,T & C MOTOR PANELS,Environmental Services,Director of Place,Insurance Claim Excess,,22/10/2015,500.00,,Vehicles
3250531,WEST PENNINE TRUCKS,Environmental Services,Director of Place,General Materials,,22/10/2015,"1,089.20",,Vehicles
3250531,PEAK PARTS,Environmental Services,Director of Place,Consumable Materials,,22/10/2015,638.86,,Vehicles
3250531,PEAK PARTS,Environmental Services,Director of Place,General Equipment Purchase,,22/10/2015,306.00,,Vehicles
3250531,PEAK PARTS,Environmental Services,Director of Place,General Equipment Repair & Maintenance,,22/10/2015,50.75,,Vehicles
3250531,PEAK PARTS,Environmental Services,Director of Place,General Materials,,22/10/2015,50.03,,Vehicles
3250531,HI-WAY COMPONENTS,Environmental Services,Director of Place,Consumable Materials,,22/10/2015,53.14,,Vehicles
3250531,HI-WAY COMPONENTS,Environmental Services,Director of Place,General Materials,,22/10/2015,585.34,,Vehicles
3250531,AUTO BATTERY SERVICE LTD,Environmental Services,Director of Place,General Materials,,22/10/2015,636.58,,Vehicles
3250531,DAWSON RENTALS BUS AND COACH LTD,Environmental Services,Director of Place,Core Hire,,22/10/2015,"1,499.11",,Transport
3250531,MASTERNAUT (UK)LTD,Environmental Services,Director of Place,General Equipment Repair & Maintenance,,22/10/2015,"1,039.50",,Information Communication Technology
3250531,MASTERNAUT (UK)LTD,Environmental Services,Director of Place,General Materials,,22/10/2015,145.00,,Information Communication Technology
3250531,CP DAVISON & SONS,Environmental Services,Director of Place,Additional Hire,,22/10/2015,"9,600.00",,Unclassifiable
3250531,CP DAVISON & SONS,Environmental Services,Director of Place,Replacement Hire,,22/10/2015,"3,520.00",,Unclassifiable
3250531,THOMAS HARDIE,Environmental Services,Director of Place,General Materials,Business Payment,22/10/2015,460.67,,Vehicles
3250531,THOMAS HARDIE,Transport,Director of Place,Debits Goods Received,Business Payment,22/10/2015,448.64,,Vehicles
3250531,MJ WILKINSON PLANT HIRE,Environmental Services,Director of Place,Additional Hire,,11/11/2015,898.00,,Unclassifiable
3250532,DENNIS EAGLE LTD,Environmental Services,Director of Place,General Materials,,29/10/2015,512.86,,Vehicles
3250532,DENNIS EAGLE LTD,Transport,Director of Place,Debits Goods Received,,29/10/2015,118.39,,Vehicles
3250532,F & G COMMERCIALS (OLDHAM) LIMITED,Environmental Services,Director of Place,General Materials,,29/10/2015,"2,237.32",,Vehicles
3250532,FAUN ZOELLER (UK) LTD,Environmental Services,Director of Place,General Materials,,29/10/2015,398.82,,Vehicles
3250532,FAUN ZOELLER (UK) LTD,Transport,Director of Place,Debits Goods Received,,29/10/2015,277.88,,Vehicles
3250532,G B OILS TA CARLTON FUELS,Transport,Director of Place,Diesel Fuel,,29/10/2015,"27,536.30",,Unclassifiable
3250532,HI-Q TYRESERVICES,Environmental Services,Director of Place,Tyre Costs,,29/10/2015,"5,756.18",,Vehicles
3250532,JOHNSTON SWEEPERS LTD,Environmental Services,Director of Place,General Materials,,29/10/2015,"2,045.04",,Environmental Services
3250532,JOHNSTON SWEEPERS LTD,Transport,Director of Place,Debits Goods Received,,29/10/2015,98.84,,Environmental Services
3250532,LEX AUTOLEASE,Environmental Services,Director of Place,Core Hire,,29/10/2015,728.75,,Unclassifiable
3250532,PEAK PARTS,Environmental Services,Director of Place,Consumable Materials,,29/10/2015,488.61,,Vehicles
3250532,PEAK PARTS,Environmental Services,Director of Place,General Equipment Repair & Maintenance,,29/10/2015,56.00,,Vehicles
3250532,PEAK PARTS,Environmental Services,Director of Place,General Materials,,29/10/2015,135.25,,Vehicles
3250532,AEBI SCHMIDT UK LTD,Environmental Services,Director of Place,General Materials,,29/10/2015,176.52,,Vehicles
3250532,AEBI SCHMIDT UK LTD,Transport,Director of Place,Debits Goods Received,,29/10/2015,"1,176.40",,Vehicles
3250532,DAWSON RENTALS BUS AND COACH LTD,Environmental Services,Director of Place,Core Hire,,29/10/2015,"1,499.11",,Transport
3250532,AC PLANT GLAZING LTD,Environmental Services,Director of Place,General Materials,,29/10/2015,528.00,,Building Construction Materials
3250532,TOLLAND PRECISION ENGINEERING LTD,Environmental Services,Director of Place,General Materials,,29/10/2015,940.00,,"Works -  Construction, Repair & Maintenance"
3250532,HOSEMASTER NORTHWEST,Environmental Services,Director of Place,General Materials,,09/11/2015,"1,416.98",,Unclassifiable
3250532,MJ WILKINSON PLANT HIRE,Environmental Services,Director of Place,Additional Hire,,11/11/2015,"1,056.00",,Unclassifiable
3250533,BURNT TREE GROUP LIMITED,Environmental Services,Director of Place,Additional Hire,,05/11/2015,"4,619.00",,Vehicles
3250533,BURNT TREE GROUP LIMITED,Environmental Services,Director of Place,Core Hire,,05/11/2015,"1,254.00",,Vehicles
3250533,BURNT TREE GROUP LIMITED,Environmental Services,Director of Place,Tyre Costs,,05/11/2015,42.38,,Vehicles
3250533,DENNIS EAGLE LTD,Environmental Services,Director of Place,General Materials,,05/11/2015,"3,741.11",,Vehicles
3250533,DENNIS EAGLE LTD,Transport,Director of Place,Debits Goods Received,,05/11/2015,734.12,,Vehicles
3250533,F & G COMMERCIALS (OLDHAM) LIMITED,Environmental Services,Director of Place,General Materials,,05/11/2015,"1,136.81",,Vehicles
3250533,G B OILS TA CARLTON FUELS,Transport,Director of Place,Diesel Fuel,,05/11/2015,"18,099.90",,Unclassifiable
3250533,MANCHESTER VAN HIRE LTD,Environmental Services,Director of Place,Additional Hire,,05/11/2015,780.00,,Vehicles
3250533,SHB HIRE LTD,Environmental Services,Director of Place,Core Hire,,05/11/2015,"9,837.38",,Vehicles
3250533,SVR,Environmental Services,Director of Place,Additional Hire,,05/11/2015,"3,178.00",,Charities and Voluntary Organisations
3250533,SVR,Environmental Services,Director of Place,Replacement Hire,,05/11/2015,288.00,,Charities and Voluntary Organisations
3250533,POWERPOST LIMITED,Environmental Services,Director of Place,General Equipment Repair & Maintenance,,05/11/2015,"1,625.85",,Unclassifiable
3250533,TOM AIRDRIE LTD,Environmental Services,Director of Place,Additional Hire,,03/12/2015,"1,326.51",,Unclassifiable
3250533,TOM AIRDRIE LTD,Environmental Services,Director of Place,General Materials,,03/12/2015,36.50,,Unclassifiable
3250534,ARNOLD PLANT HIRE LTD,Environmental Services,Director of Place,Additional Hire,,12/11/2015,"1,840.00",,Unclassifiable
3250534,ARNOLD PLANT HIRE LTD,Environmental Services,Director of Place,Workshop Recharges including Misuse & Damage Costs,,12/11/2015,134.40,,Unclassifiable
3250534,ECON ENGINEERING LTD,Transport,Director of Place,"Plant, Vehicles And Equipment",,12/11/2015,"112,123.28",,Vehicles
3250534,F. R. SHARROCK LIMITED,Transport,Director of Place,Debits Goods Received,,12/11/2015,"1,031.07",,Public Bodies
3250534,M T KAILL(PLANT HIRE)LTD,Environmental Services,Director of Place,Additional Hire,,12/11/2015,528.00,,Vehicles
3250534,TERBERG MATEC UK LTD,Environmental Services,Director of Place,General Materials,,16/11/2015,624.21,,Environmental Services
3250534,RIVERSIDE TRUCK RENTAL LIMITED,Environmental Services,Director of Place,Additional Hire,,12/11/2015,"3,850.00",,Unclassifiable
3250534,RIVERSIDE TRUCK RENTAL LIMITED,Environmental Services,Director of Place,Replacement Hire,,12/11/2015,"4,290.00",,Unclassifiable
3250534,NORTHGATE VEHICLE HIRE,Environmental Services,Director of Place,Additional Hire,,12/11/2015,623.92,,Vehicles
3250535,F G ROWLAND LTD,Environmental Services,Director of Place,Core Hire,,09/12/2015,845.00,,Vehicles
3250535,G B OILS TA CARLTON FUELS,Transport,Director of Place,Diesel Fuel,,09/12/2015,"17,444.00",,Unclassifiable
3250535,G B OILS TA CARLTON FUELS,Transport,Director of Place,Gas - Oil Fuel,,09/12/2015,"3,968.00",,Unclassifiable
3250535,G B OILS TA CARLTON FUELS,Transport,Director of Place,Petrol Fuel,,09/12/2015,"2,184.50",,Unclassifiable
3250535,A.J.K. PLANT HIRE LTD,Environmental Services,Director of Place,Additional Hire,,09/12/2015,800.00,,Unclassifiable
3250535,A.J.K. PLANT HIRE LTD,Environmental Services,Director of Place,Workshop Recharges including Misuse & Damage Costs,,09/12/2015,98.00,,Unclassifiable
3250535,CP DAVISON & SONS,Environmental Services,Director of Place,Additional Hire,,09/12/2015,"11,040.00",,Unclassifiable
3250535,CP DAVISON & SONS,Environmental Services,Director of Place,Replacement Hire,,09/12/2015,"3,200.00",,Unclassifiable
3250535,CP DAVISON & SONS,Environmental Services,Director of Place,Workshop Recharges including Misuse & Damage Costs,,09/12/2015,180.00,,Unclassifiable
3250535,MJ WILKINSON PLANT HIRE,Environmental Services,Director of Place,Additional Hire,,09/12/2015,880.00,,Unclassifiable
3250536,G B OILS TA CARLTON FUELS,Transport,Director of Place,Diesel Fuel,,26/11/2015,"18,169.20",,Unclassifiable
3250536,MASTERNAUT (UK)LTD,Environmental Services,Director of Place,General Equipment Repair & Maintenance,,26/11/2015,686.43,,Information Communication Technology
3250536,RRG GROUP  LTD,Environmental Services,Director of Place,General Materials,,26/11/2015,"1,912.69",,Vehicles
3250537,ATS EUROMASTER LTD,Environmental Services,Director of Place,Tyre Costs,,03/12/2015,"5,795.98",,Vehicles
3250537,DENNIS EAGLE LTD,Transport,Director of Place,Debits Goods Received,,03/12/2015,918.03,,Vehicles
3250537,DIRECT FILTER/ PARTS SUPPLY,Environmental Services,Director of Place,Consumable Materials,,03/12/2015,211.26,,Vehicles
3250537,DIRECT FILTER/ PARTS SUPPLY,Environmental Services,Director of Place,General Materials,,03/12/2015,256.41,,Vehicles
3250537,DIRECT FILTER/ PARTS SUPPLY,Transport,Director of Place,Debits Goods Received,,03/12/2015,284.76,,Vehicles
3250537,SHB HIRE LTD,Environmental Services,Director of Place,Core Hire,,03/12/2015,"10,313.31",,Vehicles
3250537,LEX AUTOLEASE,Environmental Services,Director of Place,Core Hire,,03/12/2015,728.75,,Unclassifiable
3250537,DAWSON RENTALS BUS AND COACH LTD,Environmental Services,Director of Place,Core Hire,,03/12/2015,"1,499.11",,Transport
3250537,HOSEMASTER NORTHWEST,Environmental Services,Director of Place,General Materials,,03/12/2015,"1,032.20",,Unclassifiable
3250538,ARNOLD PLANT HIRE LTD,Environmental Services,Director of Place,Additional Hire,,10/12/2015,"1,827.00",,Unclassifiable
3250538,ARNOLD PLANT HIRE LTD,Environmental Services,Director of Place,General Materials,,10/12/2015,202.08,,Unclassifiable
3250538,BURNT TREE GROUP LIMITED,Environmental Services,Director of Place,Additional Hire,,10/12/2015,"2,806.80",,Vehicles
3250538,BURNT TREE GROUP LIMITED,Environmental Services,Director of Place,Core Hire,,10/12/2015,"1,197.00",,Vehicles
3250538,DENNIS EAGLE LTD,Environmental Services,Director of Place,General Materials,,10/12/2015,"7,972.56",,Vehicles
3250538,ECON ENGINEERING LTD,Transport,Director of Place,"Plant, Vehicles And Equipment",,10/12/2015,"112,123.29",,Vehicles
3250538,M T KAILL(PLANT HIRE)LTD,Environmental Services,Director of Place,Additional Hire,,10/12/2015,504.00,,Vehicles
3250538,SGM CONTRACTS LLP,Environmental Services,Director of Place,General Materials,,10/12/2015,"3,005.57",,"Works - Construction, Repair & Maintenance"
3250538,SVR,Environmental Services,Director of Place,Additional Hire,,10/12/2015,938.00,,Charities and Voluntary Organisations
3250538,RIVERSIDE TRUCK RENTAL LIMITED,Environmental Services,Director of Place,Additional Hire,,10/12/2015,"3,675.00",,Unclassifiable
3250538,RIVERSIDE TRUCK RENTAL LIMITED,Environmental Services,Director of Place,Replacement Hire,,10/12/2015,"4,095.00",,Unclassifiable
3250538,TOLLAND PRECISION ENGINEERING LTD,Environmental Services,Director of Place,General Materials,,10/12/2015,"3,620.00",,"Works -  Construction, Repair & Maintenance"
3250538,TOM AIRDRIE LTD,Environmental Services,Director of Place,Additional Hire,,10/12/2015,"3,259.49",,Unclassifiable
3250538,JCB INSURANCE SERVICES LTD,Environmental Services,Director of Place,General Materials,,10/12/2015,"5,984.82",,Unclassifiable
3250538,B CONWAY TAIL LIFTS LTD,Environmental Services,Director of Place,General Materials,,10/12/2015,"3,227.00",,Unclassifiable
3250539,DENNIS EAGLE LTD,Environmental Services,Director of Place,General Materials,,17/12/2015,"6,276.76",,Vehicles
3250539,DENNIS EAGLE LTD,Transport,Director of Place,Debits Goods Received,,17/12/2015,251.69,,Vehicles
3250539,G B OILS TA CARLTON FUELS,Transport,Director of Place,Diesel Fuel,,17/12/2015,"26,598.91",,Unclassifiable
3250539,LEX AUTOLEASE,Environmental Services,Director of Place,Core Hire,,17/12/2015,728.75,,Unclassifiable
3250539,HOWARTH BROS HAULAGE LTD,Environmental Services,Director of Place,General Materials,,17/12/2015,80.00,,Unclassifiable
3250539,HOWARTH BROS HAULAGE LTD,Environmental Services,Director of Place,Vehicle Inspection/Testing Costs,,17/12/2015,499.00,,Unclassifiable
3250539,PEAK PARTS,Environmental Services,Director of Place,Consumable Materials,,17/12/2015,435.90,,Vehicles
3250539,PEAK PARTS,Environmental Services,Director of Place,General Materials,,17/12/2015,76.08,,Vehicles
3250539,AUTO BATTERY SERVICE LTD,Environmental Services,Director of Place,General Materials,,17/12/2015,749.32,,Vehicles
3250539,AUTO BATTERY SERVICE LTD,Transport,Director of Place,Debits Goods Received,,17/12/2015,115.45,,Vehicles
3250539,HYDE INDUSTRIAL SUPPLIES,Environmental Services,Director of Place,Consumable Materials,,23/12/2015,184.50,,Building Construction Materials
3250539,HYDE INDUSTRIAL SUPPLIES,Environmental Services,Director of Place,General Materials,,23/12/2015,369.00,,Building Construction Materials
3250539,CALIBRATION &CONSULTANCYSERVICES (UK) LTD,Environmental Services,Director of Place,General Equipment Repair & Maintenance,,17/12/2015,"8,248.33",,Consultancy
3250540,DENNIS EAGLE LTD,Environmental Services,Director of Place,General Materials,,23/12/2015,"1,431.00",,Vehicles
3250540,DENNIS EAGLE LTD,Transport,Director of Place,Debits Goods Received,,23/12/2015,"1,674.22",,Vehicles
3250540,FAUN ZOELLER (UK) LTD,Environmental Services,Director of Place,General Materials,,23/12/2015,"1,223.45",,Vehicles
3250540,FREIGHT TRANSPORT ASSOCIATION,Environmental Services,Director of Place,General Equipment Purchase,,23/12/2015,"1,170.00",,Vehicles
3250540,HI-Q TYRESERVICES,Environmental Services,Director of Place,General Materials,,23/12/2015,108.75,,Vehicles
3250540,HI-Q TYRESERVICES,Environmental Services,Director of Place,Tyre Costs,,23/12/2015,"3,255.31",,Vehicles
3250540,JOHNSTON SWEEPERS LTD,Environmental Services,Director of Place,General Materials,,23/12/2015,"1,629.25",,Environmental Services
3250540,TERBERG MATEC UK LTD,Environmental Services,Director of Place,General Materials,,23/12/2015,560.21,,Environmental Services
3250540,TERBERG MATEC UK LTD,Transport,Director of Place,Debits Goods Received,,23/12/2015,136.67,,Environmental Services
3250540,WHALE TANKERS LTD,Environmental Services,Director of Place,General Materials,,23/12/2015,768.25,,Vehicles
3250540,PEAK PARTS,Environmental Services,Director of Place,Consumable Materials,,23/12/2015,771.26,,Vehicles
3250540,PEAK PARTS,Environmental Services,Director of Place,General Materials,,23/12/2015,23.79,,Vehicles
3250540,AEBI SCHMIDT UK LTD,Environmental Services,Director of Place,General Materials,,23/12/2015,944.68,,Vehicles
3250540,AEBI SCHMIDT UK LTD,Transport,Director of Place,"Plant, Vehicles And Equipment",,23/12/2015,"66,272.00",,Vehicles
3250540,AUTO BATTERY SERVICE LTD,Environmental Services,Director of Place,General Materials,,23/12/2015,726.75,,Vehicles
3250540,AUTO BATTERY SERVICE LTD,Transport,Director of Place,Debits Goods Received,,23/12/2015,123.66,,Vehicles
3250540,CP DAVISON & SONS,Environmental Services,Director of Place,Additional Hire,,23/12/2015,"3,360.00",,Unclassifiable
3250540,CP DAVISON & SONS,Environmental Services,Director of Place,General Materials,,23/12/2015,520.15,,Unclassifiable
3250540,POWERPOST LIMITED,Environmental Services,Director of Place,General Equipment Repair & Maintenance,,23/12/2015,"1,125.00",,Unclassifiable
5169391,ELECTRICITY NORTH WEST LTD,Environmental Services,Director of Place,Reactive Works Engineers Recharge,,16/10/2015,"1,049.99",,Utilities
5174477,MANCHESTER CHAMBERS OFCOMMERCE & INDUSTRY,Development Growth & Investment,Director of Place,Subscriptions,,05/10/2015,"1,195.00",,Public Bodies
5186536,"PSYCH EXPERTS, N & S CONSULTANTS LTD",Adult Social Care,Director of People,Professional Services,,22/10/2015,"1,037.60",,Consultancy
5187010,M.C. & M.A. STEWART HAULAGE LTD,Environmental Services,Director of Place,General Materials,,14/10/2015,"5,160.00",,Horticultural
5191856,PG FABRICATIONS,District Assemblies,"Community,Environmental,Adult and Health Services",General Materials,,04/11/2015,"1,860.00",,"Works - Construction, Repair & Maintenance"
5194518,AGE UK TAMESIDE,Public Health,Director of Public Health,Professional Services,,12/10/2015,"17,000.00",,Environmental Services
5197220,GREATER MANCHESTER WASTE DISPOSAL AUTH.,Environmental Services,Director of Place,GMC Waste Disposal Levy,,19/10/2015,"1,376,583.00",,Environmental Services
5197223,GREATER MANCHESTER WASTE DISPOSAL AUTH.,Environmental Services,Director of Place,GMC Waste Disposal Levy,,18/11/2015,"1,376,583.00",,Environmental Services
5197224,GREATER MANCHESTER WASTE DISPOSAL AUTH.,Environmental Services,Director of Place,GMC Waste Disposal Levy,,17/12/2015,"1,376,583.00",,Environmental Services
5197573,PENNINE CARE NHS TRUST,Public Health,Director of Public Health,Professional Services,,02/11/2015,"9,780.00",,Social Community Care Supplies & Services
5198985,AGE UK TAMESIDE,Public Health,Director of Public Health,Professional Services,,12/10/2015,"30,000.00",,Environmental Services
5199304,GREATER MANCHESTER COMBINED AUTHORITY,Environmental Services,Director of Place,Passenger Transport Levy,,12/10/2015,"1,585,400.00",,Unclassifiable
5199305,GREATER MANCHESTER COMBINED AUTHORITY,Environmental Services,Director of Place,Passenger Transport Levy,,09/11/2015,"1,585,400.00",,Unclassifiable
5199306,GREATER MANCHESTER COMBINED AUTHORITY,Environmental Services,Director of Place,Passenger Transport Levy,,10/12/2015,"1,585,400.00",,Unclassifiable
5199616,PENNINE CARE NHS TRUST,Public Health,Director of Public Health,Professional Services,,08/10/2015,"98,936.00",,Social Community Care Supplies & Services
5199618,PENNINE CARE NHS TRUST,Public Health,Director of Public Health,Professional Services,,08/10/2015,"98,936.00",,Social Community Care Supplies & Services
5199836,CITY DRESSING,Environmental Services,Director of Place,"Marketing, Publicity and Recruitment",,04/11/2015,501.00,,Leisure Services
5200027,CENTRAL MANCHESTER UNIVERSITY HOSPITALS NHS FOUNDATION TRUST,Public Health,Director of Public Health,Professional Services,,04/11/2015,"6,405.28",,Consultancy
5201654,UNIVERSITY HOSPITAL OF SOUTH MANCHESTER,Public Health,Director of Public Health,Professional Services,,05/10/2015,"4,914.57",,Unclassifiable
5202653,COLIN MASTERS,Asset & Investment Partnership Management,Director of Place,Painting Works,,04/11/2015,"2,945.00",,"Works - Construction, Repair & Maintenance"
5202685,BEN HALL TREE SURGEONS,Stronger Communities,Director of People,Grants to Organisations,,23/10/2015,"1,250.00",,Horticultural
5204761,NEW BRIDGE HORIZONS,Adult Social Care,Director of People,Homecare Fees,,14/12/2015,"2,218.25",,Social Community Care Supplies & Services
5204927,NEW CHARTER HOUSING TRUST GROUP,Stronger Communities,Director of People,Authority Accommodation Rental,,08/10/2015,"12,267.76",,Unclassifiable
5205255,STEP AHEAD RESOURCE SERVICES,Adult Social Care,Director of People,Homecare Fees,,29/10/2015,850.00,,Social Community Care
5205275,STEP AHEAD RESOURCE SERVICES,Adult Social Care,Director of People,Homecare Fees,,29/10/2015,850.00,,Social Community Care
5205948,COMMUNITY AND VOLUNTARY ACTION TAMESIDE,Stronger Communities,Director of People,Professional Services,,28/10/2015,"26,846.00",,Financial Services
5206963,LUCY FAITHFULL FOUNDATION,Childrens Services,Director of People,Professional Services,,26/10/2015,657.30,,Unclassifiable
5207184,MR KELVIN RUTLEDGE QC,Adult Social Care,Director of People,Legal Fees,Business Payment,23/10/2015,600.00,,Unclassifiable
5207255,CREATIVE SUPPORT LTD,Adult Social Care,Director of People,Homecare Fees,,14/12/2015,"2,662.80",,Social Community Care Supplies & Services
5207257,CREATIVE SUPPORT LTD,Adult Social Care,Director of People,Homecare Fees,,14/12/2015,"2,662.80",,Social Community Care Supplies & Services
5207340,STEP AHEAD RESOURCE SERVICES,Adult Social Care,Director of People,Homecare Fees,,29/10/2015,850.00,,Social Community Care
5207455,RICOH UK,Education,Director of People,Printing And Stationery,,27/10/2015,600.18,,Facilities & Management Services
5207567,NHS TAMESIDE AND GLOSSOP CCG,Corporate Costs,Corporate Costs,Professional Services,,09/12/2015,"95,000.00",,Medical
5207807,CENTRAL MANCHESTER UNIVERSITY HOSPITAL NHS FT,Public Health,Director of Public Health,Professional Services,,12/10/2015,"3,864.00",,Human Resources
5207917,UNIVERSITY HOSPITAL OF SOUTH MANCHESTER,Public Health,Director of Public Health,Professional Services,,27/10/2015,720.36,,Unclassifiable
5207976,ALL SAINTS CATHOLIC COLLEGE,Education,Director of People,Training Course Costs,,03/12/2015,"1,000.00",,Education
5208518,UNIVERSITY HOSPITAL OF SOUTH MANCHESTER,Public Health,Director of Public Health,Professional Services,,12/10/2015,833.71,,Unclassifiable
5208543,CORAL PRODUCTS (MOULDINGS) PLC,Environmental Services,Director of Place,Purchase Wheeled Bins,,15/10/2015,"2,430.00",,Environmental Services
5208580,VIRGIN BLACKPOOL,Public Health,Director of Public Health,Procurement Hub Holding Account,,12/10/2015,"1,445.00",,Consultancy
5208657,AGE UK TAMESIDE,Adults Early Intervention,Director of People,Age Concern Fees,,26/11/2015,"18,640.00",,Environmental Services
5208658,AGE UK TAMESIDE,Adults Early Intervention,Director of People,Age Concern Fees,,03/12/2015,"17,520.00",,Environmental Services
5208685,AGE UK TAMESIDE,Adults Early Intervention,Director of People,Professional Services,,16/10/2015,"27,720.00",,Environmental Services
5208826,METRIC GROUP LTD,Environmental Services,Director of Place,Car Park Equipment,,29/10/2015,"2,953.16",,Traffic Management
5208962,PETERS BOOKSELLING SERVICES,Stronger Communities,Director of People,Purchase Books,,18/11/2015,"2,009.74",,Education
5208981,PATROL,Environmental Services,Director of Place,Court Fees,,22/10/2015,"4,395.20",,Unclassifiable
5208991,NORTHGATE PUBLIC SERVICES UK LTD,Exchequer,Director of Governance and Resources,Computer Software,,26/10/2015,600.00,,Information Communication Technology
5209009,PATROL,Environmental Services,Director of Place,Court Fees,,22/10/2015,"2,736.00",,Unclassifiable
5209086,NORTHGATE PUBLIC SERVICES UK LTD,Development Growth & Investment,Director of Place,Computer Software,,12/10/2015,"1,667.49",,Information Communication Technology
5209176,MS EMMA GREENHALGH,Childrens Services,Director of People,Legal Fees,Business Payment,22/10/2015,"1,500.00",,Unclassifiable
5209177,METRONET (UK) LIMITED,Asset & Investment Partnership Management,Director of Place,Security Equipment,,05/11/2015,"2,883.33",,Facilities & Management Services
5209187,UNIVERSITY HOSPITAL OF SOUTH MANCHESTER,Public Health,Director of Public Health,Professional Services,,12/10/2015,802.99,,Unclassifiable
5209365,SICO EUROPE LIMITED,Asset Management and Investment Partnership Management,Director of Place,Adaptations - Small Jobs,,02/12/2015,"1,619.00",,Furniture
5209688,NORTHGATE PUBLIC SERVICES UK LTD,Exchequer,Director of Governance and Resources,Procurement Hub Holding Account,,19/10/2015,"20,160.28",,Information Communication Technology
5209688,NORTHGATE PUBLIC SERVICES UK LTD,Development Growth & Investment,Director of Place,Computer Software,,19/10/2015,"10,080.13",,Information Communication Technology
5209744,ICSA BOARDROOM APPS LTD,Digital Tameside,Director of Place,Computer Hardware Maintenance Costs,,09/11/2015,"2,278.63",,Information Communication Technology
5209792,DAISY MACKERSIE,Asset & Investment Partnership Management,Director of Place,Legal Fees,,28/10/2015,550.00,,Unclassifiable
5209795,NHS TAMESIDE AND GLOSSOP CCG,Adult Social Care,Director of People,Professional Services,,08/10/2015,"171,900.00",,Medical
5209926,INSPIREDSPACES TAMESIDE LTD,Asset Management and Investment Partnership Management,Director of Place,Refurbishment Construction Costs,,18/11/2015,"124,315.30",,Consultancy
5209926,INSPIREDSPACES TAMESIDE LTD,Capital Programme,(blank),Furniture And Fittings,,18/11/2015,-654.00,,Consultancy
5209926,INSPIREDSPACES TAMESIDE LTD,Asset & Investment Partnership Management,Director of Place,Demolition Works,,18/11/2015,"224,883.59",,Consultancy
5209992,CENTRAL MANCHESTER UNIVERSITY HOSPITAL NHS FT,Public Health,Director of Public Health,Professional Services,,12/10/2015,"2,162.00",,Human Resources
5210085,S & M BUILDERS TAMESIDE LTD,Environmental Services,Director of Place,Cleaning Contractor Costs,,01/10/2015,"2,390.00",,"Works - Construction, Repair & Maintenance"
5210133,TRANSPORT FOR GREATER MANCHESTER,Engineers Client,Director of Place,Other Works,,12/10/2015,"1,208.68",,Transport
5210138,MINI SOIL SURVEYS (CHES & STAFFS) LTD,Environmental Services,Director of Place,Engineers Works,,19/10/2015,615.00,,Horticultural
5210142,MISS SARA LEWIS,Childrens Services,Director of People,Legal Fees,,14/10/2015,950.00,,Unclassifiable
5210164,OFSTED,Childrens Services,Director of People,Inspection Fees,,05/10/2015,"1,761.00",,Financial Services
5210577,ADVOCACY EXPERIENCE LTD,Adult Social Care,Director of People,Professional Services,,16/12/2015,"7,518.62",,Social Community Care Supplies & Services
5210621,CREATIVE SUPPORT LTD,Adult Social Care,Director of People,Homecare Fees,,29/10/2015,"1,326.08",,Social Community Care Supplies & Services
5210624,CREATIVE SUPPORT LTD,Adult Social Care,Director of People,Homecare Fees,,29/10/2015,"1,326.08",,Social Community Care Supplies & Services
5210657,CHESHIRE SCAFFOLDS LTD,Environmental Services,Director of Place,Engineers Works,,05/10/2015,977.48,,Unclassifiable
5210670,ROCHDALE MBC,Education,Director of People,Other Local Authorities Fees,,22/10/2015,"2,060.10",,Unclassifiable
5210862,THE ALBERT KENNEDY TRUST,Governance,Director of Governance and Resources,Training Course Costs,,09/11/2015,654.85,,Human Resources
5210923,VODAFONE,Multiple Heads of Service,Multiple Strategic Directorates,Procurement Hub Holding Account,,01/10/2015,"7,161.96",,Information Communication Technology
5211036,CONCEPT CARPETS,Adult Social Care,Director of People,Fixtures & Fittings Purchase,,09/10/2015,794.00,,Building Construction Materials
5211048,EXORS OF MR D WHITEHEAD,Adult Social Care,Director of People,Homecare Fees,,08/10/2015,828.38,,Unclassifiable
5211097,DWP,Multiple Heads of Service,Multiple Strategic Directorates,Claims Settled,,08/10/2015,637.00,,Unclassifiable
5211181,NEW CHARTER HOUSING TRUST GROUP,Stronger Communities,Director of People,Supporting People Gross Contract,,01/10/2015,"5,940.33",,Unclassifiable
5211217,STEP AHEAD RESOURCE SERVICES,Adult Social Care,Director of People,Homecare Fees,,08/10/2015,850.00,,Social Community Care
5211252,GALLAGHER BASSET,Multiple Heads of Service,Multiple Strategic Directorates,Reimbursement Paid To Insurers,,01/10/2015,"20,000.00",,Financial Services
5211284,DIRECT CARE (NORTH WEST) LTD,Adult Social Care,Director of People,Homecare Fees,,23/12/2015,"2,619.74",,Social Community Care Supplies & Services
5211288,PROFILE SECURITY SERVICES LIMITED,Environmental Services,Director of Place,General Materials,,05/10/2015,"4,761.90",,Facilities & Management Services
5211329,DEKKO WINDOW SYSTEMS LTD,Asset & Investment Partnership Management,Director of Place,Electricity,,01/10/2015,"1,319.64",,Unclassifiable
5211333,STEP AHEAD RESOURCE SERVICES,Adult Social Care,Director of People,Homecare Fees,,29/10/2015,850.00,,Social Community Care
5211346,TAMESIDE ARTS LTD,Adult Social Care,Director of People,Professional Services,,01/10/2015,979.20,,Leisure Services
5211566,IBI GROUP,Development Growth & Investment,Director of Place,Professional Services,,12/10/2015,"5,702.00",,Consultancy
5211577,UNIVERSITY HOSPITAL OF SOUTH MANCHESTER,Public Health,Director of Public Health,Professional Services,,27/10/2015,"1,811.49",,Unclassifiable
5211687,IBI GROUP,Engineers Client,Director of Place,Professional Services,,12/10/2015,"2,940.00",,Consultancy
5211693,PROFILE SECURITY SERVICES LIMITED,Environmental Services,Director of Place,General Materials,,05/10/2015,"4,945.05",,Facilities & Management Services
5211694,STOCKPORT NHS FOUNDATION TRUST,Public Health,Director of Public Health,Professional Services,,09/10/2015,"1,650.00",,Medical
5211707,VIRGIN BLACKPOOL,Public Health,Director of Public Health,Professional Services,,12/10/2015,"1,608.00",,Consultancy
5211744,STEP AHEAD RESOURCE SERVICES,Adult Social Care,Director of People,Homecare Fees,,29/10/2015,850.00,,Social Community Care
5211756,NORTH WEST COMMUNITY  SERVICES (GTR M/CR) LTD,Adult Social Care,Director of People,Homecare Fees,,29/10/2015,550.00,,Social Community Care Supplies & Services
5211758,CENTRAL MANCHESTER UNIVERSITY HOSPITALS NHS FOUNDATION TRUST,Public Health,Director of Public Health,Procurement Hub Holding Account,,04/11/2015,"27,876.25",,Consultancy
5211759,NORTHGATE PUBLIC SERVICES UK LTD,Development Growth & Investment,Director of Place,Computer Software,,21/12/2015,760.21,,Information Communication Technology
5211764,THE FURNISHING SERVICE (ENGLAND),Stronger Communities,Director of People,Fixtures & Fittings Purchase,,08/10/2015,"1,156.39",,Unclassifiable
5211777,AMEY METERING LTD,Environmental Services,Director of Place,Electricity,,01/10/2015,"2,700.00",,Environmental Services
5211784,NORTHGATE PUBLIC SERVICES UK LTD,Engineers Client,Director of Place,Computer Software,,08/10/2015,120.00,,Information Communication Technology
5211784,NORTHGATE PUBLIC SERVICES UK LTD,Exchequer,Director of Governance and Resources,Licences,,08/10/2015,"2,580.00",,Information Communication Technology
5211784,NORTHGATE PUBLIC SERVICES UK LTD,Stronger Communities,Director of People,Computer Software,,08/10/2015,"1,440.00",,Information Communication Technology
5211784,NORTHGATE PUBLIC SERVICES UK LTD,Adult Social Care,Director of People,Licences,,08/10/2015,20.00,,Information Communication Technology
5211784,NORTHGATE PUBLIC SERVICES UK LTD,Governance,Director of Governance and Resources,Computer Software,,08/10/2015,720.00,,Information Communication Technology
5211784,NORTHGATE PUBLIC SERVICES UK LTD,Finance,Director of Governance and Resources,Licences,,08/10/2015,120.00,,Information Communication Technology
5211795,4WAY CONSULTING LTD,Environmental Services,Director of Place,Engineers -External,,05/10/2015,"1,839.60",,Environmental Services
5211847,UNIT 4 BUSINESS SOFTWARE LIMITED,Finance,Director of Governance and Resources,Professional Consultancy Services,,19/10/2015,"25,720.44",,Financial Services
5211932,VODAFONE,Multiple Heads of Service,Multiple Strategic Directorates,Debits,,03/12/2015,"4,400.00",,Information Communication Technology
5211938,TAMESIDE HOSPITAL NHS FOUNDATION TRUST,Public Health,Director of Public Health,Professional Services,,11/11/2015,"2,637.50",,Unclassifiable
5211949,BASEMAP LIMITED,Governance,Director of Governance and Resources,Computer Software,,15/10/2015,"5,265.00",,Information Communication Technology
5211979,STOCKPORT NHS FOUNDATION TRUST,Public Health,Director of Public Health,Professional Services,,09/10/2015,"3,691.08",,Medical
5211989,OSMIS EDUCATION LIMITED,Digital Tameside,Director of Place,Professional Services,,08/10/2015,"15,035.00",,Information Communication Technology
5211991,CLOVERLEAF ADVOCACY 2000 LTD,Adult Social Care,Director of People,Professional Services,,01/10/2015,"12,408.30",,Social Community Care Supplies & Services
5211993,DWP,Multiple Heads of Service,Multiple Strategic Directorates,Claims Settled,,15/10/2015,627.00,,Unclassifiable
5212006,ARCO LIMITED,Environmental Services,Director of Place,Purchase Wheeled Bins,,02/12/2015,"4,867.09",,Clothing
5212091,CREATIVE SUPPORT LTD,Adult Social Care,Director of People,Homecare Fees,,08/10/2015,"15,126.50",,Social Community Care Supplies & Services
5212113,CABINET OFFICE ELECTROL CLAIMS UNIT,Governance,Director of Governance and Resources,Fee Income,,08/10/2015,"1,000.00",,Legal Services
5212139,JACKSON & TAYLOR LTD,Childrens Services,Director of People,Adaptations - Small Jobs,,12/10/2015,"1,450.00",,"Works -  Construction, Repair & Maintenance"
5212156,AGE UK TAMESIDE,Adults Early Intervention,Director of People,Age Concern Fees,,03/12/2015,"9,320.00",,Environmental Services
5212172,AGE UK TAMESIDE,Adults Early Intervention,Director of People,Professional Services,,16/10/2015,"13,860.00",,Environmental Services
5212226,SPECIALISED HOMES AND LODGINGS LTD,Childrens Services,Director of People,Procurement Hub Holding Account,,19/10/2015,"10,774.28",,Unclassifiable
5212234,XEROX (UK) LIMITED,Governance,Director of Governance and Resources,Photo Print Charges,,08/10/2015,"12,467.87",,Information Communication Technology
5212239,TRANSPORT FOR GREATER MANCHESTER,Engineers Client,Director of Place,Other Works,,05/10/2015,"1,260.00",,Transport
5212251,ELECTRICITY NORTH WEST LTD,Environmental Services,Director of Place,Reactive Works Engineers Recharge,,16/10/2015,609.99,,Utilities
5212252,ELECTRICITY NORTH WEST LTD,Environmental Services,Director of Place,Reactive Works Engineers Recharge,,16/10/2015,609.99,,Utilities
5212261,SSI SCHAEFER LTD,Environmental Services,Director of Place,Refuse Domestic Bin Purchases,,12/10/2015,"38,336.40",,Environmental Services
5212272,JACK DOYLE,Stronger Communities,Director of People,Professional Services,Business Payment,01/10/2015,640.00,,Unclassifiable
5212274,JAPANESE KNOTWEED CONTROL,Asset Management and Investment Partnership Management,Director of Place,Professional Weedspraying Services,,01/10/2015,"1,410.00",,Horticultural
5212276,GREAT PLACES HOUSING GROUP,Adult Social Care,Director of People,Non-Authority Accommodation Rental,,01/10/2015,"1,086.15",,Housing Management
5212326,LIFELINE PROJECT LTD (PH),Public Health,Director of Public Health,Professional Services,,01/10/2015,"297,833.00",,Consultancy
5212328,SYMOLOGY LIMITED,Environmental Services,Director of Place,Computer Software,,01/10/2015,"37,304.00",,Information Communication Technology
5212345,FRIENDS OF OXFORD PARK,Stronger Communities,Director of People,Non-Authority Accommodation Rental,,05/10/2015,870.00,,Human Resources
5212371,HOMESTART TAMESIDE & OLDHAM,Public Health,Director of Public Health,Professional Services,,19/10/2015,"6,250.00",,Social Community Care Supplies & Services
5212372,HOMESTART TAMESIDE & OLDHAM,Public Health,Director of Public Health,Professional Services,,19/10/2015,"10,416.67",,Social Community Care Supplies & Services
5212471,DWP,Multiple Heads of Service,Multiple Strategic Directorates,Claims Settled,,19/10/2015,627.00,,Unclassifiable
5212484,GEORGE HOUSE TRUST,Public Health,Director of Public Health,Professional Services,,05/10/2015,"1,750.00",,Medical
5212509,CROMWELL POLYTHENE LTD.,Environmental Services,Director of Place,Purchase Wheeled Bins,,08/10/2015,"7,189.20",,Unclassifiable
5212589,PAYPARTNERS LTD (MONTHLY),Adult Social Care,Director of People,Sub-contractor Services,,29/10/2015,805.00,,Social Community Care Supplies & Services
5212607,THE FURNISHING SERVICE (ENGLAND),Stronger Communities,Director of People,Fixtures & Fittings Purchase,,14/10/2015,843.03,,Unclassifiable
5212617,VYSIONICS ITS LTD,Environmental Services,Director of Place,General Materials,,08/10/2015,"15,975.00",,Unclassifiable
5212648,N A BROWN LTD,Environmental Services,Director of Place,General Materials,,05/10/2015,"1,059.50",,Unclassifiable
5212650,XMA LIMITED,Digital Tameside,Director of Place,It Equipment,,01/10/2015,"9,495.00",,Information Communication Technology
5212651,THE FURNISHING SERVICE (ENGLAND),Stronger Communities,Director of People,Fixtures & Fittings Purchase,,08/10/2015,560.82,,Unclassifiable
5212653,THE FURNISHING SERVICE (ENGLAND),Stronger Communities,Director of People,Fixtures & Fittings Purchase,,08/10/2015,712.27,,Unclassifiable
5212655,THE FURNISHING SERVICE (ENGLAND),Stronger Communities,Director of People,Fixtures & Fittings Purchase,,08/10/2015,607.62,,Unclassifiable
5212658,ASSESSMENT SERVICES,Development Growth & Investment,Director of Place,Licences,,01/10/2015,"2,300.00",,Public Bodies
5212659,TOGETHER FOR MENTAL WELLBEING,Adult Social Care,Director of People,Professional Services,,05/10/2015,"7,418.25",,Social Community Care
5212679,UK CONTAINER MAINTENANCE LTD,Environmental Services,Director of Place,Purchase Wheeled Bins,,27/10/2015,"2,320.80",,Unclassifiable
5212681,UK CONTAINER MAINTENANCE LTD,Environmental Services,Director of Place,Purchase Wheeled Bins,,27/10/2015,"2,419.20",,Unclassifiable
5212689,ADDLESHAW GODDARD,Asset Management and Investment Partnership Management,Director of Place,Legal - External,,12/10/2015,981.20,,Unclassifiable
5212707,TRANSPORT FOR GREATER MANCHESTER,Capital Programme,(blank),Engineers -External,,05/10/2015,"1,600.00",,Transport
5212713,BT PLC,Asset & Investment Partnership Management,Director of Place,Telephone Landline Costs,,19/10/2015,"1,621.88",,Information Communication Technology
5212719,PLATINUM STAIRLIFTS LIMITED,Housing,Director of Place,Improvement Grants - Final Mandatory,,08/10/2015,"3,393.75",,Unclassifiable
5212744,AZHAR ENTERPRISES,Stronger Communities,Director of People,Purchase Books,,08/10/2015,"1,100.00",,Education
5212763,ORANGE PCS,Digital Tameside,Director of Place,Mobile Telephones,,08/10/2015,584.82,,Information Communication Technology
5212767,ORANGE PCS,Digital Tameside,Director of Place,Mobile Telephones,,08/10/2015,"5,860.28",,Information Communication Technology
5212772,ORANGE PCS,Digital Tameside,Director of Place,Mobile Telephones,,08/10/2015,"3,538.45",,Information Communication Technology
5212773,ORANGE PCS,Digital Tameside,Director of Place,Mobile Telephones,,08/10/2015,595.27,,Information Communication Technology
5212775,ORANGE PCS,Digital Tameside,Director of Place,Mobile Telephones,,08/10/2015,"1,244.16",,Information Communication Technology
5212789,COOLSPIRIT LTD,Digital Tameside,Director of Place,Computer Hardware Maintenance Costs,,19/10/2015,960.00,,Information Communication Technology
5212885,BT PLC,Asset & Investment Partnership Management,Director of Place,Telephone Landline Costs,,05/10/2015,"1,963.23",,Information Communication Technology
5212889,ACORN CARE & EDUCATION LTD (SALES),Education,Director of People,Independent School Fees,,15/10/2015,"10,977.66",,Social Community Care
5212890,ACORN CARE & EDUCATION LTD (SALES),Education,Director of People,Independent School Fees,,15/10/2015,"10,977.66",,Social Community Care
5212891,ACORN CARE & EDUCATION LTD (SALES),Education,Director of People,Independent School Fees,,15/10/2015,"10,104.66",,Social Community Care
5212892,ACORN CARE & EDUCATION LTD (SALES),Education,Director of People,Independent School Fees,,15/10/2015,"10,977.66",,Social Community Care
5212893,ACORN CARE & EDUCATION LTD (SALES),Education,Director of People,Independent School Fees,,15/10/2015,"10,658.00",,Social Community Care
5212898,THE PENNINE ACUTE HOSPITALS NHS TRUST,Public Health,Director of Public Health,Professional Services,,09/10/2015,698.00,,Medical
5212925,VIRGIN BLACKPOOL,Public Health,Director of Public Health,Procurement Hub Holding Account,,12/10/2015,"1,014.00",,Consultancy
5212928,GBM DIGITAL TECHNOLOGIESLIMITED,Governance,Director of Governance and Resources,Professional Photography Services,,08/10/2015,700.00,,Information Communication Technology
5212933,LAUREL BANK RESIDENTIAL CARE HOME LTD,Adult Social Care,Director of People,Homecare Fees,,05/10/2015,"2,423.14",,Social Community Care Supplies & Services
5212946,REGENDA LIMITED,Adult Social Care,Director of People,Non-Authority Accommodation Rental,,19/10/2015,"2,175.90",,Housing Management
5212947,REGENDA LIMITED,Adult Social Care,Director of People,Non-Authority Accommodation Rental,,19/10/2015,"2,175.90",,Housing Management
5212948,REGENDA LIMITED,Adult Social Care,Director of People,Non-Authority Accommodation Rental,,26/10/2015,"15,596.36",,Housing Management
5212970,CALLROUND LIMITED,Education,Director of People,Professional Services,,14/10/2015,600.00,,Public Bodies
5212973,WILLIAMS WOODWARD LTD,Finance,Director of Governance and Resources,Professional Consultancy Services,,08/10/2015,"4,565.00",,Unclassifiable
5212977,ASHTON (OLD) BATHS LIMITED,Engineers Client,Director of Place,Refurbishment Construction Costs,,13/10/2015,"586,082.62",,Unclassifiable
5212981,MR MICHAEL HIRST,Environmental Services,Director of Place,General Materials,,01/10/2015,"4,212.00",,Unclassifiable
5212994,ROCOM,Multiple Heads of Service,Multiple Strategic Directorates,Communications Equipment,,12/10/2015,"1,199.60",,Information Communication Technology
5212994,ROCOM,Digital Tameside,Director of Place,It Equipment,,12/10/2015,9.95,,Information Communication Technology
5212998,CARILLION ACADEMIES TRUST,Education,Director of People,Section 251 Budget,,18/11/2015,"31,707.00",,Unclassifiable
5212999,CARILLION ACADEMIES TRUST,Education,Director of People,Section 251 Budget,,18/11/2015,"65,152.50",,Unclassifiable
5213005,GREENSCAPE,Environmental Services,Director of Place,General Materials,,05/10/2015,"1,390.00",,"Works - Construction, Repair & Maintenance"
5213007,GREENSCAPE,Environmental Services,Director of Place,Building Works,,05/10/2015,"2,700.00",,"Works - Construction, Repair & Maintenance"
5213011,GREENSCAPE,Stronger Communities,Director of People,General Materials,,12/10/2015,"1,390.00",,"Works - Construction, Repair & Maintenance"
5213013,GREENSCAPE,Environmental Services,Director of Place,General Materials,,05/10/2015,"2,035.00",,"Works - Construction, Repair & Maintenance"
5213023,ADDLESHAW GODDARD,Asset Management and Investment Partnership Management,Director of Place,Legal - External,,04/11/2015,"1,164.70",,Unclassifiable
5213024,ADDLESHAW GODDARD,Asset Management and Investment Partnership Management,Director of Place,Legal - External,,04/11/2015,"11,563.60",,Unclassifiable
5213025,ADDLESHAW GODDARD,Asset Management and Investment Partnership Management,Director of Place,Legal - External,,04/11/2015,"1,348.09",,Unclassifiable
5213029,CLICK TRAVEL,Finance,Director of Governance and Resources,Staff Travel Costs,,29/10/2015,"1,222.00",,Human Resources
5213030,CLICK TRAVEL,Finance,Director of Governance and Resources,Staff Travel Costs,,29/10/2015,"3,182.43",,Human Resources
5213046,MANCHESTER CITY COUNCIL,Governance,Director of Governance and Resources,Professional Services,,08/10/2015,"4,000.00",,Unclassifiable
5213081,COMMUNITY AND VOLUNTARY ACTION TAMESIDE,Public Health,Director of Public Health,Professional Services,,01/10/2015,"54,000.00",,Financial Services
5213087,BT PLC,Asset & Investment Partnership Management,Director of Place,Telephone Landline Costs,,19/10/2015,"1,963.23",,Information Communication Technology
5213088,CENTRAL MANCHESTER UNIVERSITY HOSPITAL NHS FT,Public Health,Director of Public Health,Professional Services,,12/10/2015,"4,936.00",,Human Resources
5213091,W T GUNSON,Asset & Investment Partnership Management,Director of Place,Building Maintenance,,04/11/2015,"1,300.00",,Unclassifiable
5213092,AON LIMITED,Corporate Costs,Corporate Costs,Building & Contents Insurance,,01/10/2015,"3,288.57",,Human Resources
5213120,GRANT THORNTON UK LLP,Corporate Costs,Corporate Costs,Audit Commission Fees,,26/10/2015,"26,254.25",,Financial Services
5213137,PLATINUM STAIRLIFTS LIMITED,Housing,Director of Place,Improvement Grants - Final Mandatory,,05/10/2015,"3,843.75",,Unclassifiable
5213141,HMCTS,Childrens Services,Director of People,Court Fees,,23/10/2015,"11,615.00",,Unclassifiable
5213149,WILLIAMS WOODWARD LTD,Finance,Director of Governance and Resources,Professional Consultancy Services,,12/10/2015,"4,980.00",,Unclassifiable
5213157,DOMAIN CARE NORTH WEST LTD,Adult Social Care,Director of People,Homecare Fees,,29/10/2015,730.57,,Social Community Care
5213164,DOMAIN CARE NORTH WEST LTD,Adult Social Care,Director of People,Procurement Hub Holding Account,,29/10/2015,"4,060.00",,Social Community Care
5213165,DOMAIN CARE NORTH WEST LTD,Adult Social Care,Director of People,Homecare Fees,,29/10/2015,799.50,,Social Community Care
5213166,DOMAIN CARE NORTH WEST LTD,Adult Social Care,Director of People,Homecare Fees,,29/10/2015,"1,440.00",,Social Community Care
5213169,DTZ,Development Growth & Investment,Director of Place,Professional Consultancy Services,,02/11/2015,"4,655.00",,Consultancy
5213179,GREATER MANCHESTER COMBINED AUTHORITY,Engineers Client,Director of Place,Engineers -External,,08/10/2015,"4,579.42",,Unclassifiable
5213185,DREAMLAND CARPETS & LAMINATE FLOORING,Stronger Communities,Director of People,Fixtures & Fittings Purchase,,05/10/2015,"1,100.00",,Building Construction Materials
5213189,FORBES SOLICITORS,Multiple Heads of Service,Multiple Strategic Directorates,Claims Settled,,05/10/2015,"10,800.00",,Legal Services
5213194,GETRONICS UNIFIED COMMUNICATIONS UK LIMITED,Multiple Heads of Service,Multiple Strategic Directorates,Communications Equipment,,22/10/2015,"1,680.00",,Information Communication Technology
5213195,TAMESIDE LINK,Adult Social Care,Director of People,Voluntary Organisations Fees,,09/10/2015,"15,254.59",,Social Community Care Supplies & Services
5213196,TAMESIDE LINK,Adult Social Care,Director of People,Voluntary Organisations Fees,,09/10/2015,"15,254.59",,Social Community Care Supplies & Services
5213238,BRIAN OLIVER,Housing,Director of Place,Adaptations - Jobs <#500,Business Payment,05/10/2015,500.00,,"Works - Construction, Repair & Maintenance"
5213241,BRIAN OLIVER,Housing,Director of Place,Adaptations - Jobs <#500,Business Payment,05/10/2015,500.00,,"Works - Construction, Repair & Maintenance"
5213253,ROYAL MAIL GROUP PLC,Exchequer,Director of Governance and Resources,Postages,,01/10/2015,"5,055.39",,Mail Services
5213257,MANCHESTER CHAMBERS OFCOMMERCE & INDUSTRY,Development Growth & Investment,Director of Place,Subscriptions,,18/11/2015,"1,195.00",,Public Bodies
5213261,TOPMARK CLAIMS MANAGEMENT LTD,Corporate Costs,Corporate Costs,Miscellaneous Insurance,,15/10/2015,"40,000.00",,Financial Services
5213265,MISS JANICE WILLS,Childrens Services,Director of People,Legal Fees,,23/10/2015,"1,500.00",,Legal Services
5213282,ARCO LIMITED,Environmental Services,Director of Place,General Materials,,05/10/2015,950.00,,Clothing
5213291,"GROUNDWORK M/CR,SALFORD,STOCKPORT,TAMESIDE&TRAFFOD",Asset & Investment Partnership Management,Director of Place,Non-Authority Accommodation Rental,,14/10/2015,"9,597.00",,"Works - Construction, Repair & Maintenance"
5213297,REDDIPAK LIMITED,Environmental Services,Director of Place,General Materials,,05/10/2015,"1,048.00",,Unclassifiable
5213300,CENTRAL MANCHESTER UNIVERSITY HOSPITAL NHS FT,Public Health,Director of Public Health,Professional Services,,15/10/2015,"27,497.50",,Human Resources
5213301,ABLE COMMUNITY CARE,Adult Social Care,Director of People,Homecare Fees,,29/10/2015,"1,580.00",,Social Community Care Supplies & Services
5213310,ARGOS BUSINESS SOLUTIONS,Childrens Services,Director of People,Building Maintenance,,19/10/2015,577.94,,Domestic Goods
5213313,ST JOHN AMBULANCE,Governance,Director of Governance and Resources,Training Course Costs,,04/11/2015,"2,880.00",,Unclassifiable
5213343,THE FURNISHING SERVICE (ENGLAND),Stronger Communities,Director of People,Fixtures & Fittings Purchase,,15/10/2015,729.66,,Unclassifiable
5213355,MATTHEWS & GOODMAN LLP,Public Health,Director of Public Health,Building Maintenance,,01/10/2015,"4,950.00",,Consultancy
5213357,AFFINITY TRUST,Adult Social Care,Director of People,Homecare Fees,,15/10/2015,"115,511.41",,Social Community Care
5213361,G HUTCHINSON,Environmental Services,Director of Place,Sale of Plaques,,05/10/2015,565.00,,Unclassifiable
5213366,MR JOHN DELANEY,Education,Director of People,Transport Of Pupils,Business Payment,05/10/2015,"1,890.00",,Unclassifiable
5213367,MR JOHN DELANEY,Environmental Services,Director of Place,Hired Transport,Business Payment,05/10/2015,650.00,,Unclassifiable
5213368,MR JOHN DELANEY,Environmental Services,Director of Place,Hired Transport,Business Payment,05/10/2015,"1,870.00",,Unclassifiable
5213369,MR JOHN DELANEY,Education,Director of People,Transport Of Post 16 Pupils,Business Payment,05/10/2015,"1,800.00",,Unclassifiable
5213371,MR JOHN DELANEY,Education,Director of People,Transport Of Pupils,Business Payment,05/10/2015,"2,000.00",,Unclassifiable
5213373,MR JOHN DELANEY,Education,Director of People,Transport Of Pupils,Business Payment,05/10/2015,"2,000.00",,Unclassifiable
5213374,MR JOHN DELANEY,Education,Director of People,Transport Of Pupils,Business Payment,05/10/2015,"1,850.00",,Unclassifiable
5213379,SANCTUARY HOUSING  ASSOCIATION,Asset & Investment Partnership Management,Director of Place,Non-Authority Accommodation Rental,,05/10/2015,"2,902.07",,Unclassifiable
5213390,H MULLANEY & SON LTD,Asset & Investment Partnership Management,Director of Place,Waste Disposal Fees,,05/10/2015,"3,300.00",,Environmental Services
5213391,THE COPYRIGHT LICENSING AGENCY LTD,Corporate Costs,Corporate Costs,Licences,,08/10/2015,"6,030.53",,Legal Services
5213393,FAIRFIELD RESIDENTIAL,Education,Director of People,Voluntary Organisations Fees,,01/10/2015,"3,040.00",,Human Resources
5213400,MRS SUSAN BANK,Adult Social Care,Director of People,Contribution to Maintenance Fee Income,,05/10/2015,"1,246.04",,Unclassifiable
5213405,PG FABRICATIONS,Environmental Services,Director of Place,General Materials,,05/10/2015,810.00,,"Works - Construction, Repair & Maintenance"
5213407,GREYSTONES TAMESIDE LTD,Stronger Communities,Director of People,Supporting People Gross Contract,,05/10/2015,"12,458.33",,Financial Services
5213409,MANCHESTER SETTLEMENT,Childrens Services,Director of People,Cash Grants,,05/10/2015,543.85,,Unclassifiable
5213410,GREENSCAPE,Environmental Services,Director of Place,General Materials,,08/10/2015,600.00,,"Works - Construction, Repair & Maintenance"
5213415,E PETCH PRINTERS LTD,Governance,Director of Governance and Resources,Printing And Stationery,,08/10/2015,545.00,,Facilities & Management Services
5213417,ADDLESHAW GODDARD,Asset & Investment Partnership Management,Director of Place,Legal Fees,,05/10/2015,"9,650.10",,Unclassifiable
5213419,ADDLESHAW GODDARD,Tameside Investment Partnership,Director of Place,Legal - External,,04/11/2015,"3,822.40",,Unclassifiable
5213463,NADINE & RICHARD THORNLEY,Childrens Services,Director of People,Cash Grants,,05/10/2015,804.00,,Unclassifiable
5213464,SOPHIA STANLEY & AARON JACKSON,Childrens Services,Director of People,Cash Grants,,05/10/2015,804.00,,Unclassifiable
5213469,MRL HEALTHCARE LIMITED,Adult Social Care,Director of People,Homecare Fees,,05/10/2015,"19,215.00",,Social Community Care Supplies & Services
5213475,THE FURNISHING SERVICE (ENGLAND),Stronger Communities,Director of People,Fixtures & Fittings Purchase,,26/10/2015,645.93,,Unclassifiable
5213478,UNITED UTILITIES WATER PLC,Asset & Investment Partnership Management,Director of Place,Metered Water Costs,,05/10/2015,935.58,,Utilities
5213479,LAUREL BANK SUPPORT AT HOME,Adult Social Care,Director of People,Homecare Fees,,05/10/2015,"2,553.42",,Social Community Care Supplies & Services
5213482,RANDSTAD EDUCATION LIMITED,Education,Director of People,Agency Staff,,05/10/2015,534.50,,Education
5213486,UNITED UTILITIES WATER PLC,Environmental Services,Director of Place,Business Rates,,05/10/2015,593.05,,Utilities
5213486,UNITED UTILITIES WATER PLC,Asset & Investment Partnership Management,Director of Place,Business Rates,,05/10/2015,331.39,,Utilities
5213487,UNITED UTILITIES WATER PLC,Asset & Investment Partnership Management,Director of Place,Metered Water Costs,,05/10/2015,"1,210.93",,Utilities
5213489,UNITED UTILITIES WATER PLC,Asset & Investment Partnership Management,Director of Place,Metered Water Costs,,05/10/2015,"2,995.72",,Utilities
5213493,THE CHESHIRE & GREATER MANCHESTER COMMUNITY REHABILITATION COMPANY LTD,Stronger Communities,Director of People,Professional Services,,14/10/2015,"5,018.81",,Unclassifiable
5213494,THE CHESHIRE & GREATER MANCHESTER COMMUNITY REHABILITATION COMPANY LTD,Stronger Communities,Director of People,Professional Services,,09/10/2015,"6,859.79",,Unclassifiable
5213496,THE CHESHIRE & GREATER MANCHESTER COMMUNITY REHABILITATION COMPANY LTD,Stronger Communities,Director of People,Professional Services,,14/10/2015,"12,930.16",,Unclassifiable
5213499,SOFTCAT LIMITED,Digital Tameside,Director of Place,Computer Software,,05/10/2015,"28,656.00",,Information Communication Technology
5213500,UNITED UTILITIES WATER PLC,Asset & Investment Partnership Management,Director of Place,Business Rates,,05/10/2015,"1,079.18",,Utilities
5213501,MR AND MRS SMOUT,Childrens Services,Director of People,Personal Needs Educational Travel,,05/10/2015,"1,986.00",,Unclassifiable
5213504,BOTTOMLINE TECHNOLOGIES LIMITED,Digital Tameside,Director of Place,Computer Hardware Maintenance Costs,,08/10/2015,"1,326.13",,Information Communication Technology
5213505,BOTTOMLINE TECHNOLOGIES LIMITED,Digital Tameside,Director of Place,Computer Hardware Maintenance Costs,,08/10/2015,583.75,,Information Communication Technology
5213514,COMPLETE BACKGROUND SCREENING LTD,Governance,Director of Governance and Resources,Professional Services,,09/10/2015,"2,426.50",,Unclassifiable
5213521,WHITEFERN LTD,Stronger Communities,Director of People,Fixtures & Fittings Purchase,,23/10/2015,"1,539.37",,Furniture
5213522,VODAFONE FIXED NETWORKS LIMITED,Finance,Director of Governance and Resources,Telephone Landline Costs,,08/10/2015,656.25,,Information Communication Technology
5213524,TORDAN HEALTHCARE LTD,Childrens Services,Director of People,Homecare Fees,,05/10/2015,"4,683.36",,Medical
5213525,TORDAN HEALTHCARE LTD,Childrens Services,Director of People,Homecare Fees,,12/10/2015,558.00,,Medical
5213530,INSPIREDSPACES TAMESIDE LTD,Asset Management and Investment Partnership Management,Director of Place,Drainage Works,,04/11/2015,"1,918.40",,Consultancy
5213530,INSPIREDSPACES TAMESIDE LTD,Asset Management and Investment Partnership Management,Director of Place,Other Works,,04/11/2015,"6,609.41",,Consultancy
5213530,INSPIREDSPACES TAMESIDE LTD,Tameside Investment Partnership,Director of Place,Debits,,04/11/2015,"1,362.50",,Consultancy
5213530,INSPIREDSPACES TAMESIDE LTD,Capital Programme,(blank),Refurbishment Construction Costs,,04/11/2015,"14,635.18",,Consultancy
5213530,INSPIREDSPACES TAMESIDE LTD,Asset & Investment Partnership Management,Director of Place,Refreshments,,04/11/2015,"41,288.72",,Consultancy
5213536,ALLIED HEALTHCARE GROUP LTD (MEDICO),Adult Social Care,Director of People,Homecare Fees,,05/10/2015,"11,380.62",,Social Community Care Supplies & Services
5213544,AFFINITY TRUST,Adult Social Care,Director of People,Homecare Fees,,29/10/2015,"4,686.42",,Social Community Care
5213552,THE FURNISHING SERVICE (ENGLAND),Stronger Communities,Director of People,Fixtures & Fittings Purchase,,15/10/2015,"1,367.49",,Unclassifiable
5213565,DIMENSION DATA ADVANCED INFRASTRUCTURE LTD,Engineers Client,Director of Place,Engineers -External,,16/10/2015,"6,564.21",,Facilities & Management Services
5213572,CROMWELL POLYTHENE LTD.,Environmental Services,Director of Place,Purchase Wheeled Bins,,15/10/2015,"4,792.80",,Unclassifiable
5213573,MEARS HOME CARE LIMITE,Adult Social Care,Director of People,Homecare Fees,,29/10/2015,"4,399.68",,Social Community Care Supplies & Services
5213579,STOCKPORT NHS FOUNDATION TRUST,Childrens Services,Director of People,Homecare Fees,,09/10/2015,"1,891.00",,Medical
5213580,THE FURNISHING SERVICE (ENGLAND),Stronger Communities,Director of People,Fixtures & Fittings Purchase,,05/10/2015,558.52,,Unclassifiable
5213584,OSMIS EDUCATION LIMITED,Digital Tameside,Director of Place,Professional Services,,15/10/2015,"3,410.00",,Information Communication Technology
5213589,CREATIVE SUPPORT LTD,Adult Social Care,Director of People,Independent Sector Care Fees,,05/10/2015,"67,669.36",,Social Community Care Supplies & Services
5213594,MEARS HOME CARE LIMITE,Adult Social Care,Director of People,Homecare Fees,,29/10/2015,"3,665.59",,Social Community Care Supplies & Services
5213600,PARTRIDGE & PRINT LTD,Childrens Services,Director of People,Professional Services,,05/10/2015,805.00,,Facilities & Management Services
5213601,SENSORY TECHNOLOGY LTD,Adult Social Care,Director of People,"Activity (Materials, Trips)",,08/10/2015,"1,299.00",,Environmental Services
5213611,WILLIAMS WOODWARD LTD,Finance,Director of Governance and Resources,Professional Consultancy Services,,26/10/2015,"1,660.00",,Unclassifiable
5213614,4WAY CONSULTING LTD,Engineers Client,Director of Place,Street Lighting Works,,08/10/2015,689.85,,Environmental Services
5213634,THE GUINNESS PARTNERSHIP LTD,Adult Social Care,Director of People,Non-Authority Accommodation Rental,,08/10/2015,"1,221.48",,Housing Management
5213635,THE GUINNESS PARTNERSHIP LTD,Adult Social Care,Director of People,Non-Authority Accommodation Rental,,08/10/2015,"4,066.40",,Housing Management
5213637,M J DELANEY & CO LTD,Stronger Communities,Director of People,Painting Works,,08/10/2015,"1,350.00",,"Works - Construction, Repair & Maintenance"
5213638,M J DELANEY & CO LTD,Stronger Communities,Director of People,Painting Works,,08/10/2015,"1,070.00",,"Works - Construction, Repair & Maintenance"
5213640,GREENSCAPE,Environmental Services,Director of Place,General Materials,,08/10/2015,595.00,,"Works - Construction, Repair & Maintenance"
5213647,TAMESIDE SPORTS TRUST,Adult Social Care,Director of People,Professional Services,,05/10/2015,"5,049.00",,Leisure Services
5213649,TAMESIDE ARTS LTD,Adult Social Care,Director of People,Professional Services,,14/10/2015,"1,009.80",,Leisure Services
5213650,DIRECT CARE (NORTH WEST) LTD,Adult Social Care,Director of People,Homecare Fees,,05/10/2015,"12,829.22",,Social Community Care Supplies & Services
5213658,GLM ACCESSIBLE TRANSPORT,Education,Director of People,Transport Of Pupils,Business Payment,08/10/2015,"1,400.00",,Unclassifiable
5213659,GLM ACCESSIBLE TRANSPORT,Education,Director of People,Transport Of Pupils,Business Payment,08/10/2015,"1,400.00",,Unclassifiable
5213660,MRL HEALTHCARE LIMITED,Adult Social Care,Director of People,Homecare Fees,,08/10/2015,"2,611.06",,Social Community Care Supplies & Services
5213663,GLM ACCESSIBLE TRANSPORT,Education,Director of People,Transport Of Post 16 Pupils,Business Payment,08/10/2015,"1,760.00",,Unclassifiable
5213664,K P DODD CONSTRUCTION LTD,Housing,Director of Place,Adaptations - Small Jobs,,05/10/2015,630.00,,"Works - Construction, Repair & Maintenance"
5213666,GRIP STEEL  REINFORCEMENTS LTD,Environmental Services,Director of Place,General Equipment Purchase,,08/10/2015,510.00,,Cemetery & Crematorium
5213669,COMFORT CALL LIMITED,Adult Social Care,Director of People,Homecare Fees,,05/10/2015,"35,119.68",,Medical
5213670,ERIC SLATER INTERIOR DESIGN,District Assemblies,"Community,Environmental,Adult and Health Services",General Materials,,08/10/2015,"1,200.00",,Highway Equipment & Materials�
5213672,"TAMESIDE, OLDHAM AND GLOSSOP MIND",Adult Social Care,Director of People,Professional Services,,05/10/2015,"2,509.20",,Social Community Care Supplies & Services
5213673,NEW CHARTER HOUSING TRUST - FAMILY SUPPORT CHARITY,Capital Programme,(blank),Professional Services,,22/10/2015,"20,000.00",,Unclassifiable
5213675,MR KEN STOCKTON,Environmental Services,Director of Place,General Materials,,08/10/2015,637.50,,Horticultural
5213678,MEARS HOME CARE LIMITE,Adult Social Care,Director of People,Homecare Fees,,05/10/2015,"34,053.25",,Social Community Care Supplies & Services
5213679,ABLE CARE AND SUPPORT SERVICES LTD,Adult Social Care,Director of People,Homecare Fees,,05/10/2015,855.07,,Social Community Care Supplies & Services
5213680,LOWERY ENGINEERING,Multiple Heads of Service,Multiple Strategic Directorates,Communications Equipment,,14/12/2015,500.00,,Unclassifiable
5213686,MEARS HOME CARE LIMITE,Adult Social Care,Director of People,Homecare Fees,,05/10/2015,"34,012.69",,Social Community Care Supplies & Services
5213688,LAUREL BANK SUPPORT AT HOME,Adult Social Care,Director of People,Homecare Fees,,05/10/2015,"2,623.87",,Social Community Care Supplies & Services
5213693,TAMESIDE HOSPITAL NHS FOUNDATION TRUST,Public Health,Director of Public Health,Professional Services,,11/11/2015,"2,637.50",,Unclassifiable
5213694,GREENSCAPE,Adult Social Care,Director of People,Tree Planting Programme,,09/10/2015,"1,790.16",,"Works - Construction, Repair & Maintenance"
5213698,"TAMESIDE, OLDHAM AND GLOSSOP MIND",Adult Social Care,Director of People,Professional Services,,05/10/2015,"1,254.60",,Social Community Care Supplies & Services
5213700,GREYSTONES TAMESIDE LTD,Stronger Communities,Director of People,Supporting People Gross Contract,,05/10/2015,"8,333.33",,Financial Services
5213702,TAMESIDE ARTS LTD,Adult Social Care,Director of People,Professional Services,,05/10/2015,"1,071.00",,Leisure Services
5213703,PG FABRICATIONS,Environmental Services,Director of Place,General Materials,,08/10/2015,875.00,,"Works - Construction, Repair & Maintenance"
5213710,TAMESIDE SPORTS TRUST,Public Health,Director of Public Health,Leisure Services Contract Payment,,08/10/2015,"466,250.00",,Leisure Services
5213711,R S & P HARRISON PROPERTY,Asset & Investment Partnership Management,Director of Place,Non-Authority Accommodation Rental,,14/10/2015,"1,666.66",,Unclassifiable
5213712,GEORGE COX & SONS LTD,Engineers Client,Director of Place,Adaptations - Small Jobs,,29/10/2015,"4,340.90",,Building Construction Materials
5213714,NEW CHARTER HOUSING TRUST GROUP,Adult Social Care,Director of People,Non-Authority Accommodation Rental,,08/10/2015,"2,551.64",,Unclassifiable
5213715,NEW CHARTER HOUSING TRUST GROUP,Adult Social Care,Director of People,Non-Authority Accommodation Rental,,08/10/2015,"3,972.75",,Unclassifiable
5213716,NEW CHARTER HOUSING TRUST GROUP,Asset & Investment Partnership Management,Director of Place,Non-Authority Accommodation Rental,,08/10/2015,"1,004.16",,Unclassifiable
5213718,NEW CHARTER HOUSING TRUST GROUP,Asset & Investment Partnership Management,Director of Place,Non-Authority Accommodation Rental,,08/10/2015,795.04,,Unclassifiable
5213734,ADONI SOFTWARE,Digital Tameside,Director of Place,Computer Software,,19/10/2015,"2,450.00",,Unclassifiable
5213743,PENNINE CARE IN PATIENT SERVS PRIORY,Education,Director of People,Voluntary Organisations Fees,,09/11/2015,"1,050.00",,Social Community Care
5213759,CORONA ENERGY RETAIL 4 LIMITED,Asset & Investment Partnership Management,Director of Place,Gas,,19/10/2015,727.01,,Utilities
5213764,CORONA ENERGY RETAIL 4 LIMITED,Asset & Investment Partnership Management,Director of Place,Gas,,19/10/2015,978.60,,Utilities
5213765,CORONA ENERGY RETAIL 4 LIMITED,Asset & Investment Partnership Management,Director of Place,Gas,,19/10/2015,869.38,,Utilities
5213780,THE FURNISHING SERVICE (ENGLAND),Stronger Communities,Director of People,Fixtures & Fittings Purchase,,19/10/2015,776.22,,Unclassifiable
5213782,ROYAL MAIL GROUP PLC,Exchequer,Director of Governance and Resources,Postages,,08/10/2015,"4,959.55",,Mail Services
5213784,ABLE CARE AND SUPPORT SERVICES LTD,Adult Social Care,Director of People,Homecare Fees,,08/10/2015,987.44,,Social Community Care Supplies & Services
5213786,ARGOS BUSINESS SOLUTIONS,Childrens Services,Director of People,Cash Grants,,15/10/2015,770.51,,Domestic Goods
5213788,ABLE CARE AND SUPPORT SERVICES LTD,Adult Social Care,Director of People,Homecare Fees,,08/10/2015,"1,260.72",,Social Community Care Supplies & Services
5213791,ABLE CARE AND SUPPORT SERVICES LTD,Adult Social Care,Director of People,Homecare Fees,,08/10/2015,"1,229.81",,Social Community Care Supplies & Services
5213795,PLATINUM STAIRLIFTS LIMITED,Housing,Director of Place,Improvement Grants - Final Mandatory,,08/10/2015,"3,875.00",,Unclassifiable
5213796,TMP UK LTD,Development Growth & Investment,Director of Place,Procurement Hub Holding Account,,22/10/2015,725.00,,Human Resources
5213797,THE FURNISHING SERVICE (ENGLAND),Stronger Communities,Director of People,Fixtures & Fittings Purchase,,19/10/2015,618.71,,Unclassifiable
5213799,ASKEWS  AND HOLTS LIBRARY SERVICES LTD,Stronger Communities,Director of People,Purchase Books,,22/10/2015,"1,221.65",,Education
5213800,TORDAN HEALTHCARE LTD,Childrens Services,Director of People,Homecare Fees,,08/10/2015,"1,331.44",,Medical
5213804,PHS GROUP PLC,Asset & Investment Partnership Management,Director of Place,Personal Hygiene Costs,,19/10/2015,"1,991.15",,Cleaning & Janitorial
5213811,YOUTH JUSTICE BOARD,Childrens Services,Director of People,Other Accomodation Related Costs,,22/10/2015,"5,310.00",,Unclassifiable
5213819,VISION BEYOND AUTISM CIC,Education,Director of People,Voluntary Organisations Fees,,15/10/2015,"9,941.75",,Social Community Care Supplies & Services
5213823,ABLE COMMUNITY CARE,Adult Social Care,Director of People,Homecare Fees,,29/10/2015,"1,580.00",,Social Community Care Supplies & Services
5213826,NHS TAMESIDE AND GLOSSOP CCG,Corporate Costs,Corporate Costs,Professional Services,,09/12/2015,"187,000.00",,Medical
5213833,ROGER HANNAH & CO,Tameside Investment Partnership,Director of Place,Building Maintenance,,08/10/2015,"2,187.50",,Legal Services
5213844,STM ENVIRONMENTAL LTD,Environmental Services,Director of Place,Computer Software,,08/10/2015,752.77,,Information Communication Technology
5213851,EASTERN LEADERSHIP CENTRE,Education,Director of People,Training Course Costs,,14/10/2015,"2,400.00",,Charities and Voluntary Organisations
5213864,ALTERNATIVE FUTURES GROUP,Adult Social Care,Director of People,Homecare Fees,,29/10/2015,"1,704.29",,Social Community Care Supplies & Services
5213868,MEARS HOME CARE LIMITE,Adult Social Care,Director of People,Homecare Fees,,08/10/2015,"33,284.65",,Social Community Care Supplies & Services
5213869,FOUNDATION (CENTRAL SERVICES),Stronger Communities,Director of People,Supporting People Gross Contract,,12/10/2015,"30,970.50",,Unclassifiable
5213870,FOUNDATION (CENTRAL SERVICES),Stronger Communities,Director of People,Supporting People Gross Contract,,08/10/2015,"30,970.50",,Unclassifiable
5213872,FOUNDATION (CENTRAL SERVICES),Stronger Communities,Director of People,Supporting People Gross Contract,,08/10/2015,"30,970.50",,Unclassifiable
5213873,FOUNDATION (CENTRAL SERVICES),Stronger Communities,Director of People,Supporting People Gross Contract,,26/10/2015,"30,970.50",,Unclassifiable
5213877,ROSS AUTO ENGINEERING LIMITED,Adult Social Care,Director of People,Joint Loans Store Fee,,22/10/2015,"119,887.00",,Social Community Care
5213878,FREECLAIM SOLICITORS,Multiple Heads of Service,Multiple Strategic Directorates,Claims Settled,,08/10/2015,"6,931.22",,Legal Services
5213879,DWP,Multiple Heads of Service,Multiple Strategic Directorates,Claims Settled,,08/10/2015,637.00,,Unclassifiable
5213883,KILOGRAMME ANIMATION STUDIO,Governance,Director of Governance and Resources,"Marketing, Publicity and Recruitment",,19/10/2015,"4,500.00",,Unclassifiable
5213885,STOCKPORT CP  SOCIETY,Adult Social Care,Director of People,Day Centre Fees,,29/10/2015,"1,073.44",,Social Community Care Supplies & Services
5213890,MRL HEALTHCARE LIMITED,Adult Social Care,Director of People,Homecare Fees,,08/10/2015,"19,215.00",,Social Community Care Supplies & Services
5213891,MRL HEALTHCARE LIMITED,Adult Social Care,Director of People,Homecare Fees,,08/10/2015,"19,215.00",,Social Community Care Supplies & Services
5213892,MRL HEALTHCARE LIMITED,Adult Social Care,Director of People,Homecare Fees,,08/10/2015,"2,389.07",,Social Community Care Supplies & Services
5213898,FIVE LINES CONSULTING,Development Growth & Investment,Director of Place,Professional Consultancy Services,,12/10/2015,"2,040.00",,Consultancy
5213899,RICOH UK,Education,Director of People,Photo Print Charges,,08/10/2015,600.19,,Facilities & Management Services
5213908,SPECIALIST COMPUTER CENTRES LIMITED,Digital Tameside,Director of Place,It Equipment,,14/10/2015,"8,640.00",,Information Communication Technology
5213910,MOSSLEY PRIVATE HIRE,Strategy & Early Intervention,Director of People,Hired Transport,,08/10/2015,"1,695.00",,Unclassifiable
5213911,MOSSLEY PRIVATE HIRE,Environmental Services,Director of Place,Hired Transport,,08/10/2015,765.00,,Unclassifiable
5213912,MOSSLEY PRIVATE HIRE,Environmental Services,Director of Place,Hired Transport,,08/10/2015,"1,298.00",,Unclassifiable
5213913,MOSSLEY PRIVATE HIRE,Environmental Services,Director of Place,Hired Transport,,08/10/2015,"1,385.00",,Unclassifiable
5213914,MOSSLEY PRIVATE HIRE,Education,Director of People,Transport Of Pupils,,08/10/2015,"2,500.00",,Unclassifiable
5213915,MOSSLEY PRIVATE HIRE,Education,Director of People,Transport Of Pupils,,08/10/2015,"2,000.00",,Unclassifiable
5213916,SPECIALIST COMPUTER CENTRES LIMITED,Digital Tameside,Director of Place,It Equipment,,04/11/2015,"38,480.00",,Information Communication Technology
5213917,MOSSLEY PRIVATE HIRE,Education,Director of People,Transport Of Pupils,,08/10/2015,"2,625.00",,Unclassifiable
5213918,"TAMESIDE, OLDHAM AND GLOSSOP MIND",Adult Social Care,Director of People,Professional Services,,08/10/2015,"1,224.00",,Social Community Care Supplies & Services
5213920,BROWNS CTP LIMITED,Governance,Director of Governance and Resources,Printing And Stationery,,22/10/2015,890.00,,Facilities & Management Services
5213936,ROYAL MENCAP SOCIETY,Adult Social Care,Director of People,Voluntary Organisations Fees,,08/10/2015,"9,700.20",,Social Community Care Supplies & Services
5213937,ROYAL MENCAP SOCIETY,Adult Social Care,Director of People,Voluntary Organisations Fees,,08/10/2015,"12,148.20",,Social Community Care Supplies & Services
5213938,ROYAL MENCAP SOCIETY,Adult Social Care,Director of People,Voluntary Organisations Fees,,08/10/2015,"9,822.60",,Social Community Care Supplies & Services
5213939,THE FURNISHING SERVICE (ENGLAND),Stronger Communities,Director of People,Fixtures & Fittings Purchase,,19/10/2015,"1,207.10",,Unclassifiable
5213941,ALLIED HEALTHCARE GROUP LTD (MEDICO),Adult Social Care,Director of People,Homecare Fees,,08/10/2015,"11,971.59",,Social Community Care Supplies & Services
5213942,TAMESIDE ARTS LTD,Adult Social Care,Director of People,Professional Services,,14/10/2015,"1,009.80",,Leisure Services
5213943,ALLIED HEALTHCARE GROUP LTD (MEDICO),Adult Social Care,Director of People,Homecare Fees,,15/10/2015,"11,186.33",,Social Community Care Supplies & Services
5213944,CREATIVE IDEAS IN PRINT LTD,Governance,Director of Governance and Resources,Printing And Stationery,,09/10/2015,545.00,,Facilities & Management Services
5213945,MERIDIAN HEALTHCARE LTD,Adult Social Care,Director of People,Day Centre Fees,,08/10/2015,"24,514.50",,Social Community Care Supplies & Services
5213947,"TAMESIDE, OLDHAM AND GLOSSOP MIND",Adult Social Care,Director of People,Professional Services,,08/10/2015,"1,224.00",,Social Community Care Supplies & Services
5213950,NEW CHARTER HOUSING TRUST GROUP,Stronger Communities,Director of People,Supporting People Gross Contract,,29/10/2015,"17,821.00",,Unclassifiable
5213951,NEW CHARTER HOUSING TRUST GROUP,Stronger Communities,Director of People,Authority Accommodation Rental,,08/10/2015,"13,401.19",,Unclassifiable
5213953,TURNING POINT SERVICES LTD,Adult Social Care,Director of People,Independent Sector Care Fees,,02/11/2015,"152,854.49",,Social Community Care
5213958,NORCOMM (UK) LTD,Public Health,Director of Public Health,Computer Hardware Maintenance Costs,,15/10/2015,"2,752.28",,Information Communication Technology
5213960,COMFORT CALL LIMITED,Adult Social Care,Director of People,Homecare Fees,,08/10/2015,"31,881.91",,Medical
5213961,COMFORT CALL LIMITED,Adult Social Care,Director of People,Homecare Fees,,08/10/2015,"31,705.82",,Medical
5213967,MEARS HOME CARE LIMITE,Adult Social Care,Director of People,Homecare Fees,,08/10/2015,"33,426.84",,Social Community Care Supplies & Services
5213970,DIRECT CARE (NORTH WEST) LTD,Adult Social Care,Director of People,Homecare Fees,,08/10/2015,"12,735.32",,Social Community Care Supplies & Services
5213975,AGGREGATE INDUSTRIES UK LIMITED,Capital Programme,(blank),Highway Construction,,29/10/2015,"257,670.12",,Highway Equipment & Materials
5213984,HMS DECORATIVE SURFACING LTD,Capital Programme,(blank),Road Marking Works,,08/10/2015,"11,829.40",,Building Construction Materials
5213987,HMS DECORATIVE SURFACING LTD,Engineers Client,Director of Place,Road Marking Works,,08/10/2015,"1,144.00",,Building Construction Materials
5213987,HMS DECORATIVE SURFACING LTD,Environmental Services,Director of Place,Road Marking Works,,08/10/2015,"5,144.16",,Building Construction Materials
5213987,HMS DECORATIVE SURFACING LTD,Housing,Director of Place,Road Marking Works,,08/10/2015,734.60,,Building Construction Materials
5213987,HMS DECORATIVE SURFACING LTD,Capital Programme,(blank),Road Marking Works,,08/10/2015,"5,469.80",,Building Construction Materials
5213993,THE FURNISHING SERVICE (ENGLAND),Stronger Communities,Director of People,Fixtures & Fittings Purchase,,19/10/2015,730.29,,Unclassifiable
5213996,UK FUELS LTD,Environmental Services,Director of Place,Fuel Oil,,08/10/2015,657.18,,Vehicles
5214000,STOCKPORT CP  SOCIETY,Adult Social Care,Director of People,Day Centre Fees,,29/10/2015,"1,073.44",,Social Community Care Supplies & Services
5214023,VODAFONE,Asset & Investment Partnership Management,Director of Place,Protective Clothing,,19/10/2015,808.35,,Information Communication Technology
5214027,ARCO LIMITED,Environmental Services,Director of Place,Protective Clothing,,08/10/2015,"2,323.20",,Clothing
5214034,STOCKPORT NHS FOUNDATION TRUST,Public Health,Director of Public Health,Professional Services,,28/10/2015,"254,220.00",,Medical
5214035,NHS TAMESIDE AND GLOSSOP CCG,Corporate Costs,Corporate Costs,Miscellaneous Expenses,,12/10/2015,"5,770.20",,Medical
5214052,TREASURED MEMORIES LTD,Environmental Services,Director of Place,Plaques,,22/10/2015,639.70,,Cemetery & Crematorium
5214055,ACTION FOR CHILDREN,Strategy & Early Intervention,Director of People,Professional Services,,22/10/2015,"25,336.00",,Unclassifiable
5214056,BELLE VUE (M/CR) LTD,Governance,Director of Governance and Resources,Staff Travel Costs,,08/10/2015,645.00,,Transport
5214057,CU PHOSCO LIGHTING LTD,Environmental Services,Director of Place,Reactive Works Engineers Recharge,,22/10/2015,"4,033.80",,Highway Equipment & Materials�
5214065,ASKEWS  AND HOLTS LIBRARY SERVICES LTD,Stronger Communities,Director of People,Purchase Books,,28/10/2015,"2,565.30",,Education
5214069,STOCKPORT NHS FOUNDATION TRUST,Education,Director of People,Professional Services,,09/10/2015,"3,333.00",,Medical
5214073,FAIRWAY LANDSCAPES LTD,Environmental Services,Director of Place,General Materials,,22/10/2015,"6,939.71",,"Works - Construction, Repair & Maintenance"
5214077,CARRICK SIGNS LTD,Governance,Director of Governance and Resources,Printing And Stationery,,19/10/2015,978.40,,Building Construction Materials
5214079,THE FURNISHING SERVICE (ENGLAND),Stronger Communities,Director of People,Fixtures & Fittings Purchase,,22/10/2015,951.69,,Unclassifiable
5214080,NPOWER LIMITED,Asset & Investment Partnership Management,Director of Place,Gas,,26/10/2015,818.27,,Utilities
5214083,CORONA ENERGY RETAIL 4 LIMITED,Asset & Investment Partnership Management,Director of Place,Gas,,19/10/2015,"2,638.43",,Utilities
5214085,STEP AHEAD RESOURCE SERVICES,Adult Social Care,Director of People,Homecare Fees,,29/10/2015,850.00,,Social Community Care
5214086,THE FURNISHING SERVICE (ENGLAND),Stronger Communities,Director of People,Fixtures & Fittings Purchase,,22/10/2015,"1,096.63",,Unclassifiable
5214097,THE FURNISHING SERVICE (ENGLAND),Stronger Communities,Director of People,Fixtures & Fittings Purchase,,22/10/2015,693.49,,Unclassifiable
5214099,BT PLC,Public Health,Director of Public Health,Procurement Hub Holding Account,,27/10/2015,"1,934.10",,Information Communication Technology
5214103,THE FURNISHING SERVICE (ENGLAND),Stronger Communities,Director of People,Fixtures & Fittings Purchase,,22/10/2015,"1,129.71",,Unclassifiable
5214106,GV MULTI-MEDIA,Digital Tameside,Director of Place,It Equipment,,22/10/2015,"1,062.00",,Information Communication Technology
5214120,MATTHEWS & GOODMAN LLP,Tameside Investment Partnership,Director of Place,Building Maintenance,,08/10/2015,"4,500.00",,Consultancy
5214126,EAST CHESHIRE NHS TRUST,Public Health,Director of Public Health,Professional Services,,12/10/2015,520.46,,Consultancy
5214142,CONTAINER COMPONENTS EUROPE LIMITED,Environmental Services,Director of Place,Purchase Wheeled Bins,,29/10/2015,"1,033.50",,Vehicles
5214144,KALAMAZOO SECURE SOLUTIONS LTD,Finance,Director of Governance and Resources,Postages,,22/10/2015,12.95,,Facilities & Management Services
5214144,KALAMAZOO SECURE SOLUTIONS LTD,Finance,Director of Governance and Resources,Printing And Stationery,,22/10/2015,660.00,,Facilities & Management Services
5214147,STOCKPORT NHS FOUNDATION TRUST,Strategy & Early Intervention,Director of People,Professional Services,,26/10/2015,"2,477.16",,Medical
5214159,CREATIVE SUPPORT LTD,Adult Social Care,Director of People,Age Concern Fees,,08/10/2015,"28,726.66",,Social Community Care Supplies & Services
5214160,NHS TAMESIDE AND GLOSSOP CCG,Corporate Costs,Corporate Costs,Miscellaneous Expenses,,12/10/2015,"6,337.20",,Medical
5214161,NHS TAMESIDE AND GLOSSOP CCG,Corporate Costs,Corporate Costs,Professional Services,,09/12/2015,"193,000.00",,Medical
5214166,CARE IN MIND LTD,Childrens Services,Director of People,Homecare Fees,,28/10/2015,"4,633.80",,Unclassifiable
5214167,CARE IN MIND RESIDENTIAL,Adult Social Care,Director of People,Residential Home Short Stay Fees,,26/10/2015,"2,442.90",,Unclassifiable
5214176,THE FURNISHING SERVICE (ENGLAND),Stronger Communities,Director of People,Fixtures & Fittings Purchase,,08/10/2015,568.78,,Unclassifiable
5214177,MR JAMES TURLEY T/A R TURLEY PLUMBERS,Housing,Director of Place,Improvement Grants - Final Mandatory,Business Payment,08/10/2015,"4,130.00",,"Works - Construction, Repair & Maintenance"
5214178,E JORDON REFRIGERATION LIMITED,Asset & Investment Partnership Management,Director of Place,Repairs & Maintenance Heavy Catering Equipment,,19/10/2015,501.60,,Catering
5214180,DWP,Multiple Heads of Service,Multiple Strategic Directorates,Claims Settled,,02/11/2015,615.00,,Unclassifiable
5214181,CYCLESCHEME LTD,Multiple Heads of Service,Multiple Strategic Directorates,Debits,,08/10/2015,833.33,,Unclassifiable
5214189,IBI GROUP,Development Growth & Investment,Director of Place,Professional Services,,11/11/2015,"1,500.00",,Consultancy
5214214,DOMAIN CARE NORTH WEST LTD,Adult Social Care,Director of People,Homecare Fees,,29/10/2015,"1,440.00",,Social Community Care
5214217,MAMMOTH SIGNS LTD,Environmental Services,Director of Place,Statutory Advertising,,08/10/2015,"2,016.00",,"Works - Construction, Repair & Maintenance"
5214218,SOCIAL CARE NETWORK SOLUTIONS LTD,Public Health,Director of Public Health,Computer Hardware Maintenance Costs,,08/10/2015,"4,800.00",,Information Communication Technology
5214219,SOCIAL CARE NETWORK SOLUTIONS LTD,Public Health,Director of Public Health,Computer Hardware Maintenance Costs,,08/10/2015,"1,600.00",,Information Communication Technology
5214221,PUBLIC HEALTH ENGLAND,Public Health,Director of Public Health,Conference/Seminar Expenses For Staff,,28/10/2015,630.00,,Consultancy
5214222,DOMAIN CARE NORTH WEST LTD,Adult Social Care,Director of People,Homecare Fees,,29/10/2015,"4,060.00",,Social Community Care
5214226,DOMAIN CARE NORTH WEST LTD,Adult Social Care,Director of People,Homecare Fees,,29/10/2015,799.50,,Social Community Care
5214228,DOMAIN CARE NORTH WEST LTD,Adult Social Care,Director of People,Homecare Fees,,29/10/2015,"1,039.90",,Social Community Care
5214230,FORBES SOLICITORS,Multiple Heads of Service,Multiple Strategic Directorates,Claims Settled,,08/10/2015,"2,541.46",,Legal Services
5214231,ROCHDALE MBC,Adult Social Care,Director of People,Homecare Fees,,12/10/2015,"2,657.14",,Unclassifiable
5214232,WILLIAMS WOODWARD LTD,Finance,Director of Governance and Resources,Professional Consultancy Services,,08/10/2015,"3,320.00",,Unclassifiable
5214236,PARKLANE,Environmental Services,Director of Place,Hired Transport,,08/10/2015,"2,112.00",,Transport
5214237,W A MEADOWCROFT,Environmental Services,Director of Place,Hired Transport,Business Payment,08/10/2015,"1,600.00",,Unclassifiable
5214238,LIME TRAVEL,Education,Director of People,Transport Of Pupils,,08/10/2015,"1,820.00",,Human Resources
5214239,LIME TRAVEL,Education,Director of People,Transport Of Pupils,,08/10/2015,"1,911.00",,Human Resources
5214240,GLENN CAWTHORN,Education,Director of People,Transport Of Pupils,Business Payment,08/10/2015,"1,239.00",,Unclassifiable
5214241,PARKLANE,Environmental Services,Director of Place,Hired Transport,,08/10/2015,"1,742.40",,Transport
5214242,LIME TRAVEL,Education,Director of People,Transport Of Ola Pupils,,08/10/2015,"1,816.50",,Human Resources
5214243,LIME TRAVEL,Education,Director of People,Transport Of Ola Pupils,,08/10/2015,"2,050.00",,Human Resources
5214244,LIME TRAVEL,Education,Director of People,Transport Of Pupils,,08/10/2015,"1,820.00",,Human Resources
5214245,LIME TRAVEL,Education,Director of People,Transport Of Ola Pupils,,08/10/2015,"1,600.00",,Human Resources
5214246,J & R TAXIS LTD,Environmental Services,Director of Place,Hired Transport,,08/10/2015,"2,194.00",,Unclassifiable
5214247,LIME TRAVEL,Strategy & Early Intervention,Director of People,Hired Transport,,08/10/2015,"2,489.00",,Human Resources
5214248,W A MEADOWCROFT,Education,Director of People,Transport Of Pupils,Business Payment,08/10/2015,900.00,,Unclassifiable
5214249,B MORRELL,Environmental Services,Director of Place,Hired Transport,Business Payment,08/10/2015,"1,116.25",,Social Community Care
5214251,NEW CHARTER HOUSING TRUST GROUP,Stronger Communities,Director of People,Lettings/Waiting List,,14/10/2015,"19,680.00",,Unclassifiable
5214256,GALA TENT,Environmental Services,Director of Place,General Equipment Purchase,,09/10/2015,"1,548.17",,Leisure Services
5214258,NEW CHARTER HOUSING TRUST GROUP,Stronger Communities,Director of People,Housing Aid Function,,08/10/2015,"29,945.05",,Unclassifiable
5214259,THE CONSERVATION VOLUNTEERS,Environmental Services,Director of Place,General Materials,,08/10/2015,640.00,,Human Resources
5214260,NEW CHARTER HOUSING TRUST GROUP,Stronger Communities,Director of People,Professional Medical Services,,08/10/2015,"3,750.00",,Unclassifiable
5214261,NEW CHARTER HOUSING TRUST GROUP,Stronger Communities,Director of People,Contributions,,08/10/2015,"4,166.66",,Unclassifiable
5214265,NUTTALL SOCIAL CARE LIMITED,Adult Social Care,Director of People,Professional Services,,02/12/2015,560.00,,Unclassifiable
5214271,GREENSCAPE,Adult Social Care,Director of People,Tree Planting Programme,,08/10/2015,"1,790.16",,"Works - Construction, Repair & Maintenance"
5214274,GREENSCAPE,Adult Social Care,Director of People,Professional Services,,08/10/2015,"7,000.00",,"Works - Construction, Repair & Maintenance"
5214276,OLDHAM COUNCIL,Environmental Services,Director of Place,Professional Consultancy Services,,08/10/2015,"1,095.70",,Unclassifiable
5214277,CROMWELL POLYTHENE LTD.,Environmental Services,Director of Place,Purchase Wheeled Bins,,08/10/2015,"4,792.80",,Unclassifiable
5214282,NEW CHARTER HOUSING TRUST GROUP,Stronger Communities,Director of People,Non-Authority Accommodation Rental,,14/10/2015,"50,000.00",,Unclassifiable
5214283,LIGHTBULB PSYCHOLOGY LTD,Education,Director of People,Professional Services,,28/10/2015,990.00,,Consultancy
5214284,CROMWELL POLYTHENE LTD.,Environmental Services,Director of Place,Purchase Wheeled Bins,,29/10/2015,"7,189.20",,Unclassifiable
5214295,SICO EUROPE LIMITED,Asset & Investment Partnership Management,Director of Place,Purchase Heavy Catering Equipment,,12/10/2015,836.10,,Furniture
5214296,THE FURNISHING SERVICE (ENGLAND),Stronger Communities,Director of People,Fixtures & Fittings Purchase,,28/10/2015,"1,662.87",,Unclassifiable
5214314,UPDATA INFRASTRUCTURE UK LTD,Multiple Heads of Service,Multiple Strategic Directorates,Communications Equipment,,16/12/2015,660.00,,Consultancy
5214321,OLDHAM COUNCIL,Childrens Services,Director of People,Other Local Authorities Fees,,09/10/2015,"160,000.00",,Unclassifiable
5214324,UPDATA INFRASTRUCTURE UK LTD,Multiple Heads of Service,Multiple Strategic Directorates,Telephone Landline Costs,,22/10/2015,602.22,,Consultancy
5214334,MOSSCARE HOUSING LTD,Stronger Communities,Director of People,Supporting People Gross Contract,,08/10/2015,"6,064.00",,Social Community Care Supplies & Services
5214336,MOSSCARE HOUSING LTD,Stronger Communities,Director of People,Supporting People Gross Contract,,08/10/2015,"6,064.00",,Social Community Care Supplies & Services
5214340,PENNINE CARE IN PATIENT SERVS PRIORY,Education,Director of People,Procurement Hub Holding Account,,09/11/2015,"2,625.00",,Social Community Care
5214342,PENNINE CARE IN PATIENT SERVS PRIORY,Education,Director of People,Procurement Hub Holding Account,,09/11/2015,"3,500.00",,Social Community Care
5214344,PENNINE CARE IN PATIENT SERVS PRIORY,Education,Director of People,Procurement Hub Holding Account,,09/11/2015,"1,400.00",,Social Community Care
5214351,STEP AHEAD RESOURCE SERVICES,Adult Social Care,Director of People,Procurement Hub Holding Account,,09/11/2015,850.00,,Social Community Care
5214357,ELECTORAL REFORM SERVICES,Governance,Director of Governance and Resources,Printing And Stationery,,08/10/2015,"33,362.77",,Unclassifiable
5214359,PLATINUM STAIRLIFTS LIMITED,Housing,Director of Place,Improvement Grants - Final Mandatory,,22/10/2015,"1,448.75",,Unclassifiable
5214365,UPDATA INFRASTRUCTURE UK LTD,Multiple Heads of Service,Multiple Strategic Directorates,Communications Equipment,,22/10/2015,"2,160.00",,Consultancy
5214367,TERESA HUGHES,Development Growth & Investment,Director of Place,Professional Consultancy Services,,26/10/2015,"3,500.00",,Unclassifiable
5214369,PROFILE SECURITY SERVICES LIMITED,Asset & Investment Partnership Management,Director of Place,Security Services,,08/10/2015,968.41,,Facilities & Management Services
5214371,ROYAL MAIL GROUP PLC,Exchequer,Director of Governance and Resources,Postages,,15/10/2015,"2,652.47",,Mail Services
5214374,BEMROSEBOOTH,Environmental Services,Director of Place,General Materials,,29/10/2015,787.50,,Facilities & Management Services
5214376,THE FURNISHING SERVICE (ENGLAND),Stronger Communities,Director of People,Fixtures & Fittings Purchase,,28/10/2015,695.25,,Unclassifiable
5214379,PLATINUM STAIRLIFTS LIMITED,Housing,Director of Place,Improvement Grants - Final Mandatory,,22/10/2015,"1,880.00",,Unclassifiable
5214380,PLATINUM STAIRLIFTS LIMITED,Housing,Director of Place,Improvement Grants - Final Mandatory,,22/10/2015,"1,623.75",,Unclassifiable
5214381,THE FURNISHING SERVICE (ENGLAND),Stronger Communities,Director of People,Fixtures & Fittings Purchase,,28/10/2015,"1,977.14",,Unclassifiable
5214382,PLATINUM STAIRLIFTS LIMITED,Housing,Director of Place,Improvement Grants - Final Mandatory,,19/10/2015,"1,473.75",,Unclassifiable
5214384,THE FURNISHING SERVICE (ENGLAND),Stronger Communities,Director of People,Fixtures & Fittings Purchase,,28/10/2015,"1,120.69",,Unclassifiable
5214385,THE FURNISHING SERVICE (ENGLAND),Stronger Communities,Director of People,Fixtures & Fittings Purchase,,28/10/2015,544.31,,Unclassifiable
5214388,THE FURNISHING SERVICE (ENGLAND),Stronger Communities,Director of People,Fixtures & Fittings Purchase,,28/10/2015,651.22,,Unclassifiable
5214392,THE FURNISHING SERVICE (ENGLAND),Stronger Communities,Director of People,Fixtures & Fittings Purchase,,28/10/2015,"1,002.43",,Unclassifiable
5214395,TRANSPORT FOR GREATER MANCHESTER,Capital Programme,(blank),Engineers -External,,28/10/2015,"1,560.00",,Transport
5214396,TRANSPORT FOR GREATER MANCHESTER,Capital Programme,(blank),Engineers -External,,28/10/2015,"1,560.00",,Transport
5214398,TRANSPORT FOR GREATER MANCHESTER,Capital Programme,(blank),Engineers -External,,28/10/2015,640.00,,Transport
5214411,GLASDON UK LTD,Environmental Services,Director of Place,General Materials,,28/10/2015,706.00,,Highway Equipment & Materials�
5214417,INSPIREDSPACES TAMESIDE (PROJECTCO2) LTD,Asset & Investment Partnership Management,Director of Place,Professional Services,,20/10/2015,"1,376.27",,"Works - Construction, Repair & Maintenance"
5214417,INSPIREDSPACES TAMESIDE (PROJECTCO2) LTD,Asset & Investment Partnership Management,Director of Place,Unitary Charge Payments,,20/10/2015,"821,156.98",,"Works - Construction, Repair & Maintenance"
5214417,INSPIREDSPACES TAMESIDE (PROJECTCO2) LTD,Asset & Investment Partnership Management,Director of Place,Utilities,,20/10/2015,"52,210.45",,"Works - Construction, Repair & Maintenance"
5214426,INSPIREDSPACES TAMESIDE(PROJECTCO1) LTD,Asset & Investment Partnership Management,Director of Place,Professional Services,,20/10/2015,492.50,,"Works - Construction, Repair & Maintenance"
5214426,INSPIREDSPACES TAMESIDE(PROJECTCO1) LTD,Asset & Investment Partnership Management,Director of Place,Unitary Charge Payments,,20/10/2015,"496,142.92",,"Works - Construction, Repair & Maintenance"
5214426,INSPIREDSPACES TAMESIDE(PROJECTCO1) LTD,Asset & Investment Partnership Management,Director of Place,Utilities,,20/10/2015,"30,618.05",,"Works - Construction, Repair & Maintenance"
5214431,INSPIREDSPACES TAMESIDE LTD,Asset & Investment Partnership Management,Director of Place,Non-Authority Accommodation Rental,,20/10/2015,"65,891.35",,Consultancy
5214431,INSPIREDSPACES TAMESIDE LTD,Asset & Investment Partnership Management,Director of Place,Utilities,,20/10/2015,"129,234.75",,Consultancy
5214433,AD HOC CHAPS PAYMENT,Corporate Costs,Corporate Costs,Contributions,,13/10/2015,"1,011.42",,Chaps Payments
5214437,GROUNDWORK LANDSCAPES LIMITED,Environmental Services,Director of Place,General Materials,,29/10/2015,"1,035.00",,"Works - Construction, Repair & Maintenance"
5214441,WESSEX LIFT CO. LIMITED,Housing,Director of Place,Improvement Grants - Final Mandatory,,22/10/2015,"15,161.00",,"Works - Construction, Repair & Maintenance"
5214446,TYNETEC,Adult Social Care,Director of People,It Equipment,,29/10/2015,797.85,,Social Community Care
5214461,BRUEL & KJAER UK LTD,Environmental Services,Director of Place,Security Equipment,,29/10/2015,739.10,,Environmental Services
5214464,COMFORT CALL LIMITED,Adult Social Care,Director of People,Homecare Fees,,08/10/2015,"31,747.45",,Medical
5214466,DIRECT CARE (NORTH WEST) LTD,Adult Social Care,Director of People,Homecare Fees,,08/10/2015,"12,824.99",,Social Community Care Supplies & Services
5214469,TAMESIDE ARTS LTD,Adult Social Care,Director of People,Professional Services,,14/10/2015,"1,009.80",,Leisure Services
5214471,CLOVERLEAF ADVOCACY 2000 LTD,Adult Social Care,Director of People,Professional Services,,29/10/2015,"12,408.30",,Social Community Care Supplies & Services
5214475,J A FINNERTY LTD,Housing,Director of Place,Improvement Grants - Final Mandatory,,22/10/2015,"4,653.67",,"Works -  Construction, Repair & Maintenance"
5214489,CAPSTONE FOSTER CARE,Childrens Services,Director of People,Procurement Hub Holding Account,,22/10/2015,"3,534.00",,Social Community Care Supplies & Services
5214490,OTIS LIMITED,Development Growth & Investment,Director of Place,Plant/Equipment Repairs & Maintenance,,08/10/2015,"1,929.29",,Facilities & Management Services
5214495,TAMESIDE LINK,Adult Social Care,Director of People,Voluntary Organisations Fees,,08/10/2015,"15,957.89",,Social Community Care Supplies & Services
5214503,THE FURNISHING SERVICE (ENGLAND),Stronger Communities,Director of People,Fixtures & Fittings Purchase,,28/10/2015,544.04,,Unclassifiable
5214504,WRIXON CARE SERVICES LTD,Childrens Services,Director of People,Transport Of Pupils,,08/10/2015,656.11,,Social Community Care Supplies & Services
5214507,COMMUNITY INTEGRATED CARE,Adult Social Care,Director of People,Homecare Fees,,29/10/2015,"18,360.00",,Social Community Care Supplies & Services
5214513,MRL HEALTHCARE LIMITED,Adult Social Care,Director of People,Homecare Fees,,15/10/2015,"19,215.00",,Social Community Care Supplies & Services
5214514,TAMESIDE LINK,Adult Social Care,Director of People,Voluntary Organisations Fees,,08/10/2015,"1,406.60",,Social Community Care Supplies & Services
5214516,NEW BRIDGE HORIZONS,Adult Social Care,Director of People,Homecare Fees,,29/10/2015,"2,335.00",,Social Community Care Supplies & Services
5214517,MRL HEALTHCARE LIMITED,Adult Social Care,Director of People,Homecare Fees,,15/10/2015,"1,996.18",,Social Community Care Supplies & Services
5214518,ALTERNATIVE FUTURES GROUP,Adult Social Care,Director of People,Homecare Fees,,12/10/2015,"138,141.84",,Social Community Care Supplies & Services
5214521,ABLE CARE AND SUPPORT SERVICES LTD,Adult Social Care,Director of People,Homecare Fees,,15/10/2015,"1,305.55",,Social Community Care Supplies & Services
5214531,NEW BRIDGE HORIZONS,Adult Social Care,Director of People,Homecare Fees,,29/10/2015,508.00,,Social Community Care Supplies & Services
5214537,MRS FRANCES MARTIN,Adult Social Care,Director of People,Contribution to Maintenance Fee Income,,08/10/2015,828.03,,Unclassifiable
5214538,POSTAGE BY PHONE PITNEY BOWES LTD,Exchequer,Director of Governance and Resources,Postages,,08/10/2015,"40,000.00",,Mail Services�
5214545,AUTUMN (UK)  LTD,Housing,Director of Place,Improvement Grants - Final Mandatory,,12/10/2015,"3,511.99",,Social Community Care Supplies & Services
5214546,DIRECT CARE (NORTH WEST) LTD,Adult Social Care,Director of People,Homecare Fees,,15/10/2015,"12,612.47",,Social Community Care Supplies & Services
5214549,LAUREL BANK SUPPORT AT HOME,Adult Social Care,Director of People,Homecare Fees,,19/10/2015,"2,658.08",,Social Community Care Supplies & Services
5214550,PEOPLE FIRST TAMESIDE,Adult Social Care,Director of People,Contributions,,09/10/2015,"16,467.63",,Social Community Care Supplies & Services
5214551,RICHARD DAWSON,Stronger Communities,Director of People,"Activity (Materials, Trips)",Business Payment,08/10/2015,"1,945.00",,Unclassifiable
5214558,JACKSON & TAYLOR LTD,Housing,Director of Place,Improvement Grants - Final Mandatory,,12/10/2015,"3,915.00",,"Works -  Construction, Repair & Maintenance"
5214559,NORTH WEST CONSTRUCTION,Housing,Director of Place,Improvement Grants - Final Mandatory,,12/10/2015,"3,949.00",,"Works - Construction, Repair & Maintenance"
5214560,RAYMOND C HARRISON BUILDERS,Housing,Director of Place,Improvement Grants - Final Mandatory,,29/10/2015,"3,930.00",,"Works -  Construction, Repair & Maintenance"
5214561,SALFORD PROFESSIONAL DEVELOPMENT,Education,Director of People,Conference/Seminar Expenses For Staff,,29/10/2015,600.00,,Unclassifiable
5214562,NEW BRIDGE HORIZONS,Adult Social Care,Director of People,Homecare Fees,,29/10/2015,"1,634.50",,Social Community Care Supplies & Services
5214563,NEW BRIDGE HORIZONS,Adult Social Care,Director of People,Homecare Fees,,29/10/2015,"2,101.50",,Social Community Care Supplies & Services
5214564,RICOH UK,Education,Director of People,Printing And Stationery,,12/10/2015,571.76,,Facilities & Management Services
5214565,WILLIAMS WOODWARD LTD,Finance,Director of Governance and Resources,Professional Consultancy Services,,22/10/2015,"4,150.00",,Unclassifiable
5214566,RUTH MISKIN LITERACY LTD,Education,Director of People,Professional Services,,21/12/2015,"2,200.00",,Unclassifiable
5214569,CREATIVE SUPPORT LTD,Adult Social Care,Director of People,Homecare Fees,,05/11/2015,"15,126.50",,Social Community Care Supplies & Services
5214577,PETERS BOOKSELLING SERVICES,Stronger Communities,Director of People,Purchase Books,,18/11/2015,"3,441.56",,Education
5214578,SPECIALISED HOMES AND LODGINGS LTD,Childrens Services,Director of People,Procurement Hub Holding Account,,19/10/2015,"11,131.42",,Unclassifiable
5214586,THE CONSERVATION VOLUNTEERS,Environmental Services,Director of Place,General Materials,,29/10/2015,640.00,,Human Resources
5214594,ADDLESHAW GODDARD,Asset Management and Investment Partnership Management,Director of Place,Legal - External,,29/10/2015,"9,607.30",,Unclassifiable
5214598,QUADRANT SECURITY GROUP LTD,Asset & Investment Partnership Management,Director of Place,Blind/Deaf Aids & Appliances,,29/10/2015,"9,727.75",,Unclassifiable
5214599,MANCHESTER CAMERATA LTD,Public Health,Director of Public Health,Professional Services,,29/10/2015,500.00,,Leisure Services
5214600,STOCKPORT MBC,Corporate Costs,Corporate Costs,Coroners Service Costs,,03/12/2015,"117,957.00",,Unclassifiable
5214601,ADDLESHAW GODDARD,Asset Management and Investment Partnership Management,Director of Place,Legal - External,,29/10/2015,"2,429.17",,Unclassifiable
5214602,CHARTERED INSTITUTE OF ENVIRONMENTAL HEALTH,Environmental Services,Director of Place,Printing And Stationery,,29/10/2015,825.75,,Environmental Services
5214604,ADDLESHAW GODDARD,Asset Management and Investment Partnership Management,Director of Place,Legal - External,,29/10/2015,"6,174.55",,Unclassifiable
5214606,ASKEWS  AND HOLTS LIBRARY SERVICES LTD,Stronger Communities,Director of People,Purchase Books,,04/11/2015,"1,688.48",,Education
5214609,ISLAND LEISURE PRODUCTS,Environmental Services,Director of Place,General Materials,,09/12/2015,650.00,,Sports & Playground Equipment & Maintenance
5214616,N A BROWN LTD,Environmental Services,Director of Place,General Materials,,02/11/2015,959.00,,Unclassifiable
5214620,ALLIED HEALTHCARE GROUP LTD (MEDICO),Adult Social Care,Director of People,Homecare Fees,,08/10/2015,"10,569.32",,Social Community Care Supplies & Services
5214624,CREATIVE SUPPORT LTD,Adult Social Care,Director of People,Homecare Fees,,05/11/2015,"15,126.50",,Social Community Care Supplies & Services
5214626,ALLIED HEALTHCARE GROUP LTD (MEDICO),Adult Social Care,Director of People,Homecare Fees,,15/10/2015,"10,505.27",,Social Community Care Supplies & Services
5214627,R S & P HARRISON PROPERTY,Asset & Investment Partnership Management,Director of Place,Non-Authority Accommodation Rental,,14/10/2015,"1,666.66",,Unclassifiable
5214633,RICOH UK,Multiple Heads of Service,Multiple Strategic Directorates,Debits,,09/10/2015,572.85,,Facilities & Management Services
5214636,CARE IN MIND LTD,Childrens Services,Director of People,Homecare Fees,,05/11/2015,"4,788.26",,Unclassifiable
5214637,ANDREW MOORE,Childrens Services,Director of People,Professional Services,Business Payment,08/10/2015,"1,680.00",,Legal Services
5214638,PHS GROUP PLC,Asset & Investment Partnership Management,Director of Place,Personal Hygiene Costs,,28/10/2015,570.96,,Cleaning & Janitorial
5214644,FORBES SOLICITORS,Multiple Heads of Service,Multiple Strategic Directorates,Claims Settled,,09/10/2015,"2,266.46",,Legal Services
5214645,ROGER HANNAH & CO,Tameside Investment Partnership,Director of Place,Debits,,08/10/2015,"1,500.00",,Legal Services
5214646,ORANGE,Digital Tameside,Director of Place,Telephone Landline Costs,,02/12/2015,"2,190.00",,Unclassifiable
5214648,ELECTRICITY NORTH WEST LTD,Capital Programme,(blank),Engineers -External,,14/10/2015,"23,374.00",,Utilities
5214652,E PETCH PRINTERS LTD,Governance,Director of Governance and Resources,Printing And Stationery,,09/10/2015,955.00,,Facilities & Management Services
5214656,LEISA GRAY,Stronger Communities,Director of People,Professional Entertainment Services,,08/10/2015,"1,725.00",,Unclassifiable
5214657,B&E CONSULTANTS LTD,Public Health,Director of Public Health,Professional Services,,12/10/2015,"1,500.00",,Unclassifiable
5214658,COMPENDIUM EDUCATION AND TRAINING LTD,Education,Director of People,Professional Consultancy Services,,02/11/2015,600.00,,Education
5214661,LEISA GRAY,Stronger Communities,Director of People,General Materials,,08/10/2015,645.24,,Unclassifiable
5214668,POSITIVE STEPS OLDHAM,Childrens Services,Director of People,Training Course Costs,,05/11/2015,"1,890.00",,Unclassifiable
5214669,L&R ROADLINES LTD,Engineers Client,Director of Place,Road Marking Works,,28/10/2015,288.00,,Highway Equipment & Materials
5214669,L&R ROADLINES LTD,Environmental Services,Director of Place,Building Works,,28/10/2015,643.50,,Highway Equipment & Materials
5214669,L&R ROADLINES LTD,Environmental Services,Director of Place,Engineers Works,,28/10/2015,347.98,,Highway Equipment & Materials
5214669,L&R ROADLINES LTD,Environmental Services,Director of Place,HRA Repairs Engineers Recharge,,28/10/2015,167.76,,Highway Equipment & Materials
5214669,L&R ROADLINES LTD,Capital Programme,(blank),Highway Construction,,28/10/2015,44.64,,Highway Equipment & Materials
5214669,L&R ROADLINES LTD,Capital Programme,(blank),Road Marking Works,,28/10/2015,"2,821.57",,Highway Equipment & Materials
5214671,NSL LIMITED,Environmental Services,Director of Place,NSL Fees,,28/10/2015,"54,029.65",,Traffic Management
5214678,CITY LIFT SERVICES (NW) LTD,Adult Social Care,Director of People,General Equipment Repair & Maintenance,,19/10/2015,650.00,,Unclassifiable
5214692,ADDLESHAW GODDARD,Asset Management and Investment Partnership Management,Director of Place,Legal - External,,29/10/2015,"3,208.67",,Unclassifiable
5214696,TOGETHER FOR MENTAL WELLBEING,Adult Social Care,Director of People,Professional Services,,04/11/2015,"7,418.25",,Social Community Care
5214705,ROYAL MAIL GROUP PLC,Exchequer,Director of Governance and Resources,Postages,,14/10/2015,"2,535.21",,Mail Services
5214706,ROYAL MAIL GROUP PLC,Exchequer,Director of Governance and Resources,Postages,,14/10/2015,"2,286.45",,Mail Services
5214714,INSPIREDSPACES TAMESIDE LTD,Asset & Investment Partnership Management,Director of Place,Agency Staff,,20/10/2015,"40,561.00",,Consultancy
5214714,INSPIREDSPACES TAMESIDE LTD,Asset & Investment Partnership Management,Director of Place,Building Maintenance,,20/10/2015,"160,442.49",,Consultancy
5214714,INSPIREDSPACES TAMESIDE LTD,Asset & Investment Partnership Management,Director of Place,Building Repairs,,20/10/2015,"1,951.37",,Consultancy
5214714,INSPIREDSPACES TAMESIDE LTD,Asset & Investment Partnership Management,Director of Place,Hire Of Rooms,,20/10/2015,"-17,335.45",,Consultancy
5214714,INSPIREDSPACES TAMESIDE LTD,Asset & Investment Partnership Management,Director of Place,Professional Services,,20/10/2015,"80,900.00",,Consultancy
5214716,INSPIREDSPACES TAMESIDE LTD,Asset Management and Investment Partnership Management,Director of Place,Computer Hardware,,20/10/2015,"2,450.00",,Consultancy
5214716,INSPIREDSPACES TAMESIDE LTD,Asset Management and Investment Partnership Management,Director of Place,Other Works,,20/10/2015,"139,267.95",,Consultancy
5214716,INSPIREDSPACES TAMESIDE LTD,Tameside Investment Partnership,Director of Place,Other Works,,20/10/2015,"28,924.83",,Consultancy
5214716,INSPIREDSPACES TAMESIDE LTD,Capital Programme,(blank),Asbestos Removal,,20/10/2015,"43,555.51",,Consultancy
5214732,CALLROUND LIMITED,Education,Director of People,Professional Services,,04/11/2015,"1,000.00",,Public Bodies
5214740,YOUTH JUSTICE BOARD,Childrens Services,Director of People,Other Accomodation Related Costs,,22/10/2015,"17,329.00",,Unclassifiable
5214746,MARK HANCOCK,Education,Director of People,Professional Services,,29/10/2015,"1,600.00",,Education
5214755,DR MARGARET SMITH,Education,Director of People,Professional Services,Business Payment,29/10/2015,"1,400.00",,Medical
5214760,MASSEY & HARRIS LTD,Environmental Services,Director of Place,General Materials,,29/10/2015,"3,750.00",,Sports & Playground Equipment & Maintenance
5214776,MR D WRIGHT & MRS CA WRIGHT,Adult Social Care,Director of People,Agency Staff,,12/10/2015,310.73,,Unclassifiable
5214776,MR D WRIGHT & MRS CA WRIGHT,Adult Social Care,Director of People,Residential Home Short Stay Fees,,12/10/2015,561.54,,Unclassifiable
5214777,THRESHOLD HOUSING PROJECT,Stronger Communities,Director of People,Supporting People Gross Contract,,16/11/2015,"27,259.75",,Housing Management
5214796,STEP AHEAD RESOURCE SERVICES,Adult Social Care,Director of People,Procurement Hub Holding Account,,09/12/2015,850.00,,Social Community Care
5214804,NORTH WEST COMMUNITY  SERVICES (GTR M/CR) LTD,Adult Social Care,Director of People,Homecare Fees,,02/11/2015,"9,765.91",,Social Community Care Supplies & Services
5214811,MONARCH SHELVING LTD,Education,Director of People,Purchase General Office Equipment,,02/11/2015,"2,537.00",,Building Construction Materials
5214815,THE FURNISHING SERVICE (ENGLAND),Stronger Communities,Director of People,Fixtures & Fittings Purchase,,05/11/2015,839.80,,Unclassifiable
5214817,DAISY COMMUNICATIONS LTD,Multiple Heads of Service,Multiple Strategic Directorates,Debits,,29/10/2015,"4,146.83",,Public Bodies
5214820,MANCHESTER METROPOLITAN UNIVERSITY,Governance,Director of Governance and Resources,Fee Income,,09/11/2015,"3,740.00",,Unclassifiable
5214823,NEW CHARTER HOUSING TRUST GROUP,Adult Social Care,Director of People,Non-Authority Accommodation Rental,,12/10/2015,"7,275.76",,Unclassifiable
5214828,ROYALE MINICOACHES,Education,Director of People,Transport Of Pupils,,09/10/2015,"2,000.00",,Unclassifiable
5214835,FOSTERING RELATIONS,Childrens Services,Director of People,Procurement Hub Holding Account,,19/10/2015,"2,094.00",,Unclassifiable
5214839,CF ASSESMENTS LTD,Childrens Services,Director of People,Procurement Hub Holding Account,,14/10/2015,"2,013.98",,Financial Services
5214840,SHERIDAN DESIGN,Stronger Communities,Director of People,General Materials,,05/11/2015,"1,080.00",,Financial Services
5214846,LIFELINE PROJECT LTD (PH),Public Health,Director of Public Health,Professional Services,,05/11/2015,"297,833.00",,Consultancy
5214847,BT PLC,Engineers Client,Director of Place,Telecom,,14/10/2015,"8,934.64",,Information Communication Technology
5214849,PG FABRICATIONS,Environmental Services,Director of Place,General Materials,,15/10/2015,510.00,,"Works - Construction, Repair & Maintenance"
5214857,CLICKS TO APPS LTD,Childrens Services,Director of People,Professional Services,,15/10/2015,910.00,,Unclassifiable
5214858,DR RICHARD SKELTON,Education,Director of People,Professional Services,,04/11/2015,"5,800.00",,Medical
5214867,THE FURNISHING SERVICE (ENGLAND),Stronger Communities,Director of People,Fixtures & Fittings Purchase,,05/11/2015,927.63,,Unclassifiable
5214890,THE CHESHIRE & GREATER MANCHESTER COMMUNITY REHABILITATION COMPANY LTD,Environmental Services,Director of Place,Professional Services,,04/11/2015,"7,000.00",,Unclassifiable
5214891,FAIRFIELD RESIDENTIAL,Education,Director of People,Voluntary Organisations Fees,,26/10/2015,"3,200.00",,Human Resources
5214893,POLICE AND CRIME COMMISSIONER FOR GREATER MANCHESTER - AP & R UNIT,Childrens Services,Director of People,Professional Services,,02/11/2015,"1,913.10",,Unclassifiable
5214898,CF ASSESMENTS LTD,Childrens Services,Director of People,Inspection Fees,,14/10/2015,"2,000.34",,Financial Services
5214900,BROXAP LIMITED,Environmental Services,Director of Place,General Materials,,22/10/2015,986.00,,Highway Equipment & Materials�
5214903,COOLSPIRIT LTD,Digital Tameside,Director of Place,Computer Hardware Maintenance Costs,,04/11/2015,"2,166.67",,Information Communication Technology
5214905,NATIONAL YOUTH ADVOCACY SERVICE,Childrens Services,Director of People,Professional Services,,29/10/2015,"17,999.03",,Charities and Voluntary Organisations
5214907,BROXAP LIMITED,Environmental Services,Director of Place,General Materials,,28/10/2015,"2,700.00",,Highway Equipment & Materials�
5214911,REAL REINDEER LTD,Development Growth & Investment,Director of Place,Professional Entertainment Services,,12/10/2015,"1,295.00",,Leisure Services
5214913,BRIAN OLIVER,Multiple Heads of Service,Multiple Strategic Directorates,Tax Retained Sub Contractors,Business Payment,12/10/2015,"2,002.14",,"Works - Construction, Repair & Maintenance"
5214914,MARK HARLOW,Environmental Services,Director of Place,Hired Transport,Business Payment,12/10/2015,880.00,,Unclassifiable
5214915,MARK HARLOW,Environmental Services,Director of Place,Hired Transport,Business Payment,12/10/2015,"1,540.00",,Unclassifiable
5214916,DAVID CROZIER,Education,Director of People,Transport Of Post 16 Pupils,Business Payment,12/10/2015,"1,728.00",,Unclassifiable
5214917,DAVID CROZIER,Education,Director of People,Transport Of Post 16 Pupils,Business Payment,12/10/2015,"1,728.00",,Unclassifiable
5214918,G M GREEN,Education,Director of People,Transport Of Pupils,Business Payment,12/10/2015,"1,400.00",,Social Community Care Supplies & Services
5214919,B MORRELL,Education,Director of People,Transport Of Pupils,Business Payment,12/10/2015,"2,000.00",,Social Community Care
5214928,ROYAL MAIL GROUP PLC,Exchequer,Director of Governance and Resources,Postages,,26/10/2015,"2,006.85",,Mail Services
5214929,ROYAL MAIL GROUP PLC,Exchequer,Director of Governance and Resources,Postages,,12/11/2015,"2,504.38",,Mail Services
5214930,ROYAL MAIL GROUP PLC,Governance,Director of Governance and Resources,Postages,,26/10/2015,"1,628.94",,Mail Services
5214932,THE FURNISHING SERVICE (ENGLAND),Stronger Communities,Director of People,Fixtures & Fittings Purchase,,05/11/2015,"1,102.78",,Unclassifiable
5214936,COMFORT CALL LIMITED,Adult Social Care,Director of People,Homecare Fees,,15/10/2015,"31,185.95",,Medical
5214943,REDDIPAK LIMITED,Environmental Services,Director of Place,General Materials,,12/10/2015,"1,048.00",,Unclassifiable
5214954,ELECTORAL REFORM SERVICES,Governance,Director of Governance and Resources,Printing And Stationery,,19/10/2015,"1,613.48",,Unclassifiable
5214956,NORTH WEST COMMUNITY  SERVICES (GTR M/CR) LTD,Adult Social Care,Director of People,Homecare Fees,,29/10/2015,"2,227.74",,Social Community Care Supplies & Services
5214959,TAMESIDE CITIZENS ADVICE BUREAU,Exchequer,Director of Governance and Resources,Professional Services,,14/10/2015,"2,462.00",,Social Community Care Supplies & Services
5214960,TAMESIDE CITIZENS ADVICE BUREAU,Exchequer,Director of Governance and Resources,Professional Services,,14/10/2015,"2,462.00",,Social Community Care Supplies & Services
5214965,NORTH WEST COMMUNITY  SERVICES (GTR M/CR) LTD,Adult Social Care,Director of People,Homecare Fees,,29/10/2015,"9,216.32",,Social Community Care Supplies & Services
5214966,TAMESIDE ARTS LTD,Adult Social Care,Director of People,Professional Services,,14/10/2015,"1,009.80",,Leisure Services
5214967,PHONAK UK LIMITED,Education,Director of People,Educational Equipment,,05/11/2015,"2,100.00",,Social Community Care
5214968,THE ETHEROW CENTRE CHARITABLE TRUST LTD,Public Health,Director of Public Health,General Lease,,12/10/2015,"3,750.00",,Financial Services
5214971,STOCKPORT NHS FOUNDATION TRUST,Public Health,Director of Public Health,Professional Services,,26/10/2015,"287,882.00",,Medical
5214973,TROJAN LTD,Exchequer,Director of Governance and Resources,Subscriptions,,05/11/2015,"2,676.00",,Unclassifiable
5214974,NEW CHARTER HOUSING TRUST GROUP,Stronger Communities,Director of People,Supporting People Gross Contract,,16/10/2015,"20,022.16",,Unclassifiable
5214975,CENTRAL MANCHESTER UNIVERSITY HOSPITAL NHS FT,Public Health,Director of Public Health,Professional Services,,27/10/2015,"4,284.00",,Human Resources
5214977,RANDSTAD EDUCATION LIMITED,Education,Director of People,Agency Staff,,12/10/2015,534.50,,Education
5214979,POST OFFICE,Environmental Services,Director of Place,Motor Licence Costs,,23/10/2015,"2,210.00",,Mail Services
5214985,ALISON WALES,Childrens Services,Director of People,Professional Services,,10/12/2015,665.33,,Consultancy
5214986,BT PLC,Multiple Heads of Service,Multiple Strategic Directorates,Telephone Landline Costs,,16/10/2015,"5,599.24",,Information Communication Technology
5214988,SSI SCHAEFER LTD,Environmental Services,Director of Place,Refuse Domestic Bin Purchases,,22/10/2015,"38,336.40",,Environmental Services
5214993,CROFT INVESTMENTS LTD,Adult Social Care,Director of People,Non-Authority Accommodation Rental,,14/10/2015,"2,024.61",,Social Community Care Supplies & Services
5215004,HUGH MASON PROPERTIES LIMITED,Adult Social Care,Director of People,Non-Authority Accommodation Rental,,14/10/2015,"2,207.18",,Facilities & Management Services
5215008,HUGH MASON PROPERTIES LIMITED,Adult Social Care,Director of People,Non-Authority Accommodation Rental,,14/10/2015,"2,207.18",,Facilities & Management Services
5215011,HUGH MASON PROPERTIES LIMITED,Adult Social Care,Director of People,Non-Authority Accommodation Rental,,14/10/2015,"2,471.40",,Facilities & Management Services
5215014,STAMFORD PROPERTIES,Adult Social Care,Director of People,Non-Authority Accommodation Rental,,14/10/2015,"2,552.73",,Unclassifiable
5215016,HAMILTON PROPERTIES,Adult Social Care,Director of People,Non-Authority Accommodation Rental,,14/10/2015,"1,575.20",,Housing Management
5215019,WESLEY PROPERTIES (NORTHERN) LTD,Adult Social Care,Director of People,Non-Authority Accommodation Rental,,14/10/2015,"1,369.89",,Facilities & Management Services
5215022,NORTHERN PROPERTIES LTD,Adult Social Care,Director of People,Non-Authority Accommodation Rental,,14/10/2015,"1,847.29",,Facilities & Management Services
5215024,STAMFORD PROPERTIES,Adult Social Care,Director of People,Non-Authority Accommodation Rental,,14/10/2015,"1,017.43",,Unclassifiable
5215033,S & M BUILDERS TAMESIDE LTD,Environmental Services,Director of Place,Adaptations - Small Jobs,,05/11/2015,900.00,,"Works - Construction, Repair & Maintenance"
5215056,STOCKPORT NHS FOUNDATION TRUST,Environmental Services,Director of Place,Contract Passes,,26/10/2015,"2,160.00",,Medical
5215069,TYNETEC,Adult Social Care,Director of People,It Equipment,,09/11/2015,"1,063.20",,Social Community Care
5215074,INTACT PROJECTS LIMITED,Childrens Services,Director of People,Procurement Hub Holding Account,,19/10/2015,802.90,,Social Community Care Supplies & Services
5215084,INTACT PROJECTS LIMITED,Childrens Services,Director of People,Procurement Hub Holding Account,,19/10/2015,"1,430.00",,Social Community Care Supplies & Services
5215093,PROFILE SECURITY SERVICES LIMITED,Environmental Services,Director of Place,Security Services,,29/10/2015,"2,451.02",,Facilities & Management Services
5215094,ST JOHN AMBULANCE,Governance,Director of Governance and Resources,Training Course Costs,,22/10/2015,"1,440.00",,Unclassifiable
5215095,TAMESIDE CITIZENS ADVICE BUREAU,Exchequer,Director of Governance and Resources,Professional Services,,16/10/2015,"2,462.00",,Social Community Care Supplies & Services
5215099,HMCTS,Exchequer,Director of Governance and Resources,Court Fees,,22/10/2015,"5,466.00",,Unclassifiable
5215124,QUAYSIDE CHILDCARE LTD,Childrens Services,Director of People,Other Accomodation Related Costs,,22/10/2015,562.50,,Social Community Care Supplies & Services
5215125,QUAYSIDE CHILDCARE LTD,Childrens Services,Director of People,Other Accomodation Related Costs,,22/10/2015,787.50,,Social Community Care Supplies & Services
5215133,STAMFORD CARS UK LTD,Education,Director of People,Transport Of Ola Pupils,,14/10/2015,"2,100.00",,Unclassifiable
5215134,STAMFORD CARS UK LTD,Education,Director of People,Transport Of Ola Pupils,,14/10/2015,"2,100.00",,Unclassifiable
5215136,STAMFORD CARS UK LTD,Education,Director of People,Transport Of Pupils,,14/10/2015,"1,620.00",,Unclassifiable
5215137,TORDAN HEALTHCARE LTD,Childrens Services,Director of People,Homecare Fees,,14/10/2015,"7,581.00",,Medical
5215141,TORDAN HEALTHCARE LTD,Childrens Services,Director of People,Homecare Fees,,14/10/2015,"2,694.00",,Medical
5215144,STAMFORD CARS UK LTD,Education,Director of People,Transport Of Ola Pupils,,14/10/2015,"1,774.50",,Unclassifiable
5215146,STAMFORD CARS UK LTD,Education,Director of People,Transport Of Pupils,,14/10/2015,"1,405.00",,Unclassifiable
5215147,STAMFORD CARS UK LTD,Education,Director of People,Transport Of Pupils,,14/10/2015,997.50,,Unclassifiable
5215148,STAMFORD CARS UK LTD,Education,Director of People,Transport Of Pupils,,14/10/2015,"1,323.00",,Unclassifiable
5215149,STAMFORD CARS UK LTD,Education,Director of People,Transport Of Pupils,,22/10/2015,"1,405.00",,Unclassifiable
5215150,STAMFORD CARS UK LTD,Education,Director of People,Transport Of Post 16 Pupils,,14/10/2015,"1,047.00",,Unclassifiable
5215152,STAMFORD CARS UK LTD,Education,Director of People,Transport Of Post 16 Pupils,,14/10/2015,"1,122.00",,Unclassifiable
5215153,STAMFORD CARS UK LTD,Environmental Services,Director of Place,Hired Transport,,14/10/2015,"1,210.00",,Unclassifiable
5215155,STAMFORD CARS UK LTD,Environmental Services,Director of Place,Hired Transport,,14/10/2015,765.00,,Unclassifiable
5215156,MICHAEL ADLARD,Childrens Services,Director of People,Hired Transport,Business Payment,14/10/2015,571.50,,Transport
5215157,STAMFORD CARS UK LTD,Environmental Services,Director of Place,Hired Transport,,14/10/2015,800.00,,Unclassifiable
5215159,STAMFORD CARS UK LTD,Environmental Services,Director of Place,Hired Transport,,14/10/2015,540.00,,Unclassifiable
5215185,FIRST AID FOR ALL LTD,Environmental Services,Director of Place,First Aid Equipment,,09/11/2015,"1,015.00",,Human Resources
5215186,TRANSPORT FOR GREATER MANCHESTER,Capital Programme,(blank),Engineers -External,,14/10/2015,"1,600.00",,Transport
5215188,ALTERNATIVE FUTURES GROUP,Adult Social Care,Director of People,Homecare Fees,,12/11/2015,"25,744.12",,Social Community Care Supplies & Services
5215189,ALTERNATIVE FUTURES GROUP,Adult Social Care,Director of People,Homecare Fees,,12/11/2015,"138,833.33",,Social Community Care Supplies & Services
5215190,ALTERNATIVE FUTURES GROUP,Adult Social Care,Director of People,Homecare Fees,,12/11/2015,"138,141.84",,Social Community Care Supplies & Services
5215193,DOMAIN CARE NORTH WEST LTD,Adult Social Care,Director of People,Homecare Fees,,29/10/2015,"1,440.00",,Social Community Care
5215194,DOMAIN CARE NORTH WEST LTD,Adult Social Care,Director of People,Homecare Fees,,29/10/2015,"4,060.00",,Social Community Care
5215195,DOMAIN CARE NORTH WEST LTD,Adult Social Care,Director of People,Homecare Fees,,29/10/2015,"1,048.39",,Social Community Care
5215197,VERGO UK,Adults Early Intervention,Director of People,Purchase General Office Equipment,,16/12/2015,"1,027.76",,Furniture
5215203,LINCOLNSHIRE COUNTY COUNCIL,Childrens Services,Director of People,Other Accomodation Related Costs,,23/11/2015,725.00,,Unclassifiable
5215205,UNITED UTILITIES WATER PLC,Asset & Investment Partnership Management,Director of Place,Metered Water Costs,,19/10/2015,"1,047.08",,Utilities
5215207,THE FURNISHING SERVICE (ENGLAND),Stronger Communities,Director of People,Fixtures & Fittings Purchase,,09/11/2015,"1,370.67",,Unclassifiable
5215212,WILLIAMS WOODWARD LTD,Finance,Director of Governance and Resources,Professional Consultancy Services,,09/11/2015,"3,320.00",,Unclassifiable
5215213,WELFARE CALL (LAC) LTD,Education,Director of People,Computer Software,,11/11/2015,"4,545.45",,Unclassifiable
5215219,GREATER MANCHESTER COMBINED AUTHORITY,Engineers Client,Director of Place,Engineers -External,,22/10/2015,642.00,,Unclassifiable
5215221,"TAMESIDE, OLDHAM AND GLOSSOP MIND",Public Health,Director of Public Health,Professional Services,,14/10/2015,"4,000.00",,Social Community Care Supplies & Services
5215223,"TAMESIDE, OLDHAM AND GLOSSOP MIND",Adults Early Intervention,Director of People,Professional Services,,09/12/2015,"44,167.50",,Social Community Care Supplies & Services
5215224,BHA FOR EQUALITY,Public Health,Director of Public Health,Procurement Hub Holding Account,,09/11/2015,"1,500.00",,Unclassifiable
5215227,GREATER MANCHESTER COMBINED AUTHORITY,Engineers Client,Director of Place,Traffic Signals,,22/10/2015,"1,981.90",,Unclassifiable
5215231,GREATER MANCHESTER COMBINED AUTHORITY,Engineers Client,Director of Place,Engineers -External,,22/10/2015,"7,240.01",,Unclassifiable
5215232,GREATER MANCHESTER COMBINED AUTHORITY,Engineers Client,Director of Place,Engineers -External,,22/10/2015,"33,769.11",,Unclassifiable
5215233,GREATER MANCHESTER COMBINED AUTHORITY,Engineers Client,Director of Place,Engineers -External,,22/10/2015,"2,064.01",,Unclassifiable
5215234,COMPLETE BACKGROUND SCREENING LTD,Governance,Director of Governance and Resources,Professional Services,,19/10/2015,"2,325.00",,Unclassifiable
5215244,HENCEWELL,Childrens Services,Director of People,Professional Services,,22/10/2015,"4,877.05",,Unclassifiable
5215245,MRL HEALTHCARE LIMITED,Adult Social Care,Director of People,Homecare Fees,,15/10/2015,"19,215.00",,Social Community Care Supplies & Services
5215248,NCC SERVICES LIMITED,Stronger Communities,Director of People,Computer Software,,22/10/2015,845.00,,Consultancy
5215250,ALISON WALES,Childrens Services,Director of People,Professional Services,,22/10/2015,665.33,,Consultancy
5215252,DAVID CROZIER,Education,Director of People,Transport Of Post 16 Pupils,Business Payment,15/10/2015,"1,728.00",,Unclassifiable
5215255,COMPLETE BACKGROUND SCREENING LTD,Governance,Director of Governance and Resources,Professional Services,,19/10/2015,"1,920.00",,Unclassifiable
5215275,ABLE CARE AND SUPPORT SERVICES LTD,Adult Social Care,Director of People,Homecare Fees,,22/10/2015,"1,206.28",,Social Community Care Supplies & Services
5215278,THE FURNISHING SERVICE (ENGLAND),Stronger Communities,Director of People,Fixtures & Fittings Purchase,,11/11/2015,"1,355.85",,Unclassifiable
5215279,TAMESIDE ARTS LTD,Adult Social Care,Director of People,Professional Services,,12/11/2015,"1,009.80",,Leisure Services
5215280,THE FURNISHING SERVICE (ENGLAND),Stronger Communities,Director of People,Fixtures & Fittings Purchase,,11/11/2015,720.37,,Unclassifiable
5215284,LOUISE LIGHTFOOT,Education,Director of People,Professional Services,Business Payment,11/11/2015,"1,400.00",,Unclassifiable
5215286,POSITIVE STEPS OLDHAM,Development Growth & Investment,Director of Place,Professional Services,,12/11/2015,"38,219.18",,Unclassifiable
5215289,"TAMESIDE, OLDHAM AND GLOSSOP MIND",Adult Social Care,Director of People,Professional Services,,15/10/2015,"2,448.00",,Social Community Care Supplies & Services
5215290,MRL HEALTHCARE LIMITED,Adult Social Care,Director of People,Homecare Fees,,02/11/2015,"1,661.07",,Social Community Care Supplies & Services
5215293,ALLIANCE DISPOSABLES LTD,Adult Social Care,Director of People,Cleaning Materials,,05/11/2015,533.80,,Cleaning & Janitorial
5215296,HYDE BANGLADESH WELFARE  ASSOCIATION,Capital Programme,(blank),Building Works,,09/11/2015,"2,500.00",,Unclassifiable
5215306,CENTUM CONSTRUCTION SERVICES LTD,Capital Programme,(blank),Refurbishment Construction Costs,,19/10/2015,"10,482.76",,Unclassifiable
5215308,NETWORK CONNECT LTD,Multiple Heads of Service,Multiple Strategic Directorates,Communications Equipment,,22/10/2015,"3,808.80",,Unclassifiable
5215309,4WAY CONSULTING LTD,Environmental Services,Director of Place,Engineers -External,,28/10/2015,"1,461.83",,Environmental Services
5215310,DEKKO WINDOW SYSTEMS LTD,Asset & Investment Partnership Management,Director of Place,Electricity,,02/11/2015,"1,046.55",,Unclassifiable
